Body Name,Body,Organisational unit,Service division,Expenditure category,Date,Transacton number,Net amount,Supplier,Narrative
Tendring DC,http://statistics.data.gov.uk/id/local-authority-district/22UN,Corporate Services,1950 - Transport,3062 - Running Costs - Petrol,25/03/2014,2113781-1,143.33,2101825 - Allstar Business Solutions Ltd,Courier Fuel
Tendring DC,http://statistics.data.gov.uk/id/local-authority-district/22UN,Corporate Services,1320 - Print Unit Service Unit,4302 - External Print Unit Expenses,04/03/2014,1057672-1,26,2100069 - Autoprint,JOB 668
Tendring DC,http://statistics.data.gov.uk/id/local-authority-district/22UN,Corporate Services,1100 - Corporate Director (Corporate Services) and Admin Service Unit,4300 - Printing & Stationery,04/03/2014,1057634-1,-13.2,2100111 - Banner Business Supplies Ltd,BANNER
Tendring DC,http://statistics.data.gov.uk/id/local-authority-district/22UN,Corporate Services,1100 - Corporate Director (Corporate Services) and Admin Service Unit,4300 - Printing & Stationery,04/03/2014,7011858-1,13.2,2100111 - Banner Business Supplies Ltd,BANNER
Tendring DC,http://statistics.data.gov.uk/id/local-authority-district/22UN,Corporate Services,1100 - Corporate Director (Corporate Services) and Admin Service Unit,4300 - Printing & Stationery,04/03/2014,7011859-1,314.63,2100111 - Banner Business Supplies Ltd,BANNER
Tendring DC,http://statistics.data.gov.uk/id/local-authority-district/22UN,Corporate Services,1100 - Corporate Director (Corporate Services) and Admin Service Unit,4300 - Printing & Stationery,11/03/2014,7011960-1,127.96,2100111 - Banner Business Supplies Ltd,MISC STATIONERY
Tendring DC,http://statistics.data.gov.uk/id/local-authority-district/22UN,Corporate Services,1100 - Corporate Director (Corporate Services) and Admin Service Unit,4300 - Printing & Stationery,11/03/2014,7011964-1,10.6,2100111 - Banner Business Supplies Ltd,BANNER
Tendring DC,http://statistics.data.gov.uk/id/local-authority-district/22UN,Corporate Services,1320 - Print Unit Service Unit,4080 - Materials & Consumables,11/03/2014,7011987-1,9.6,2100111 - Banner Business Supplies Ltd,PENS
Tendring DC,http://statistics.data.gov.uk/id/local-authority-district/22UN,Corporate Services,1320 - Print Unit Service Unit,4080 - Materials & Consumables,11/03/2014,7011988-1,65.01,2100111 - Banner Business Supplies Ltd,RECYCLED PAPER
Tendring DC,http://statistics.data.gov.uk/id/local-authority-district/22UN,Corporate Services,1760 - IT Direct Service Costs,6325 - Additional Services,11/03/2014,7012123-1,138.31,2100111 - Banner Business Supplies Ltd,IT MEETING ROOM
Tendring DC,http://statistics.data.gov.uk/id/local-authority-district/22UN,Corporate Services,C080 - Joint HR and Payroll System,C274 - Purchase of Software,18/03/2014,7012239-1,6490,2108648 - Bond International Software (UK) Ltd,BOND TEAMSPIRIT
Tendring DC,http://statistics.data.gov.uk/id/local-authority-district/22UN,Corporate Services,1200 - Payroll & Payments,4753 - Computer - Application Software,18/03/2014,7012240-1,868.48,2108648 - Bond International Software (UK) Ltd,BOND TEAM SPIRIT
Tendring DC,http://statistics.data.gov.uk/id/local-authority-district/22UN,Corporate Services,6160 - Princes Theatre,4105 - Bar/Catering Expenses,31/03/2014,7800212-1,15.69,2113279 - Booker,Bookers Payments
Tendring DC,http://statistics.data.gov.uk/id/local-authority-district/22UN,Corporate Services,6160 - Princes Theatre,4105 - Bar/Catering Expenses,31/03/2014,7800212-3,10.5,2113279 - Booker,Bookers Payments
Tendring DC,http://statistics.data.gov.uk/id/local-authority-district/22UN,Corporate Services,4820 - Public Conveniences,2100 - Building Repairs,12/03/2014,7800202-1,235,2110116 - British Gas Business C & M,Emergency Payment Ref ESO110397
Tendring DC,http://statistics.data.gov.uk/id/local-authority-district/22UN,Corporate Services,1760 - IT Direct Service Costs,4715 - Data Communication Charge,18/03/2014,1057961-1,188.94,2100168 - British Telecommunications plc,2194 MAR 14
Tendring DC,http://statistics.data.gov.uk/id/local-authority-district/22UN,Corporate Services,1760 - IT Direct Service Costs,4715 - Data Communication Charge,18/03/2014,1057961-2,13.5,2100168 - British Telecommunications plc,2194 MAR 14
Tendring DC,http://statistics.data.gov.uk/id/local-authority-district/22UN,Corporate Services,1760 - IT Direct Service Costs,4715 - Data Communication Charge,18/03/2014,2113678-1,119.01,2100168 - British Telecommunications plc,1327 Mar 14
Tendring DC,http://statistics.data.gov.uk/id/local-authority-district/22UN,Corporate Services,C349 - IT Strategic Investment,C275 - Hardware,25/03/2014,2113786-1,75580.29,2100168 - British Telecommunications plc,CISCO Switch Equip
Tendring DC,http://statistics.data.gov.uk/id/local-authority-district/22UN,Corporate Services,1760 - IT Direct Service Costs,6325 - Additional Services,25/03/2014,2113786-2,59558,2100168 - British Telecommunications plc,CISCO Switch Equip
Tendring DC,http://statistics.data.gov.uk/id/local-authority-district/22UN,Corporate Services,1760 - IT Direct Service Costs,4753 - Computer - Application Software,25/03/2014,2113786-3,5531,2100168 - British Telecommunications plc,CISCO Switch Equip
Tendring DC,http://statistics.data.gov.uk/id/local-authority-district/22UN,Corporate Services,1760 - IT Direct Service Costs,4715 - Data Communication Charge,25/03/2014,2113786-4,20173,2100168 - British Telecommunications plc,CISCO Switch Equip
Tendring DC,http://statistics.data.gov.uk/id/local-authority-district/22UN,Corporate Services,1760 - IT Direct Service Costs,4715 - Data Communication Charge,25/03/2014,7012430-1,45.36,2100168 - British Telecommunications plc,ea35273347
Tendring DC,http://statistics.data.gov.uk/id/local-authority-district/22UN,Corporate Services,1760 - IT Direct Service Costs,4715 - Data Communication Charge,25/03/2014,7012430-2,13.5,2100168 - British Telecommunications plc,ea35273347
Tendring DC,http://statistics.data.gov.uk/id/local-authority-district/22UN,Corporate Services,1760 - IT Direct Service Costs,4715 - Data Communication Charge,25/03/2014,7012431-1,45.36,2100168 - British Telecommunications plc,ea35188878
Tendring DC,http://statistics.data.gov.uk/id/local-authority-district/22UN,Corporate Services,1760 - IT Direct Service Costs,4715 - Data Communication Charge,25/03/2014,7012431-2,13.5,2100168 - British Telecommunications plc,ea35188878
Tendring DC,http://statistics.data.gov.uk/id/local-authority-district/22UN,Corporate Services,1815 - Personnel and Human Resources Issues,1500 - Advertising - Recruitment,18/03/2014,2113587-1,393,2113211 - Building Link Ltd,Marketing
Tendring DC,http://statistics.data.gov.uk/id/local-authority-district/22UN,Corporate Services,1320 - Print Unit Service Unit,4080 - Materials & Consumables,18/03/2014,1057398-1,-21,2100291 - Canon (UK) Ltd,PAPER
Tendring DC,http://statistics.data.gov.uk/id/local-authority-district/22UN,Corporate Services,1110 - Credit & Debit Card Payment System,4751 - Hardware & Service Maintenance,18/03/2014,1057918-1,784.32,2100202 - Capita Business Services Ltd,PAYMAN 1/4/14 TO 31/3/15
Tendring DC,http://statistics.data.gov.uk/id/local-authority-district/22UN,Corporate Services,1110 - Credit & Debit Card Payment System,4753 - Computer - Application Software,18/03/2014,1057918-2,16097.08,2100202 - Capita Business Services Ltd,PAYMAN 1/4/14 TO 31/3/15
Tendring DC,http://statistics.data.gov.uk/id/local-authority-district/22UN,Corporate Services,"1580 - Benefits, Revenues and Customer Contact SU",4753 - Computer - Application Software,18/03/2014,1057918-3,3626.64,2100202 - Capita Business Services Ltd,PAYMAN 1/4/14 TO 31/3/15
Tendring DC,http://statistics.data.gov.uk/id/local-authority-district/22UN,Corporate Services,6160 - Princes Theatre,4753 - Computer - Application Software,18/03/2014,1057918-4,642.11,2100202 - Capita Business Services Ltd,PAYMAN 1/4/14 TO 31/3/15
Tendring DC,http://statistics.data.gov.uk/id/local-authority-district/22UN,Corporate Services,9900 - General Fund Balance Sheet,B879 - Charges made by Merchant Acquirer,05/03/2014,7800167-1,32.94,2100202 - Capita Business Services Ltd,CAPITA - February 2014
Tendring DC,http://statistics.data.gov.uk/id/local-authority-district/22UN,Corporate Services,9900 - General Fund Balance Sheet,B879 - Charges made by Merchant Acquirer,05/03/2014,7800167-3,92.2,2100202 - Capita Business Services Ltd,CAPITA - February 2014
Tendring DC,http://statistics.data.gov.uk/id/local-authority-district/22UN,Corporate Services,9900 - General Fund Balance Sheet,B879 - Charges made by Merchant Acquirer,05/03/2014,7800167-4,71.46,2100202 - Capita Business Services Ltd,CAPITA - February 2014
Tendring DC,http://statistics.data.gov.uk/id/local-authority-district/22UN,Corporate Services,9900 - General Fund Balance Sheet,B879 - Charges made by Merchant Acquirer,05/03/2014,7800167-5,262.46,2100202 - Capita Business Services Ltd,CAPITA - February 2014
Tendring DC,http://statistics.data.gov.uk/id/local-authority-district/22UN,Corporate Services,9900 - General Fund Balance Sheet,B879 - Charges made by Merchant Acquirer,05/03/2014,7800167-6,319.86,2100202 - Capita Business Services Ltd,CAPITA - February 2014
Tendring DC,http://statistics.data.gov.uk/id/local-authority-district/22UN,Corporate Services,9900 - General Fund Balance Sheet,B879 - Charges made by Merchant Acquirer,05/03/2014,7800167-7,307.66,2100202 - Capita Business Services Ltd,CAPITA - February 2014
Tendring DC,http://statistics.data.gov.uk/id/local-authority-district/22UN,Corporate Services,9900 - General Fund Balance Sheet,B879 - Charges made by Merchant Acquirer,05/03/2014,7800167-8,248.76,2100202 - Capita Business Services Ltd,CAPITA - February 2014
Tendring DC,http://statistics.data.gov.uk/id/local-authority-district/22UN,Corporate Services,9900 - General Fund Balance Sheet,B879 - Charges made by Merchant Acquirer,05/03/2014,7800167-9,154.41,2100202 - Capita Business Services Ltd,CAPITA - February 2014
Tendring DC,http://statistics.data.gov.uk/id/local-authority-district/22UN,Corporate Services,4760 - Public Health & Complaints,6325 - Additional Services,18/03/2014,7012202-1,49.5,2100243 - Caterway,BUFFET 3.2.14
Tendring DC,http://statistics.data.gov.uk/id/local-authority-district/22UN,Corporate Services,1500 - Planning Development Manager,3300 - Public Transport - Officers,04/03/2014,1057704-1,26,2112703 - Christoper Brackley,
Tendring DC,http://statistics.data.gov.uk/id/local-authority-district/22UN,Corporate Services,1120 - Accountancy Service Unit,4880 - Subscriptions Paid,11/03/2014,7012125-1,2515,2109394 - CIPFA Business Ltd,TISonline 1.4.14 - 31.3.15
Tendring DC,http://statistics.data.gov.uk/id/local-authority-district/22UN,Corporate Services,1320 - Print Unit Service Unit,4302 - External Print Unit Expenses,18/03/2014,1057921-1,148,2113356 - Classique Design & Print Limted,JOB 632
Tendring DC,http://statistics.data.gov.uk/id/local-authority-district/22UN,Corporate Services,6640 - Treasury Management,5192 - Brokerage,03/03/2014,7800174-1,154,2100269 - Co operative Bank plc,FD Invoice - Feb 2014
Tendring DC,http://statistics.data.gov.uk/id/local-authority-district/22UN,Corporate Services,6620 - Corporate Management - General,5190 - Bank Commission Charges,03/03/2014,7800174-3,229.6,2100269 - Co operative Bank plc,FD Invoice - Feb 2014
Tendring DC,http://statistics.data.gov.uk/id/local-authority-district/22UN,Corporate Services,"1580 - Benefits, Revenues and Customer Contact SU",5186 - Paypoint/post office charges,03/03/2014,7800174-5,964.73,2100269 - Co operative Bank plc,FD Invoice - Feb 2014
Tendring DC,http://statistics.data.gov.uk/id/local-authority-district/22UN,Corporate Services,"1580 - Benefits, Revenues and Customer Contact SU",5186 - Paypoint/post office charges,03/03/2014,7800174-7,1460.2,2100269 - Co operative Bank plc,FD Invoice - Feb 2014
Tendring DC,http://statistics.data.gov.uk/id/local-authority-district/22UN,Corporate Services,1760 - IT Direct Service Costs,4753 - Computer - Application Software,27/03/2014,7800222-0,13.8,2100304 - CO-OP Bank,Credit Card - TC - Sep 12
Tendring DC,http://statistics.data.gov.uk/id/local-authority-district/22UN,Corporate Services,6620 - Corporate Management - General,5190 - Bank Commission Charges,27/03/2014,7800223-1,2,2100304 - CO-OP Bank,Credit card - JH - Aug 2013
Tendring DC,http://statistics.data.gov.uk/id/local-authority-district/22UN,Corporate Services,6620 - Corporate Management - General,5190 - Bank Commission Charges,03/03/2014,7800224-0,2,2100304 - CO-OP Bank,Feb 14 RB
Tendring DC,http://statistics.data.gov.uk/id/local-authority-district/22UN,Corporate Services,1815 - Personnel and Human Resources Issues,1500 - Advertising - Recruitment,03/03/2014,7800224-2,12.98,2100304 - CO-OP Bank,Feb 14 RB
Tendring DC,http://statistics.data.gov.uk/id/local-authority-district/22UN,Corporate Services,"1580 - Benefits, Revenues and Customer Contact SU",4461 - Court Fees,03/03/2014,7800225-1,2726,2100304 - CO-OP Bank,HM Courts JB Feb 14
Tendring DC,http://statistics.data.gov.uk/id/local-authority-district/22UN,Corporate Services,1760 - IT Direct Service Costs,4715 - Data Communication Charge,03/03/2014,7800228-0,10,2100304 - CO-OP Bank,Talk Talk TS Feb 14
Tendring DC,http://statistics.data.gov.uk/id/local-authority-district/22UN,Corporate Services,5800 - Brightlingsea Sports Centre,4710 - Telephones - Charges,03/03/2014,7800228-2,30,2100304 - CO-OP Bank,Talk Talk TS Feb 14
Tendring DC,http://statistics.data.gov.uk/id/local-authority-district/22UN,Corporate Services,6620 - Corporate Management - General,5190 - Bank Commission Charges,03/03/2014,7800228-4,2,2100304 - CO-OP Bank,Talk Talk TS Feb 14
Tendring DC,http://statistics.data.gov.uk/id/local-authority-district/22UN,Corporate Services,6620 - Corporate Management - General,5190 - Bank Commission Charges,03/03/2014,7800229-1,2,2100304 - CO-OP Bank,Card Fee JH Feb 14
Tendring DC,http://statistics.data.gov.uk/id/local-authority-district/22UN,Corporate Services,1760 - IT Direct Service Costs,4715 - Data Communication Charge,25/03/2014,2113957-1,1145,2106704 - Daisy Communications Ltd,PSN Line Annual Charge
Tendring DC,http://statistics.data.gov.uk/id/local-authority-district/22UN,Corporate Services,1760 - IT Direct Service Costs,4715 - Data Communication Charge,25/03/2014,2113958-1,30,2106704 - Daisy Communications Ltd,PSN Line Quarterly
Tendring DC,http://statistics.data.gov.uk/id/local-authority-district/22UN,Corporate Services,1760 - IT Direct Service Costs,4715 - Data Communication Charge,25/03/2014,2113959-1,23.22,2106704 - Daisy Communications Ltd,PSN Line Install
Tendring DC,http://statistics.data.gov.uk/id/local-authority-district/22UN,Corporate Services,1760 - IT Direct Service Costs,4751 - Hardware & Service Maintenance,25/03/2014,2113960-1,1000,2106704 - Daisy Communications Ltd,PSN & Project manage
Tendring DC,http://statistics.data.gov.uk/id/local-authority-district/22UN,Corporate Services,1760 - IT Direct Service Costs,4880 - Subscriptions Paid,25/03/2014,2113960-2,400,2106704 - Daisy Communications Ltd,PSN & Project manage
Tendring DC,http://statistics.data.gov.uk/id/local-authority-district/22UN,Corporate Services,1760 - IT Direct Service Costs,5500 - Miscellaneous Expenses,25/03/2014,2113960-3,70,2106704 - Daisy Communications Ltd,PSN & Project manage
Tendring DC,http://statistics.data.gov.uk/id/local-authority-district/22UN,Corporate Services,9900 - General Fund Balance Sheet,B146 - Car Loans - Principal,25/03/2014,7012452-1,2200,REDACTED PERSONAL DATA,REDACTED PERSONAL DATA
Tendring DC,http://statistics.data.gov.uk/id/local-authority-district/22UN,Corporate Services,7240 - Electoral Registration Expenses,4300 - Printing & Stationery,25/03/2014,7012402-1,233.46,2107541 - Electoral Reform Services,registrations electoral
Tendring DC,http://statistics.data.gov.uk/id/local-authority-district/22UN,Corporate Services,5220 - HRA - Policy & Management,5930 - Business Planning Expenses,18/03/2014,1057886-1,200,2100406 - Ellisons,PAYMENT OF SOLICITORS FEES-DEED OF VARIATION 6 ALLFIELDS
Tendring DC,http://statistics.data.gov.uk/id/local-authority-district/22UN,Corporate Services,1320 - Print Unit Service Unit,4302 - External Print Unit Expenses,04/03/2014,1057670-1,452.25,2109136 - Essex Cares Ltd,JOB 601
Tendring DC,http://statistics.data.gov.uk/id/local-authority-district/22UN,Corporate Services,8971 - MIRS - Contributions Payable to the Pension Scheme,1816 - Superannuation Deficiency Contribution,04/03/2014,7011934-3,137750,2100419 - Essex County Council,Pension 00013
Tendring DC,http://statistics.data.gov.uk/id/local-authority-district/22UN,Corporate Services,8971 - MIRS - Contributions Payable to the Pension Scheme,1810 - Superannuation - Financial Strain/Added Years,04/03/2014,7011934-4,17168.71,2100419 - Essex County Council,Pension 00013
Tendring DC,http://statistics.data.gov.uk/id/local-authority-district/22UN,Corporate Services,8971 - MIRS - Contributions Payable to the Pension Scheme,1822 - Superannuation - Port Health Pensions etc.,04/03/2014,7011935-2,800.05,2100419 - Essex County Council,Port Health Authority
Tendring DC,http://statistics.data.gov.uk/id/local-authority-district/22UN,Corporate Services,8971 - MIRS - Contributions Payable to the Pension Scheme,1816 - Superannuation Deficiency Contribution,25/03/2014,7012456-3,137750,2100419 - Essex County Council,Pension 00013
Tendring DC,http://statistics.data.gov.uk/id/local-authority-district/22UN,Corporate Services,8971 - MIRS - Contributions Payable to the Pension Scheme,1810 - Superannuation - Financial Strain/Added Years,25/03/2014,7012456-4,17199.04,2100419 - Essex County Council,Pension 00013
Tendring DC,http://statistics.data.gov.uk/id/local-authority-district/22UN,Corporate Services,8971 - MIRS - Contributions Payable to the Pension Scheme,1822 - Superannuation - Port Health Pensions etc.,25/03/2014,7012457-2,800.05,2100419 - Essex County Council,Port Health Authority
Tendring DC,http://statistics.data.gov.uk/id/local-authority-district/22UN,Corporate Services,7025 - CDRP Support,4900 - Grants,18/03/2014,2113677-1,4000,2108768 - Essex County Fire & Rescue Service,Firebreak 27-31 Jan
Tendring DC,http://statistics.data.gov.uk/id/local-authority-district/22UN,Corporate Services,1660 - Other Apportionable Overheads,4609 - Child Care Vouchers Management Fee,11/03/2014,2113444-2,49.69,REDACTED PERSONAL DATA,REDACTED PERSONAL DATA
Tendring DC,http://statistics.data.gov.uk/id/local-authority-district/22UN,Corporate Services,8540 - Leisure Centre Clacton,2900 - Premises Licensing - Public Entertainment,27/03/2014,7800177-1,300.54,2107806 - Fitness Professionals Ltd,Body Training System - Mar 2014
Tendring DC,http://statistics.data.gov.uk/id/local-authority-district/22UN,Corporate Services,8510 - Dovercourt Swimming Pool & All Weather Facilities,4400 - Maintenance Under Service Agreements,04/03/2014,2113394-1,65,2100546 - GCS Alarms,Dovercourt Pool - Alarm Fault
Tendring DC,http://statistics.data.gov.uk/id/local-authority-district/22UN,Corporate Services,7025 - CDRP Support,4900 - Grants,25/03/2014,7012429-1,140,2100546 - GCS Alarms,cctv - fast response unit
Tendring DC,http://statistics.data.gov.uk/id/local-authority-district/22UN,Corporate Services,8540 - Leisure Centre Clacton,2900 - Premises Licensing - Public Entertainment,17/03/2014,7800176-0,50,2110331 - GMS Recordings,Music Broadcasting - Lifestyles
Tendring DC,http://statistics.data.gov.uk/id/local-authority-district/22UN,Corporate Services,1180 - Benefit Fraud Investigation Service Unit,4459 - External Legal Advice,11/03/2014,7011989-1,2402.34,2100672 - Harris Cuffaro & Nichols Solicitors,SOLICITORS COSTS
Tendring DC,http://statistics.data.gov.uk/id/local-authority-district/22UN,Corporate Services,1180 - Benefit Fraud Investigation Service Unit,4459 - External Legal Advice,11/03/2014,7011989-2,12.1,2100672 - Harris Cuffaro & Nichols Solicitors,SOLICITORS COSTS
Tendring DC,http://statistics.data.gov.uk/id/local-authority-district/22UN,Corporate Services,8540 - Leisure Centre Clacton,5160 - Advertising,10/03/2014,7800231-1,52,2111275 - hibu (UK) Ltd,Yell Ad 10/3/14
Tendring DC,http://statistics.data.gov.uk/id/local-authority-district/22UN,Corporate Services,5880 - Management Of Sport & Leisure Facilities,5160 - Advertising,10/03/2014,7800231-3,98,2111275 - hibu (UK) Ltd,Yell Ad 10/3/14
Tendring DC,http://statistics.data.gov.uk/id/local-authority-district/22UN,Corporate Services,1300 - Legal Services Service Unit,4466 - Land Registry Fees,25/03/2014,7800178-1,23,2100636 - HM Land Registry,Land Registry Enquiries - Mar 2014
Tendring DC,http://statistics.data.gov.uk/id/local-authority-district/22UN,Corporate Services,H920 - Disabled Facilities Grants,C400 - Grant payments,25/03/2014,7800178-10,96,2100636 - HM Land Registry,Land Registry Enquiries - Mar 2014
Tendring DC,http://statistics.data.gov.uk/id/local-authority-district/22UN,Corporate Services,4750 - Housing Disrepair,4080 - Materials & Consumables,25/03/2014,7800178-12,30,2100636 - HM Land Registry,Land Registry Enquiries - Mar 2014
Tendring DC,http://statistics.data.gov.uk/id/local-authority-district/22UN,Corporate Services,5140 - Homelessness,4680 - Bed & Breakfast Accommodation,25/03/2014,7800178-14,18,2100636 - HM Land Registry,Land Registry Enquiries - Mar 2014
Tendring DC,http://statistics.data.gov.uk/id/local-authority-district/22UN,Corporate Services,4660 - Public Health,5500 - Miscellaneous Expenses,25/03/2014,7800178-3,30,2100636 - HM Land Registry,Land Registry Enquiries - Mar 2014
Tendring DC,http://statistics.data.gov.uk/id/local-authority-district/22UN,Corporate Services,"1580 - Benefits, Revenues and Customer Contact SU",4466 - Land Registry Fees,25/03/2014,7800178-5,195,2100636 - HM Land Registry,Land Registry Enquiries - Mar 2014
Tendring DC,http://statistics.data.gov.uk/id/local-authority-district/22UN,Corporate Services,1520 - Head of Planning and Customer Services,4624 - Hired Services - Land Registry,25/03/2014,7800178-6,52,2100636 - HM Land Registry,Land Registry Enquiries - Mar 2014
Tendring DC,http://statistics.data.gov.uk/id/local-authority-district/22UN,Corporate Services,1930 - Asset Management Service Unit,4469 - Other Non - Legal Professional Services,25/03/2014,7800178-8,96,2100636 - HM Land Registry,Land Registry Enquiries - Mar 2014
Tendring DC,http://statistics.data.gov.uk/id/local-authority-district/22UN,Corporate Services,1100 - Corporate Director (Corporate Services) and Admin Service Unit,1710 - Training - Central Department Budget,04/03/2014,2113389-1,210,2101441 - Improvement and Development Agency for Local Government,Employer Training
Tendring DC,http://statistics.data.gov.uk/id/local-authority-district/22UN,Corporate Services,1180 - Benefit Fraud Investigation Service Unit,1710 - Training - Central Department Budget,25/03/2014,2113770-1,210,2101441 - Improvement and Development Agency for Local Government,Improvement Agency
Tendring DC,http://statistics.data.gov.uk/id/local-authority-district/22UN,Corporate Services,1760 - IT Direct Service Costs,4753 - Computer - Application Software,11/03/2014,7012432-1,1436.7,2110906 - Insight Certification Ltd,keyboards/monitors/mice
Tendring DC,http://statistics.data.gov.uk/id/local-authority-district/22UN,Corporate Services,1760 - IT Direct Service Costs,4753 - Computer - Application Software,25/03/2014,1058049-1,1436.7,2100782 - Insight Direct (uk) Limited,KEYBOARDS/MONITORS/MICE
Tendring DC,http://statistics.data.gov.uk/id/local-authority-district/22UN,Corporate Services,1950 - Transport,3250 - Operational Leases - Transport,30/03/2014,7800213-1,5276.72,2103565 - JCB Finance Ltd,Annual Lease Payment
Tendring DC,http://statistics.data.gov.uk/id/local-authority-district/22UN,Corporate Services,1950 - Transport,3250 - Operational Leases - Transport,30/03/2014,7800213-10,2302.85,2103565 - JCB Finance Ltd,Annual Lease Payment
Tendring DC,http://statistics.data.gov.uk/id/local-authority-district/22UN,Corporate Services,1950 - Transport,3250 - Operational Leases - Transport,30/03/2014,7800213-11,1961.32,2103565 - JCB Finance Ltd,Annual Lease Payment
Tendring DC,http://statistics.data.gov.uk/id/local-authority-district/22UN,Corporate Services,1950 - Transport,3250 - Operational Leases - Transport,30/03/2014,7800213-3,1360.01,2103565 - JCB Finance Ltd,Annual Lease Payment
Tendring DC,http://statistics.data.gov.uk/id/local-authority-district/22UN,Corporate Services,1950 - Transport,3250 - Operational Leases - Transport,30/03/2014,7800213-4,1230.12,2103565 - JCB Finance Ltd,Annual Lease Payment
Tendring DC,http://statistics.data.gov.uk/id/local-authority-district/22UN,Corporate Services,1950 - Transport,3250 - Operational Leases - Transport,30/03/2014,7800213-5,1985,2103565 - JCB Finance Ltd,Annual Lease Payment
Tendring DC,http://statistics.data.gov.uk/id/local-authority-district/22UN,Corporate Services,1950 - Transport,3250 - Operational Leases - Transport,30/03/2014,7800213-6,2368.56,2103565 - JCB Finance Ltd,Annual Lease Payment
Tendring DC,http://statistics.data.gov.uk/id/local-authority-district/22UN,Corporate Services,1950 - Transport,3250 - Operational Leases - Transport,30/03/2014,7800213-7,3613.96,2103565 - JCB Finance Ltd,Annual Lease Payment
Tendring DC,http://statistics.data.gov.uk/id/local-authority-district/22UN,Corporate Services,1950 - Transport,3250 - Operational Leases - Transport,30/03/2014,7800213-8,534.83,2103565 - JCB Finance Ltd,Annual Lease Payment
Tendring DC,http://statistics.data.gov.uk/id/local-authority-district/22UN,Corporate Services,1950 - Transport,3250 - Operational Leases - Transport,30/03/2014,7800213-9,534.83,2103565 - JCB Finance Ltd,Annual Lease Payment
Tendring DC,http://statistics.data.gov.uk/id/local-authority-district/22UN,Corporate Services,1950 - Transport,3250 - Operational Leases - Transport,05/03/2014,7800230-0,3172.54,2103565 - JCB Finance Ltd,Annual Lease Payment
Tendring DC,http://statistics.data.gov.uk/id/local-authority-district/22UN,Corporate Services,6640 - Treasury Management,5192 - Brokerage,03/03/2014,7800211-3,23.09,2107040 - King & Shaxson Limited,King & Shaxson Treasury Bill
Tendring DC,http://statistics.data.gov.uk/id/local-authority-district/22UN,Corporate Services,8915 - Interest & Investment Income,9600 - External Investment Interest Receivable,03/03/2014,7800211-5,-283.84,2107040 - King & Shaxson Limited,King & Shaxson Treasury Bill
Tendring DC,http://statistics.data.gov.uk/id/local-authority-district/22UN,Corporate Services,1320 - Print Unit Service Unit,4080 - Materials & Consumables,11/03/2014,7012134-1,37,2100864 - Leston Stationery Ltd,CARD
Tendring DC,http://statistics.data.gov.uk/id/local-authority-district/22UN,Corporate Services,1100 - Corporate Director (Corporate Services) and Admin Service Unit,4355 - Books & Periodicals,04/03/2014,1057663-1,325.45,2100874 - Lexis Nexis UK,PARKER LAW ELECTIONS 44
Tendring DC,http://statistics.data.gov.uk/id/local-authority-district/22UN,Corporate Services,1760 - IT Direct Service Costs,6320 - IT Services Agreements Payment,11/03/2014,1057861-1,51622.01,2108077 - Liberata Financial Services Ltd,Mar-14
Tendring DC,http://statistics.data.gov.uk/id/local-authority-district/22UN,Corporate Services,1432 - TDC Website,5500 - Miscellaneous Expenses,18/03/2014,7012241-1,777.9,2108077 - Liberata Financial Services Ltd,LIBERATA
Tendring DC,http://statistics.data.gov.uk/id/local-authority-district/22UN,Corporate Services,1760 - IT Direct Service Costs,4753 - Computer - Application Software,25/03/2014,7012450-1,440,2108077 - Liberata Financial Services Ltd,cs101123
Tendring DC,http://statistics.data.gov.uk/id/local-authority-district/22UN,Corporate Services,1760 - IT Direct Service Costs,4715 - Data Communication Charge,18/03/2014,1057960-1,513.2,2100894 - Liberata UK Ltd,CS100996/1085/58/90/98/102
Tendring DC,http://statistics.data.gov.uk/id/local-authority-district/22UN,Corporate Services,1760 - IT Direct Service Costs,4715 - Data Communication Charge,18/03/2014,1057960-2,270.46,2100894 - Liberata UK Ltd,CS100996/1085/58/90/98/102
Tendring DC,http://statistics.data.gov.uk/id/local-authority-district/22UN,Corporate Services,1760 - IT Direct Service Costs,6325 - Additional Services,18/03/2014,1057960-3,3961.09,2100894 - Liberata UK Ltd,CS100996/1085/58/90/98/102
Tendring DC,http://statistics.data.gov.uk/id/local-authority-district/22UN,Corporate Services,1760 - IT Direct Service Costs,6325 - Additional Services,18/03/2014,1057960-4,7238,2100894 - Liberata UK Ltd,CS100996/1085/58/90/98/102
Tendring DC,http://statistics.data.gov.uk/id/local-authority-district/22UN,Corporate Services,1760 - IT Direct Service Costs,4715 - Data Communication Charge,18/03/2014,1057960-5,6400,2100894 - Liberata UK Ltd,CS100996/1085/58/90/98/102
Tendring DC,http://statistics.data.gov.uk/id/local-authority-district/22UN,Corporate Services,1760 - IT Direct Service Costs,6325 - Additional Services,18/03/2014,1057960-6,5811.5,2100894 - Liberata UK Ltd,CS100996/1085/58/90/98/102
Tendring DC,http://statistics.data.gov.uk/id/local-authority-district/22UN,Corporate Services,1760 - IT Direct Service Costs,4753 - Computer - Application Software,18/03/2014,2113680-1,5242.59,2100894 - Liberata UK Ltd,CS101105/6/7/8/9/10/16/20
Tendring DC,http://statistics.data.gov.uk/id/local-authority-district/22UN,Corporate Services,1760 - IT Direct Service Costs,4715 - Data Communication Charge,18/03/2014,2113680-2,14450,2100894 - Liberata UK Ltd,CS101105/6/7/8/9/10/16/20
Tendring DC,http://statistics.data.gov.uk/id/local-authority-district/22UN,Corporate Services,1760 - IT Direct Service Costs,6325 - Additional Services,18/03/2014,2113680-3,2829.35,2100894 - Liberata UK Ltd,CS101105/6/7/8/9/10/16/20
Tendring DC,http://statistics.data.gov.uk/id/local-authority-district/22UN,Corporate Services,1815 - Personnel and Human Resources Issues,1709 - Training - Management Development Courses,04/03/2014,2113387-1,833.17,2113514 - Marlborough Training and Consultancy Ltd,Management Development Programme
Tendring DC,http://statistics.data.gov.uk/id/local-authority-district/22UN,Corporate Services,5240 - HRA - Managing Tenancies,4312 - Tenancy Stationery,04/03/2014,7011907-1,142.05,2101818 - Misco,SONY CAMERAS
Tendring DC,http://statistics.data.gov.uk/id/local-authority-district/22UN,Corporate Services,1670 - Engineering Services Management,4753 - Computer - Application Software,18/03/2014,7012201-1,322.06,2101818 - Misco,ASUS
Tendring DC,http://statistics.data.gov.uk/id/local-authority-district/22UN,Corporate Services,1760 - IT Direct Service Costs,4751 - Hardware & Service Maintenance,18/03/2014,1057906-1,659,2100967 - N Rudelhoff,ELEC WORK BARNES HSE TOWN HALL
Tendring DC,http://statistics.data.gov.uk/id/local-authority-district/22UN,Corporate Services,1760 - IT Direct Service Costs,6325 - Additional Services,11/03/2014,7012140-1,810,2100967 - N Rudelhoff,SERVER ROOM WORKS
Tendring DC,http://statistics.data.gov.uk/id/local-authority-district/22UN,Corporate Services,1760 - IT Direct Service Costs,4715 - Data Communication Charge,25/03/2014,7012428-1,2950,2100967 - N Rudelhoff,server room/town hall
Tendring DC,http://statistics.data.gov.uk/id/local-authority-district/22UN,Corporate Services,"1580 - Benefits, Revenues and Customer Contact SU",5160 - Advertising,25/03/2014,1058047-1,1000.8,2113536 - Newsquest Media Group,CTAX ADVERT
Tendring DC,http://statistics.data.gov.uk/id/local-authority-district/22UN,Corporate Services,6460 - Career Track,4688 - Career Track Exam Fees,11/03/2014,7012153-1,90,REDACTED PERSONAL DATA,REDACTED PERSONAL DATA
Tendring DC,http://statistics.data.gov.uk/id/local-authority-district/22UN,Corporate Services,6460 - Career Track,4688 - Career Track Exam Fees,11/03/2014,7012154-1,80.9,REDACTED PERSONAL DATA,REDACTED PERSONAL DATA
Tendring DC,http://statistics.data.gov.uk/id/local-authority-district/22UN,Corporate Services,6460 - Career Track,4688 - Career Track Exam Fees,11/03/2014,7012155-1,68.8,REDACTED PERSONAL DATA,REDACTED PERSONAL DATA
Tendring DC,http://statistics.data.gov.uk/id/local-authority-district/22UN,Corporate Services,6460 - Career Track,4688 - Career Track Exam Fees,25/03/2014,7012425-1,80.9,REDACTED PERSONAL DATA,REDACTED PERSONAL DATA
Tendring DC,http://statistics.data.gov.uk/id/local-authority-district/22UN,Corporate Services,1320 - Print Unit Service Unit,4302 - External Print Unit Expenses,04/03/2014,1057673-1,155,2111844 - Optimumprint,JOBS 643
Tendring DC,http://statistics.data.gov.uk/id/local-authority-district/22UN,Corporate Services,1320 - Print Unit Service Unit,4302 - External Print Unit Expenses,04/03/2014,1057674-1,60,2111844 - Optimumprint,JOB 627
Tendring DC,http://statistics.data.gov.uk/id/local-authority-district/22UN,Corporate Services,1320 - Print Unit Service Unit,4302 - External Print Unit Expenses,04/03/2014,1057675-1,195,2111844 - Optimumprint,JOB 644/645
Tendring DC,http://statistics.data.gov.uk/id/local-authority-district/22UN,Corporate Services,1320 - Print Unit Service Unit,4302 - External Print Unit Expenses,11/03/2014,7012131-1,901,2111844 - Optimumprint,JOBS 6881689
Tendring DC,http://statistics.data.gov.uk/id/local-authority-district/22UN,Corporate Services,1320 - Print Unit Service Unit,4302 - External Print Unit Expenses,11/03/2014,7012132-1,20,2111844 - Optimumprint,JOB 666
Tendring DC,http://statistics.data.gov.uk/id/local-authority-district/22UN,Corporate Services,1320 - Print Unit Service Unit,4302 - External Print Unit Expenses,11/03/2014,7012133-1,10,2111844 - Optimumprint,JOB 661
Tendring DC,http://statistics.data.gov.uk/id/local-authority-district/22UN,Corporate Services,6460 - Career Track,4688 - Career Track Exam Fees,18/03/2014,1057783-1,-72.5,REDACTED PERSONAL DATA,REDACTED PERSONAL DATA
Tendring DC,http://statistics.data.gov.uk/id/local-authority-district/22UN,Corporate Services,6460 - Career Track,4688 - Career Track Exam Fees,18/03/2014,1057784-1,-43.5,REDACTED PERSONAL DATA,REDACTED PERSONAL DATA
Tendring DC,http://statistics.data.gov.uk/id/local-authority-district/22UN,Corporate Services,6460 - Career Track,4688 - Career Track Exam Fees,18/03/2014,1057785-1,-29,REDACTED PERSONAL DATA,REDACTED PERSONAL DATA
Tendring DC,http://statistics.data.gov.uk/id/local-authority-district/22UN,Corporate Services,6460 - Career Track,4688 - Career Track Exam Fees,18/03/2014,2113432-1,14.5,REDACTED PERSONAL DATA,REDACTED PERSONAL DATA
Tendring DC,http://statistics.data.gov.uk/id/local-authority-district/22UN,Corporate Services,6460 - Career Track,4688 - Career Track Exam Fees,18/03/2014,2113653-1,48.5,REDACTED PERSONAL DATA,REDACTED PERSONAL DATA
Tendring DC,http://statistics.data.gov.uk/id/local-authority-district/22UN,Corporate Services,6460 - Career Track,4688 - Career Track Exam Fees,18/03/2014,2113654-1,43.5,REDACTED PERSONAL DATA,REDACTED PERSONAL DATA
Tendring DC,http://statistics.data.gov.uk/id/local-authority-district/22UN,Corporate Services,6460 - Career Track,4688 - Career Track Exam Fees,18/03/2014,2113655-1,41,REDACTED PERSONAL DATA,REDACTED PERSONAL DATA
Tendring DC,http://statistics.data.gov.uk/id/local-authority-district/22UN,Corporate Services,6460 - Career Track,4688 - Career Track Exam Fees,18/03/2014,2113656-1,14.5,REDACTED PERSONAL DATA,REDACTED PERSONAL DATA
Tendring DC,http://statistics.data.gov.uk/id/local-authority-district/22UN,Corporate Services,1100 - Corporate Director (Corporate Services) and Admin Service Unit,4753 - Computer - Application Software,11/03/2014,7012124-1,250.8,2101038 - Phoenix Software Limited,ADOBE - DEM SERV
Tendring DC,http://statistics.data.gov.uk/id/local-authority-district/22UN,Corporate Services,1930 - Asset Management Service Unit,4466 - Land Registry Fees,18/03/2014,1057907-1,144,2105829 - Prettys Solicitors,PRETTYS F&W SCOUTS
Tendring DC,http://statistics.data.gov.uk/id/local-authority-district/22UN,Corporate Services,1930 - Asset Management Service Unit,4466 - Land Registry Fees,18/03/2014,1057908-1,80,2105829 - Prettys Solicitors,PRETTYS HAPPY VALLEY BOWLS
Tendring DC,http://statistics.data.gov.uk/id/local-authority-district/22UN,Corporate Services,1930 - Asset Management Service Unit,4466 - Land Registry Fees,18/03/2014,1057909-1,368,2105829 - Prettys Solicitors,PRETTYS C'COURT RUGBY CLUB
Tendring DC,http://statistics.data.gov.uk/id/local-authority-district/22UN,Corporate Services,8901 - Interest Payable and similar charges,7570 - Interest Payments,31/03/2014,7800180-3,43266.21,2101162 - Public Works Loan Board,PWLB GF loans due 31/3
Tendring DC,http://statistics.data.gov.uk/id/local-authority-district/22UN,Corporate Services,8901 - Interest Payable and similar charges,7570 - Interest Payments,25/03/2014,7800189-2,46875,2101162 - Public Works Loan Board,PWLB Loan 464692
Tendring DC,http://statistics.data.gov.uk/id/local-authority-district/22UN,Corporate Services,8901 - Interest Payable and similar charges,7570 - Interest Payments,24/03/2014,7800191-2,18751.04,2101162 - Public Works Loan Board,"Loans 336153,158.162 & 472962"
Tendring DC,http://statistics.data.gov.uk/id/local-authority-district/22UN,Corporate Services,8901 - Interest Payable and similar charges,7570 - Interest Payments,17/03/2014,7800198-2,1471.15,2101162 - Public Works Loan Board,Loans 486269-486272 Interest Only
Tendring DC,http://statistics.data.gov.uk/id/local-authority-district/22UN,Corporate Services,5760 - HRA - Capital & Interest Charges,9831 - HRA Interest (formerly Item 8),17/03/2014,7800198-4,98528.85,2101162 - Public Works Loan Board,Loans 486269-486272 Interest Only
Tendring DC,http://statistics.data.gov.uk/id/local-authority-district/22UN,Corporate Services,1661 - Other Apportionable Overheads - Corporate Support,4700 - Postage,25/03/2014,7012403-1,1023.68,2103836 - Purchase Power,franking consumables
Tendring DC,http://statistics.data.gov.uk/id/local-authority-district/22UN,Corporate Services,9900 - General Fund Balance Sheet,B886 - Rail Warrants Allocation Holding Account,28/03/2014,7800179-1,2350.3,2101174 - R S P Ltd,Rail Warrants
Tendring DC,http://statistics.data.gov.uk/id/local-authority-district/22UN,Corporate Services,1100 - Corporate Director (Corporate Services) and Admin Service Unit,1710 - Training - Central Department Budget,11/03/2014,7012159-1,100,2101148 - Rochford District Council,COUNCIL TAX FRAUD COURSE
Tendring DC,http://statistics.data.gov.uk/id/local-authority-district/22UN,Corporate Services,7240 - Electoral Registration Expenses,4700 - Postage,25/03/2014,7012404-1,914.44,2108306 - Royal Mail Group Ltd,electoral postage
Tendring DC,http://statistics.data.gov.uk/id/local-authority-district/22UN,Corporate Services,7240 - Electoral Registration Expenses,4700 - Postage,25/03/2014,7012405-1,10.87,2108306 - Royal Mail Group Ltd,electoral postage
Tendring DC,http://statistics.data.gov.uk/id/local-authority-district/22UN,Corporate Services,7220 - Election Expenses,4486 - Election Expenses,25/03/2014,7012406-1,539.23,2108306 - Royal Mail Group Ltd,electoral by elec postage
Tendring DC,http://statistics.data.gov.uk/id/local-authority-district/22UN,Corporate Services,7220 - Election Expenses,4486 - Election Expenses,25/03/2014,7012407-1,90,2108306 - Royal Mail Group Ltd,electoral postage licence
Tendring DC,http://statistics.data.gov.uk/id/local-authority-district/22UN,Corporate Services,1815 - Personnel and Human Resources Issues,1600 - Medical Expenses,04/03/2014,2113388-1,580,2112524 - RPS Business Healthcare,Occupational Health
Tendring DC,http://statistics.data.gov.uk/id/local-authority-district/22UN,Corporate Services,6460 - Career Track,4468 - AGE Grant Training Costs,18/03/2014,1057892-1,1500,REDACTED PERSONAL DATA,REDACTED PERSONAL DATA
Tendring DC,http://statistics.data.gov.uk/id/local-authority-district/22UN,Corporate Services,C373 - Communications,C275 - Hardware,25/03/2014,7012451-1,17665.33,2103677 - SecureData Europe Ltd,cs100983/984
Tendring DC,http://statistics.data.gov.uk/id/local-authority-district/22UN,Corporate Services,1100 - Corporate Director (Corporate Services) and Admin Service Unit,4300 - Printing & Stationery,04/03/2014,1057662-1,99.75,2101284 - Shaw & Sons Ltd,COMMITTEE/POLITICAL GROUP FORMS
Tendring DC,http://statistics.data.gov.uk/id/local-authority-district/22UN,Corporate Services,1930 - Asset Management Service Unit,4469 - Other Non - Legal Professional Services,18/03/2014,2113609-1,39,2100032 - Signs Made Easy,To Let Sign GHQ
Tendring DC,http://statistics.data.gov.uk/id/local-authority-district/22UN,Corporate Services,1950 - Transport,3250 - Operational Leases - Transport,28/03/2014,7800182-1,4252.44,2101286 - Societe General Equipment Finance Limited,Societe Generale Lease
Tendring DC,http://statistics.data.gov.uk/id/local-authority-district/22UN,Corporate Services,1950 - Transport,3250 - Operational Leases - Transport,28/03/2014,7800182-3,3459.6,2101286 - Societe General Equipment Finance Limited,Societe Generale Lease
Tendring DC,http://statistics.data.gov.uk/id/local-authority-district/22UN,Corporate Services,1950 - Transport,3250 - Operational Leases - Transport,28/03/2014,7800182-4,6341.07,2101286 - Societe General Equipment Finance Limited,Societe Generale Lease
Tendring DC,http://statistics.data.gov.uk/id/local-authority-district/22UN,Corporate Services,1950 - Transport,3250 - Operational Leases - Transport,28/03/2014,7800182-5,3843.07,2101286 - Societe General Equipment Finance Limited,Societe Generale Lease
Tendring DC,http://statistics.data.gov.uk/id/local-authority-district/22UN,Corporate Services,1950 - Transport,3250 - Operational Leases - Transport,28/03/2014,7800182-6,2790.4,2101286 - Societe General Equipment Finance Limited,Societe Generale Lease
Tendring DC,http://statistics.data.gov.uk/id/local-authority-district/22UN,Corporate Services,1950 - Transport,3250 - Operational Leases - Transport,28/03/2014,7800182-7,1843.84,2101286 - Societe General Equipment Finance Limited,Societe Generale Lease
Tendring DC,http://statistics.data.gov.uk/id/local-authority-district/22UN,Corporate Services,1432 - TDC Website,4500 - Consultancy Fees,18/03/2014,2113610-1,2500,2101296 - SOCITM Limited,Socitm
Tendring DC,http://statistics.data.gov.uk/id/local-authority-district/22UN,Corporate Services,1300 - Legal Services Service Unit,4503 - Counsels Fees,11/03/2014,7012160-1,1031.34,2111867 - Suffolk County Council,CONDUCT INVESTIGATION
Tendring DC,http://statistics.data.gov.uk/id/local-authority-district/22UN,Corporate Services,1100 - Corporate Director (Corporate Services) and Admin Service Unit,4300 - Printing & Stationery,25/03/2014,7012455-1,4.25,2106628 - Tendring District Council,petty cash
Tendring DC,http://statistics.data.gov.uk/id/local-authority-district/22UN,Corporate Services,6460 - Career Track,4800 - Hospitality,25/03/2014,7012455-10,15.12,2106628 - Tendring District Council,petty cash
Tendring DC,http://statistics.data.gov.uk/id/local-authority-district/22UN,Corporate Services,1800 - Qualification and Other Training,1705 - Training - Other Approved Exps,25/03/2014,7012455-11,12.91,2106628 - Tendring District Council,petty cash
Tendring DC,http://statistics.data.gov.uk/id/local-authority-district/22UN,Corporate Services,1100 - Corporate Director (Corporate Services) and Admin Service Unit,4300 - Printing & Stationery,25/03/2014,7012455-12,4.58,2106628 - Tendring District Council,petty cash
Tendring DC,http://statistics.data.gov.uk/id/local-authority-district/22UN,Corporate Services,6975 - Community Builder,5500 - Miscellaneous Expenses,25/03/2014,7012455-13,16.67,2106628 - Tendring District Council,petty cash
Tendring DC,http://statistics.data.gov.uk/id/local-authority-district/22UN,Corporate Services,6460 - Career Track,4355 - Books & Periodicals,25/03/2014,7012455-14,3.93,2106628 - Tendring District Council,petty cash
Tendring DC,http://statistics.data.gov.uk/id/local-authority-district/22UN,Corporate Services,1760 - IT Direct Service Costs,6325 - Additional Services,25/03/2014,7012455-15,4.03,2106628 - Tendring District Council,petty cash
Tendring DC,http://statistics.data.gov.uk/id/local-authority-district/22UN,Corporate Services,1760 - IT Direct Service Costs,6325 - Additional Services,25/03/2014,7012455-16,21.95,2106628 - Tendring District Council,petty cash
Tendring DC,http://statistics.data.gov.uk/id/local-authority-district/22UN,Corporate Services,1700 - Insurance Recharge Account,4751 - Hardware & Service Maintenance,25/03/2014,7012455-17,13.33,2106628 - Tendring District Council,petty cash
Tendring DC,http://statistics.data.gov.uk/id/local-authority-district/22UN,Corporate Services,1120 - Accountancy Service Unit,5500 - Miscellaneous Expenses,25/03/2014,7012455-18,3.34,2106628 - Tendring District Council,petty cash
Tendring DC,http://statistics.data.gov.uk/id/local-authority-district/22UN,Corporate Services,1760 - IT Direct Service Costs,4751 - Hardware & Service Maintenance,25/03/2014,7012455-19,6.62,2106628 - Tendring District Council,petty cash
Tendring DC,http://statistics.data.gov.uk/id/local-authority-district/22UN,Corporate Services,1100 - Corporate Director (Corporate Services) and Admin Service Unit,4300 - Printing & Stationery,25/03/2014,7012455-2,10.04,2106628 - Tendring District Council,petty cash
Tendring DC,http://statistics.data.gov.uk/id/local-authority-district/22UN,Corporate Services,1760 - IT Direct Service Costs,6325 - Additional Services,25/03/2014,7012455-20,14.66,2106628 - Tendring District Council,petty cash
Tendring DC,http://statistics.data.gov.uk/id/local-authority-district/22UN,Corporate Services,1760 - IT Direct Service Costs,6325 - Additional Services,25/03/2014,7012455-21,6.73,2106628 - Tendring District Council,petty cash
Tendring DC,http://statistics.data.gov.uk/id/local-authority-district/22UN,Corporate Services,1815 - Personnel and Human Resources Issues,1500 - Advertising - Recruitment,25/03/2014,7012455-22,8.19,2106628 - Tendring District Council,petty cash
Tendring DC,http://statistics.data.gov.uk/id/local-authority-district/22UN,Corporate Services,1815 - Personnel and Human Resources Issues,1500 - Advertising - Recruitment,25/03/2014,7012455-23,6.55,2106628 - Tendring District Council,petty cash
Tendring DC,http://statistics.data.gov.uk/id/local-authority-district/22UN,Corporate Services,1100 - Corporate Director (Corporate Services) and Admin Service Unit,5500 - Miscellaneous Expenses,25/03/2014,7012455-24,2.5,2106628 - Tendring District Council,petty cash
Tendring DC,http://statistics.data.gov.uk/id/local-authority-district/22UN,Corporate Services,1100 - Corporate Director (Corporate Services) and Admin Service Unit,4300 - Printing & Stationery,25/03/2014,7012455-3,2.55,2106628 - Tendring District Council,petty cash
Tendring DC,http://statistics.data.gov.uk/id/local-authority-district/22UN,Corporate Services,1120 - Accountancy Service Unit,5500 - Miscellaneous Expenses,25/03/2014,7012455-4,1.29,2106628 - Tendring District Council,petty cash
Tendring DC,http://statistics.data.gov.uk/id/local-authority-district/22UN,Corporate Services,1100 - Corporate Director (Corporate Services) and Admin Service Unit,4300 - Printing & Stationery,25/03/2014,7012455-5,3.32,2106628 - Tendring District Council,petty cash
Tendring DC,http://statistics.data.gov.uk/id/local-authority-district/22UN,Corporate Services,6460 - Career Track,4355 - Books & Periodicals,25/03/2014,7012455-6,6.65,2106628 - Tendring District Council,petty cash
Tendring DC,http://statistics.data.gov.uk/id/local-authority-district/22UN,Corporate Services,1180 - Benefit Fraud Investigation Service Unit,5500 - Miscellaneous Expenses,25/03/2014,7012455-7,23.9,2106628 - Tendring District Council,petty cash
Tendring DC,http://statistics.data.gov.uk/id/local-authority-district/22UN,Corporate Services,1100 - Corporate Director (Corporate Services) and Admin Service Unit,3302 - Car Allowances - Officers,25/03/2014,7012455-8,5.83,2106628 - Tendring District Council,petty cash
Tendring DC,http://statistics.data.gov.uk/id/local-authority-district/22UN,Corporate Services,6980 - Essex Family Needs Project,5500 - Miscellaneous Expenses,25/03/2014,7012455-9,9.97,2106628 - Tendring District Council,petty cash
Tendring DC,http://statistics.data.gov.uk/id/local-authority-district/22UN,Corporate Services,1760 - IT Direct Service Costs,4753 - Computer - Application Software,18/03/2014,2113679-1,53.15,2101521 - Videk Limited,UTP Patch Cables
Tendring DC,http://statistics.data.gov.uk/id/local-authority-district/22UN,Corporate Services,1815 - Personnel and Human Resources Issues,1707 - Training - Workforce Development Courses,18/03/2014,7012238-1,2750,2112451 - VineHR Ltd,SPRINGBOARD PROGRAMME
Tendring DC,http://statistics.data.gov.uk/id/local-authority-district/22UN,Corporate Services,1100 - Corporate Director (Corporate Services) and Admin Service Unit,4716 - Mobile Telephone Costs,25/03/2014,2113771-1,145.05,2101522 - Vodafone Corporate,Vodafone CS
Tendring DC,http://statistics.data.gov.uk/id/local-authority-district/22UN,Corporate Services,1330 - Human Resources Service Unit,4716 - Mobile Telephone Costs,25/03/2014,2113771-2,112.87,2101522 - Vodafone Corporate,Vodafone CS
Tendring DC,http://statistics.data.gov.uk/id/local-authority-district/22UN,Corporate Services,1180 - Benefit Fraud Investigation Service Unit,4716 - Mobile Telephone Costs,25/03/2014,2113771-3,7.61,2101522 - Vodafone Corporate,Vodafone CS
Tendring DC,http://statistics.data.gov.uk/id/local-authority-district/22UN,Corporate Services,6460 - Career Track,4716 - Mobile Telephone Costs,25/03/2014,2113771-4,95.24,2101522 - Vodafone Corporate,Vodafone CS
Tendring DC,http://statistics.data.gov.uk/id/local-authority-district/22UN,Corporate Services,1620 - IT Section Service Unit,4716 - Mobile Telephone Costs,25/03/2014,2113771-5,121.84,2101522 - Vodafone Corporate,Vodafone CS
Tendring DC,http://statistics.data.gov.uk/id/local-authority-district/22UN,Corporate Services,7040 - Civic Ceremonial Expenses,4080 - Materials & Consumables,25/03/2014,2113771-6,21,2101522 - Vodafone Corporate,Vodafone CS
Tendring DC,http://statistics.data.gov.uk/id/local-authority-district/22UN,Corporate Services,6550 - Members - Other Costs,4716 - Mobile Telephone Costs,25/03/2014,2113771-7,45.42,2101522 - Vodafone Corporate,Vodafone CS
Tendring DC,http://statistics.data.gov.uk/id/local-authority-district/22UN,Corporate Services,1330 - Human Resources Service Unit,4355 - Books & Periodicals,18/03/2014,7012236-1,22.49,2104262 - Waterstones Booksellers,ASSESSOR HANDBOOK
Tendring DC,http://statistics.data.gov.uk/id/local-authority-district/22UN,Corporate Services,1100 - Corporate Director (Corporate Services) and Admin Service Unit,4300 - Printing & Stationery,04/03/2014,1057664-1,53.28,2107546 - XMA Limited,XMA
Tendring DC,http://statistics.data.gov.uk/id/local-authority-district/22UN,Life Opportunities,6160 - Princes Theatre,4597 - Hired Services - Payments to Contractors,11/03/2014,7011950-1,50,2100091 - A Warrender,PIANO TUNING FOR THEATRE
Tendring DC,http://statistics.data.gov.uk/id/local-authority-district/22UN,Life Opportunities,5480 - HRA - Repair & Maintenance,2073 - Smoke Alarm Service/Testing,18/03/2014,1057953-1,85.32,2111360 - Aaron Services Ltd,GAS ERVICE & REPAIR-NORTH AREA 13/14
Tendring DC,http://statistics.data.gov.uk/id/local-authority-district/22UN,Life Opportunities,5480 - HRA - Repair & Maintenance,2075 - Gas Service Contract Servicing/Testing (Domestic I,18/03/2014,1057953-2,1591.38,2111360 - Aaron Services Ltd,GAS ERVICE & REPAIR-NORTH AREA 13/14
Tendring DC,http://statistics.data.gov.uk/id/local-authority-district/22UN,Life Opportunities,5480 - HRA - Repair & Maintenance,2076 - Gas Service Contract Other Refurbishment/Repairs (,18/03/2014,1057953-3,10583.13,2111360 - Aaron Services Ltd,GAS ERVICE & REPAIR-NORTH AREA 13/14
Tendring DC,http://statistics.data.gov.uk/id/local-authority-district/22UN,Life Opportunities,5480 - HRA - Repair & Maintenance,2073 - Smoke Alarm Service/Testing,25/03/2014,1058039-1,94.8,2111360 - Aaron Services Ltd,GAS SERVICE & REPAIR-NORTH AREA 13/14
Tendring DC,http://statistics.data.gov.uk/id/local-authority-district/22UN,Life Opportunities,5480 - HRA - Repair & Maintenance,2075 - Gas Service Contract Servicing/Testing (Domestic I,25/03/2014,1058039-2,2083.95,2111360 - Aaron Services Ltd,GAS SERVICE & REPAIR-NORTH AREA 13/14
Tendring DC,http://statistics.data.gov.uk/id/local-authority-district/22UN,Life Opportunities,5480 - HRA - Repair & Maintenance,2076 - Gas Service Contract Other Refurbishment/Repairs (,25/03/2014,1058039-3,8088.12,2111360 - Aaron Services Ltd,GAS SERVICE & REPAIR-NORTH AREA 13/14
Tendring DC,http://statistics.data.gov.uk/id/local-authority-district/22UN,Life Opportunities,5480 - HRA - Repair & Maintenance,2073 - Smoke Alarm Service/Testing,25/03/2014,1058040-1,75.84,2111360 - Aaron Services Ltd,GAS SERVICE & REPAIR-NORTH AREA 13/14
Tendring DC,http://statistics.data.gov.uk/id/local-authority-district/22UN,Life Opportunities,5480 - HRA - Repair & Maintenance,2075 - Gas Service Contract Servicing/Testing (Domestic I,25/03/2014,1058040-2,3271.81,2111360 - Aaron Services Ltd,GAS SERVICE & REPAIR-NORTH AREA 13/14
Tendring DC,http://statistics.data.gov.uk/id/local-authority-district/22UN,Life Opportunities,5480 - HRA - Repair & Maintenance,2076 - Gas Service Contract Other Refurbishment/Repairs (,25/03/2014,1058040-3,9162.06,2111360 - Aaron Services Ltd,GAS SERVICE & REPAIR-NORTH AREA 13/14
Tendring DC,http://statistics.data.gov.uk/id/local-authority-district/22UN,Life Opportunities,4820 - Public Conveniences,4080 - Materials & Consumables,25/03/2014,2113792-1,500,2110651 - ABS Essex Ltd,Interim Payment
Tendring DC,http://statistics.data.gov.uk/id/local-authority-district/22UN,Life Opportunities,8540 - Leisure Centre Clacton,2100 - Building Repairs,18/03/2014,2113611-1,100,2108452 - Access Automation Ltd,Repair Rear Door
Tendring DC,http://statistics.data.gov.uk/id/local-authority-district/22UN,Life Opportunities,5480 - HRA - Repair & Maintenance,2017 - Mechanical Equipment /Extract Fans,04/03/2014,1057633-1,216.3,REDACTED PERSONAL DATA,REDACTED PERSONAL DATA
Tendring DC,http://statistics.data.gov.uk/id/local-authority-district/22UN,Life Opportunities,5480 - HRA - Repair & Maintenance,2017 - Mechanical Equipment /Extract Fans,18/03/2014,1057942-1,216.3,REDACTED PERSONAL DATA,REDACTED PERSONAL DATA
Tendring DC,http://statistics.data.gov.uk/id/local-authority-district/22UN,Life Opportunities,1880 - Office Accommodation Expenses,2100 - Building Repairs,18/03/2014,1057943-1,1669.5,2100072 - Acorn Pressurisation Services Ltd,SAMSON BOILER REPAIRS
Tendring DC,http://statistics.data.gov.uk/id/local-authority-district/22UN,Life Opportunities,1880 - Office Accommodation Expenses,2100 - Building Repairs,04/03/2014,2113417-1,123,2101609 - Adcock Refrigeration & Air Conditioning Ltd,Town hall Leaking Roof
Tendring DC,http://statistics.data.gov.uk/id/local-authority-district/22UN,Life Opportunities,1880 - Office Accommodation Expenses,2100 - Building Repairs,18/03/2014,7012263-1,146.5,2101609 - Adcock Refrigeration & Air Conditioning Ltd,WORKS AT WEELEY
Tendring DC,http://statistics.data.gov.uk/id/local-authority-district/22UN,Life Opportunities,1880 - Office Accommodation Expenses,2510 - Water Services - Unmetered,04/03/2014,1057681-1,496.47,2112518 - Affinity Water Ltd (East Region),WATER-WEELEY AUG 13-JAN 14
Tendring DC,http://statistics.data.gov.uk/id/local-authority-district/22UN,Life Opportunities,1880 - Office Accommodation Expenses,2520 - Sewerage & Environmental Charges,04/03/2014,1057681-2,534.73,2112518 - Affinity Water Ltd (East Region),WATER-WEELEY AUG 13-JAN 14
Tendring DC,http://statistics.data.gov.uk/id/local-authority-district/22UN,Life Opportunities,8540 - Leisure Centre Clacton,2510 - Water Services - Unmetered,18/03/2014,2113614-1,1301.8,2112518 - Affinity Water Ltd (East Region),February
Tendring DC,http://statistics.data.gov.uk/id/local-authority-district/22UN,Life Opportunities,8510 - Dovercourt Swimming Pool & All Weather Facilities,2510 - Water Services - Unmetered,18/03/2014,2113636-1,389.28,2112518 - Affinity Water Ltd (East Region),Water - Feb
Tendring DC,http://statistics.data.gov.uk/id/local-authority-district/22UN,Life Opportunities,8520 - Frinton & Walton Swimming Pool,2510 - Water Services - Unmetered,25/03/2014,7012417-1,544.91,2112518 - Affinity Water Ltd (East Region),affinity water
Tendring DC,http://statistics.data.gov.uk/id/local-authority-district/22UN,Life Opportunities,8520 - Frinton & Walton Swimming Pool,2510 - Water Services - Unmetered,25/03/2014,7012418-1,549.91,2112518 - Affinity Water Ltd (East Region),affinity water
Tendring DC,http://statistics.data.gov.uk/id/local-authority-district/22UN,Life Opportunities,5480 - HRA - Repair & Maintenance,2017 - Mechanical Equipment /Extract Fans,04/03/2014,2113412-1,1121.61,REDACTED PERSONAL DATA,REDACTED PERSONAL DATA
Tendring DC,http://statistics.data.gov.uk/id/local-authority-district/22UN,Life Opportunities,5480 - HRA - Repair & Maintenance,2017 - Mechanical Equipment /Extract Fans,18/03/2014,2113648-1,295.5,REDACTED PERSONAL DATA,REDACTED PERSONAL DATA
Tendring DC,http://statistics.data.gov.uk/id/local-authority-district/22UN,Life Opportunities,5480 - HRA - Repair & Maintenance,2017 - Mechanical Equipment /Extract Fans,25/03/2014,2113831-1,1084.4,REDACTED PERSONAL DATA,REDACTED PERSONAL DATA
Tendring DC,http://statistics.data.gov.uk/id/local-authority-district/22UN,Life Opportunities,5480 - HRA - Repair & Maintenance,2017 - Mechanical Equipment /Extract Fans,18/03/2014,7012206-1,805.5,2110902 - Airtech Environmental Systems,54A WEST STREET
Tendring DC,http://statistics.data.gov.uk/id/local-authority-district/22UN,Life Opportunities,5480 - HRA - Repair & Maintenance,2017 - Mechanical Equipment /Extract Fans,18/03/2014,7012224-1,438.3,REDACTED PERSONAL DATA,REDACTED PERSONAL DATA
Tendring DC,http://statistics.data.gov.uk/id/local-authority-district/22UN,Life Opportunities,5480 - HRA - Repair & Maintenance,2017 - Mechanical Equipment /Extract Fans,18/03/2014,7012269-1,774.5,REDACTED PERSONAL DATA,REDACTED PERSONAL DATA
Tendring DC,http://statistics.data.gov.uk/id/local-authority-district/22UN,Life Opportunities,5480 - HRA - Repair & Maintenance,2017 - Mechanical Equipment /Extract Fans,25/03/2014,7012351-1,625.5,REDACTED PERSONAL DATA,REDACTED PERSONAL DATA
Tendring DC,http://statistics.data.gov.uk/id/local-authority-district/22UN,Life Opportunities,C021 - Cremator replacement,C200 - Main Contractor,18/03/2014,7012227-1,1265,2113215 - Allman Woodcock Limited,WEELEY CREM INTERIM FEE
Tendring DC,http://statistics.data.gov.uk/id/local-authority-district/22UN,Life Opportunities,6740 - Careline,3060 - Running Costs - Diesel,25/03/2014,2113780-1,564.34,2101825 - Allstar Business Solutions Ltd,Fuel Feb 14
Tendring DC,http://statistics.data.gov.uk/id/local-authority-district/22UN,Life Opportunities,6740 - Careline,3060 - Running Costs - Diesel,04/03/2014,7011873-1,554.39,2101825 - Allstar Business Solutions Ltd,ALLSTAR FUEL CARDS - JAN 14
Tendring DC,http://statistics.data.gov.uk/id/local-authority-district/22UN,Life Opportunities,8540 - Leisure Centre Clacton,5300 - Resaleable Items,11/03/2014,7012002-1,227,2112986 - Allwag Promotions Ltd,GYMNASTICS T-SHIRTS
Tendring DC,http://statistics.data.gov.uk/id/local-authority-district/22UN,Life Opportunities,6160 - Princes Theatre,4622 - Hired Services - Artistes and Production Companies,11/03/2014,7012136-1,7330.99,2112808 - Amande Concerts Ltd,RUSSIAN BALLET & OPERA HOUSE
Tendring DC,http://statistics.data.gov.uk/id/local-authority-district/22UN,Life Opportunities,"1580 - Benefits, Revenues and Customer Contact SU",4701 - External Courier Services,18/03/2014,7012265-1,23.6,2111631 - Anglia Courier Express (East Anglia) Ltd,COURIER SERVICE MARCH 14
Tendring DC,http://statistics.data.gov.uk/id/local-authority-district/22UN,Life Opportunities,5860 - Manningtree Sports Centre,4597 - Hired Services - Payments to Contractors,11/03/2014,7011979-1,180,2113500 - Anglia Sports Management Limited,FOOTBALL COACHING FEB 2014
Tendring DC,http://statistics.data.gov.uk/id/local-authority-district/22UN,Life Opportunities,8540 - Leisure Centre Clacton,2100 - Building Repairs,18/03/2014,2113618-1,280,2100096 - Anglia Welding (Fabrications) Co,Weld Hockey Goals
Tendring DC,http://statistics.data.gov.uk/id/local-authority-district/22UN,Life Opportunities,5240 - HRA - Managing Tenancies,5242 - Tenant Relations,11/03/2014,1057762-1,10,REDACTED PERSONAL DATA,REDACTED PERSONAL DATA
Tendring DC,http://statistics.data.gov.uk/id/local-authority-district/22UN,Life Opportunities,1240 - Commercial Management,3311 - Travelling Career Track,25/03/2014,2113954-1,17.8,REDACTED PERSONAL DATA,REDACTED PERSONAL DATA
Tendring DC,http://statistics.data.gov.uk/id/local-authority-district/22UN,Life Opportunities,1880 - Office Accommodation Expenses,2100 - Building Repairs,18/03/2014,7012306-1,71.24,2100048 - Argos Business Solutions,MICROWAVE FOR FACILITIES
Tendring DC,http://statistics.data.gov.uk/id/local-authority-district/22UN,Life Opportunities,1240 - Commercial Management,4300 - Printing & Stationery,18/03/2014,7012307-1,9.57,2100048 - Argos Business Solutions,KETTLE HOUSING REPAIRS
Tendring DC,http://statistics.data.gov.uk/id/local-authority-district/22UN,Life Opportunities,H860 - Disabled Adaptations,C200 - Main Contractor,11/03/2014,1057743-1,1050,REDACTED PERSONAL DATA,REDACTED PERSONAL DATA
Tendring DC,http://statistics.data.gov.uk/id/local-authority-district/22UN,Life Opportunities,H860 - Disabled Adaptations,C200 - Main Contractor,11/03/2014,1057743-2,4075,REDACTED PERSONAL DATA,REDACTED PERSONAL DATA
Tendring DC,http://statistics.data.gov.uk/id/local-authority-district/22UN,Life Opportunities,5480 - HRA - Repair & Maintenance,2088 - Disabled Adaptations,18/03/2014,1057872-1,80,REDACTED PERSONAL DATA,REDACTED PERSONAL DATA
Tendring DC,http://statistics.data.gov.uk/id/local-authority-district/22UN,Life Opportunities,5480 - HRA - Repair & Maintenance,2088 - Disabled Adaptations,18/03/2014,1057872-2,250,REDACTED PERSONAL DATA,REDACTED PERSONAL DATA
Tendring DC,http://statistics.data.gov.uk/id/local-authority-district/22UN,Life Opportunities,H860 - Disabled Adaptations,C200 - Main Contractor,18/03/2014,1057873-1,1100,REDACTED PERSONAL DATA,REDACTED PERSONAL DATA
Tendring DC,http://statistics.data.gov.uk/id/local-authority-district/22UN,Life Opportunities,H860 - Disabled Adaptations,C200 - Main Contractor,18/03/2014,1057873-2,4050,REDACTED PERSONAL DATA,REDACTED PERSONAL DATA
Tendring DC,http://statistics.data.gov.uk/id/local-authority-district/22UN,Life Opportunities,H810 - Electrical Re-wiring,C200 - Main Contractor,18/03/2014,1057874-1,100,REDACTED PERSONAL DATA,REDACTED PERSONAL DATA
Tendring DC,http://statistics.data.gov.uk/id/local-authority-district/22UN,Life Opportunities,H810 - Electrical Re-wiring,C200 - Main Contractor,18/03/2014,1057874-2,242.5,REDACTED PERSONAL DATA,REDACTED PERSONAL DATA
Tendring DC,http://statistics.data.gov.uk/id/local-authority-district/22UN,Life Opportunities,8520 - Frinton & Walton Swimming Pool,5300 - Resaleable Items,04/03/2014,2113400-1,17.1,2100088 - ASA Merchandising Ltd,FWSP - ASA
Tendring DC,http://statistics.data.gov.uk/id/local-authority-district/22UN,Life Opportunities,8520 - Frinton & Walton Swimming Pool,5300 - Resaleable Items,25/03/2014,2113872-1,187.35,2100088 - ASA Merchandising Ltd,ASA Badges
Tendring DC,http://statistics.data.gov.uk/id/local-authority-district/22UN,Life Opportunities,8520 - Frinton & Walton Swimming Pool,5300 - Resaleable Items,11/03/2014,7011998-1,328.45,2100088 - ASA Merchandising Ltd,ASA - LESSON BADGES
Tendring DC,http://statistics.data.gov.uk/id/local-authority-district/22UN,Life Opportunities,8520 - Frinton & Walton Swimming Pool,4400 - Maintenance Under Service Agreements,11/03/2014,7011990-1,81.07,2112129 - Autobar Vending Services Ltd,FWSP AUTOBAR
Tendring DC,http://statistics.data.gov.uk/id/local-authority-district/22UN,Life Opportunities,8510 - Dovercourt Swimming Pool & All Weather Facilities,4400 - Maintenance Under Service Agreements,11/03/2014,7012172-1,141.41,2112129 - Autobar Vending Services Ltd,DOVERCOURT POOL - MAINTENANCE
Tendring DC,http://statistics.data.gov.uk/id/local-authority-district/22UN,Life Opportunities,1880 - Office Accommodation Expenses,4080 - Materials & Consumables,25/03/2014,1058034-1,9.13,2100099 - B & Q Trade Account,B&Q 07/03/2014
Tendring DC,http://statistics.data.gov.uk/id/local-authority-district/22UN,Life Opportunities,1880 - Office Accommodation Expenses,2100 - Building Repairs,04/03/2014,2113404-1,9.98,2100099 - B & Q Trade Account,B&Q Order
Tendring DC,http://statistics.data.gov.uk/id/local-authority-district/22UN,Life Opportunities,1880 - Office Accommodation Expenses,4080 - Materials & Consumables,04/03/2014,2113414-1,25.6,REDACTED PERSONAL DATA,REDACTED PERSONAL DATA
Tendring DC,http://statistics.data.gov.uk/id/local-authority-district/22UN,Life Opportunities,1880 - Office Accommodation Expenses,4080 - Materials & Consumables,18/03/2014,7012253-1,12.52,2109063 - B&Q,HOLLOW WALL ANCHOR/NYLON PLUG/PLASTERBOARD PLUG
Tendring DC,http://statistics.data.gov.uk/id/local-authority-district/22UN,Life Opportunities,"1580 - Benefits, Revenues and Customer Contact SU",4400 - Maintenance Under Service Agreements,04/03/2014,2113420-1,193.8,2112015 - Banctec Ltd,S & M Sesam Pier Ave
Tendring DC,http://statistics.data.gov.uk/id/local-authority-district/22UN,Life Opportunities,1240 - Commercial Management,4300 - Printing & Stationery,18/03/2014,1057869-1,-0.83,2100111 - Banner Business Supplies Ltd,BANNER STAPLER
Tendring DC,http://statistics.data.gov.uk/id/local-authority-district/22UN,Life Opportunities,1240 - Commercial Management,4300 - Printing & Stationery,18/03/2014,2113669-1,69.09,2100111 - Banner Business Supplies Ltd,Stationery Order 28/2/14
Tendring DC,http://statistics.data.gov.uk/id/local-authority-district/22UN,Life Opportunities,5240 - HRA - Managing Tenancies,5242 - Tenant Relations,18/03/2014,2113669-2,5.04,2100111 - Banner Business Supplies Ltd,Stationery Order 28/2/14
Tendring DC,http://statistics.data.gov.uk/id/local-authority-district/22UN,Life Opportunities,6160 - Princes Theatre,4300 - Printing & Stationery,18/03/2014,2113669-3,8.06,2100111 - Banner Business Supplies Ltd,Stationery Order 28/2/14
Tendring DC,http://statistics.data.gov.uk/id/local-authority-district/22UN,Life Opportunities,1240 - Commercial Management,4300 - Printing & Stationery,18/03/2014,2113670-1,0.83,2100111 - Banner Business Supplies Ltd,Banner Stapler
Tendring DC,http://statistics.data.gov.uk/id/local-authority-district/22UN,Life Opportunities,5800 - Brightlingsea Sports Centre,4300 - Printing & Stationery,18/03/2014,2113672-1,24.04,2100111 - Banner Business Supplies Ltd,Stationery Supplies
Tendring DC,http://statistics.data.gov.uk/id/local-authority-district/22UN,Life Opportunities,1240 - Commercial Management,4300 - Printing & Stationery,04/03/2014,7011860-1,50.86,2100111 - Banner Business Supplies Ltd,STATIONERY ORDER
Tendring DC,http://statistics.data.gov.uk/id/local-authority-district/22UN,Life Opportunities,5360 - HRA - Sheltered Units,4300 - Printing & Stationery,04/03/2014,7011860-2,11.63,2100111 - Banner Business Supplies Ltd,STATIONERY ORDER
Tendring DC,http://statistics.data.gov.uk/id/local-authority-district/22UN,Life Opportunities,"1580 - Benefits, Revenues and Customer Contact SU",4300 - Printing & Stationery,04/03/2014,7011860-3,16.7,2100111 - Banner Business Supplies Ltd,STATIONERY ORDER
Tendring DC,http://statistics.data.gov.uk/id/local-authority-district/22UN,Life Opportunities,8540 - Leisure Centre Clacton,4300 - Printing & Stationery,04/03/2014,7011865-1,73.29,2100111 - Banner Business Supplies Ltd,STATIONERY
Tendring DC,http://statistics.data.gov.uk/id/local-authority-district/22UN,Life Opportunities,6480 - Emergency Planning,4040 - Equipment & Tools,04/03/2014,7011867-1,87.83,2100111 - Banner Business Supplies Ltd,FAX MACHINE EMERGENCY PLANNING
Tendring DC,http://statistics.data.gov.uk/id/local-authority-district/22UN,Life Opportunities,1240 - Commercial Management,4300 - Printing & Stationery,11/03/2014,7011961-1,82.86,2100111 - Banner Business Supplies Ltd,BANNER ORDER 240214
Tendring DC,http://statistics.data.gov.uk/id/local-authority-district/22UN,Life Opportunities,5260 - HRA - Rent Collection And Accounting,4312 - Tenancy Stationery,11/03/2014,7011961-2,51.7,2100111 - Banner Business Supplies Ltd,BANNER ORDER 240214
Tendring DC,http://statistics.data.gov.uk/id/local-authority-district/22UN,Life Opportunities,5240 - HRA - Managing Tenancies,5248 - Estate Management Expenses,11/03/2014,7011961-3,18.17,2100111 - Banner Business Supplies Ltd,BANNER ORDER 240214
Tendring DC,http://statistics.data.gov.uk/id/local-authority-district/22UN,Life Opportunities,1210 - Facilities Management Service Unit,4300 - Printing & Stationery,11/03/2014,7011961-4,5.94,2100111 - Banner Business Supplies Ltd,BANNER ORDER 240214
Tendring DC,http://statistics.data.gov.uk/id/local-authority-district/22UN,Life Opportunities,1565 - Careline / CCTV Service Unit,4300 - Printing & Stationery,18/03/2014,7012301-1,49.4,2100111 - Banner Business Supplies Ltd,BANNER CARELINE
Tendring DC,http://statistics.data.gov.uk/id/local-authority-district/22UN,Life Opportunities,1880 - Office Accommodation Expenses,2300 - Energy Costs - Fuel Oil,11/03/2014,2113429-1,1180.68,REDACTED PERSONAL DATA,REDACTED PERSONAL DATA
Tendring DC,http://statistics.data.gov.uk/id/local-authority-district/22UN,Life Opportunities,8540 - Leisure Centre Clacton,2300 - Energy Costs - Fuel Oil,18/03/2014,2113612-1,1527.2,2112681 - BIRLEM Ltd,2300 LT
Tendring DC,http://statistics.data.gov.uk/id/local-authority-district/22UN,Life Opportunities,8540 - Leisure Centre Clacton,2300 - Energy Costs - Fuel Oil,04/03/2014,7011921-1,1870.4,2112681 - BIRLEM Ltd,2800 LT
Tendring DC,http://statistics.data.gov.uk/id/local-authority-district/22UN,Life Opportunities,8540 - Leisure Centre Clacton,2300 - Energy Costs - Fuel Oil,11/03/2014,7011999-1,1752.95,2112681 - BIRLEM Ltd,2701 LT
Tendring DC,http://statistics.data.gov.uk/id/local-authority-district/22UN,Life Opportunities,6355 - Community Activity Network,4597 - Hired Services - Payments to Contractors,18/03/2014,2113622-1,63.2,2101772 - Bishop Sports and Leisure,Netballs
Tendring DC,http://statistics.data.gov.uk/id/local-authority-district/22UN,Life Opportunities,8540 - Leisure Centre Clacton,4000 - Furniture,11/03/2014,7012003-1,127,2101772 - Bishop Sports and Leisure,BALL POOL BALLS
Tendring DC,http://statistics.data.gov.uk/id/local-authority-district/22UN,Life Opportunities,H945 - Empty Homes funding,C402 - Grant payments for Empty Homes scheme,18/03/2014,1057888-1,1020,REDACTED PERSONAL DATA,REDACTED PERSONAL DATA
Tendring DC,http://statistics.data.gov.uk/id/local-authority-district/22UN,Life Opportunities,H810 - Electrical Re-wiring,C200 - Main Contractor,18/03/2014,1057946-1,200,2100155 - Blue Flame (Colchester) Ltd,SPENDELLS HOUSE
Tendring DC,http://statistics.data.gov.uk/id/local-authority-district/22UN,Life Opportunities,H810 - Electrical Re-wiring,C200 - Main Contractor,18/03/2014,1057947-1,865,REDACTED PERSONAL DATA,REDACTED PERSONAL DATA
Tendring DC,http://statistics.data.gov.uk/id/local-authority-district/22UN,Life Opportunities,5480 - HRA - Repair & Maintenance,2076 - Gas Service Contract Other Refurbishment/Repairs (,25/03/2014,1057991-1,65,REDACTED PERSONAL DATA,REDACTED PERSONAL DATA
Tendring DC,http://statistics.data.gov.uk/id/local-authority-district/22UN,Life Opportunities,H805 - Major Refurbishment of Heating,C200 - Main Contractor,25/03/2014,1058036-1,49675.95,2100155 - Blue Flame (Colchester) Ltd,HEATING REFURBISHMENT & UPGRADE TERM CONTRACT
Tendring DC,http://statistics.data.gov.uk/id/local-authority-district/22UN,Life Opportunities,6160 - Princes Theatre,2100 - Building Repairs,18/03/2014,2113561-1,92.98,REDACTED PERSONAL DATA,REDACTED PERSONAL DATA
Tendring DC,http://statistics.data.gov.uk/id/local-authority-district/22UN,Life Opportunities,5240 - HRA - Managing Tenancies,5242 - Tenant Relations,11/03/2014,1057763-1,10,REDACTED PERSONAL DATA,REDACTED PERSONAL DATA
Tendring DC,http://statistics.data.gov.uk/id/local-authority-district/22UN,Life Opportunities,5480 - HRA - Repair & Maintenance,2088 - Disabled Adaptations,25/03/2014,7012349-1,458,REDACTED PERSONAL DATA,REDACTED PERSONAL DATA
Tendring DC,http://statistics.data.gov.uk/id/local-authority-district/22UN,Life Opportunities,5240 - HRA - Managing Tenancies,6625 - Tenants Compensation Scheme,25/03/2014,7012438-1,829,REDACTED PERSONAL DATA,REDACTED PERSONAL DATA
Tendring DC,http://statistics.data.gov.uk/id/local-authority-district/22UN,Life Opportunities,5880 - Management Of Sport & Leisure Facilities,5166 - Marketing and Promotion,18/03/2014,2113674-1,155,2102522 - Brightlingsea Town Council,Advert in Brightlingsea Town Guide
Tendring DC,http://statistics.data.gov.uk/id/local-authority-district/22UN,Life Opportunities,5440 - HRA - Communal Electricity,2304 - Energy Costs - Electricity,04/03/2014,1057660-1,258,REDACTED PERSONAL DATA,REDACTED PERSONAL DATA
Tendring DC,http://statistics.data.gov.uk/id/local-authority-district/22UN,Life Opportunities,1880 - Office Accommodation Expenses,2308 - Energy Costs - Gas (Including LPG),25/03/2014,2113738-1,63.27,2100197 - British Gas Trading Ltd,Clay Hall 14/11 to 6/3/14
Tendring DC,http://statistics.data.gov.uk/id/local-authority-district/22UN,Life Opportunities,8520 - Frinton & Walton Swimming Pool,2304 - Energy Costs - Electricity,25/03/2014,2113778-1,448.97,2100197 - British Gas Trading Ltd,FWSP - British Gas
Tendring DC,http://statistics.data.gov.uk/id/local-authority-district/22UN,Life Opportunities,1880 - Office Accommodation Expenses,2304 - Energy Costs - Electricity,25/03/2014,2113782-1,148.26,2100197 - British Gas Trading Ltd,British Gas Electricity Feb 14
Tendring DC,http://statistics.data.gov.uk/id/local-authority-district/22UN,Life Opportunities,1860 - Depots General,2304 - Energy Costs - Electricity,25/03/2014,2113782-2,614.45,2100197 - British Gas Trading Ltd,British Gas Electricity Feb 14
Tendring DC,http://statistics.data.gov.uk/id/local-authority-district/22UN,Life Opportunities,1860 - Depots General,2304 - Energy Costs - Electricity,25/03/2014,2113782-3,69.39,2100197 - British Gas Trading Ltd,British Gas Electricity Feb 14
Tendring DC,http://statistics.data.gov.uk/id/local-authority-district/22UN,Life Opportunities,1880 - Office Accommodation Expenses,2304 - Energy Costs - Electricity,25/03/2014,2113782-4,294.68,2100197 - British Gas Trading Ltd,British Gas Electricity Feb 14
Tendring DC,http://statistics.data.gov.uk/id/local-authority-district/22UN,Life Opportunities,1880 - Office Accommodation Expenses,2304 - Energy Costs - Electricity,25/03/2014,2113782-5,169.37,2100197 - British Gas Trading Ltd,British Gas Electricity Feb 14
Tendring DC,http://statistics.data.gov.uk/id/local-authority-district/22UN,Life Opportunities,1880 - Office Accommodation Expenses,2304 - Energy Costs - Electricity,25/03/2014,2113782-6,143.04,2100197 - British Gas Trading Ltd,British Gas Electricity Feb 14
Tendring DC,http://statistics.data.gov.uk/id/local-authority-district/22UN,Life Opportunities,1880 - Office Accommodation Expenses,2304 - Energy Costs - Electricity,25/03/2014,2113782-7,1756.31,2100197 - British Gas Trading Ltd,British Gas Electricity Feb 14
Tendring DC,http://statistics.data.gov.uk/id/local-authority-district/22UN,Life Opportunities,1860 - Depots General,2304 - Energy Costs - Electricity,25/03/2014,2113782-8,496.94,2100197 - British Gas Trading Ltd,British Gas Electricity Feb 14
Tendring DC,http://statistics.data.gov.uk/id/local-authority-district/22UN,Life Opportunities,1880 - Office Accommodation Expenses,2304 - Energy Costs - Electricity,25/03/2014,2113782-9,845.26,2100197 - British Gas Trading Ltd,British Gas Electricity Feb 14
Tendring DC,http://statistics.data.gov.uk/id/local-authority-district/22UN,Life Opportunities,1880 - Office Accommodation Expenses,2304 - Energy Costs - Electricity,25/03/2014,2113783-1,35.49,2100197 - British Gas Trading Ltd,British Gas Jan 14 Electricity
Tendring DC,http://statistics.data.gov.uk/id/local-authority-district/22UN,Life Opportunities,1860 - Depots General,2304 - Energy Costs - Electricity,25/03/2014,2113783-10,481,2100197 - British Gas Trading Ltd,British Gas Jan 14 Electricity
Tendring DC,http://statistics.data.gov.uk/id/local-authority-district/22UN,Life Opportunities,1880 - Office Accommodation Expenses,2304 - Energy Costs - Electricity,25/03/2014,2113783-11,1132.86,2100197 - British Gas Trading Ltd,British Gas Jan 14 Electricity
Tendring DC,http://statistics.data.gov.uk/id/local-authority-district/22UN,Life Opportunities,1880 - Office Accommodation Expenses,2304 - Energy Costs - Electricity,25/03/2014,2113783-2,1035.79,2100197 - British Gas Trading Ltd,British Gas Jan 14 Electricity
Tendring DC,http://statistics.data.gov.uk/id/local-authority-district/22UN,Life Opportunities,1880 - Office Accommodation Expenses,2304 - Energy Costs - Electricity,25/03/2014,2113783-3,171.71,2100197 - British Gas Trading Ltd,British Gas Jan 14 Electricity
Tendring DC,http://statistics.data.gov.uk/id/local-authority-district/22UN,Life Opportunities,1860 - Depots General,2304 - Energy Costs - Electricity,25/03/2014,2113783-4,743.9,2100197 - British Gas Trading Ltd,British Gas Jan 14 Electricity
Tendring DC,http://statistics.data.gov.uk/id/local-authority-district/22UN,Life Opportunities,1860 - Depots General,2304 - Energy Costs - Electricity,25/03/2014,2113783-5,75.94,2100197 - British Gas Trading Ltd,British Gas Jan 14 Electricity
Tendring DC,http://statistics.data.gov.uk/id/local-authority-district/22UN,Life Opportunities,1880 - Office Accommodation Expenses,2304 - Energy Costs - Electricity,25/03/2014,2113783-6,298.44,2100197 - British Gas Trading Ltd,British Gas Jan 14 Electricity
Tendring DC,http://statistics.data.gov.uk/id/local-authority-district/22UN,Life Opportunities,1880 - Office Accommodation Expenses,2304 - Energy Costs - Electricity,25/03/2014,2113783-7,44.17,2100197 - British Gas Trading Ltd,British Gas Jan 14 Electricity
Tendring DC,http://statistics.data.gov.uk/id/local-authority-district/22UN,Life Opportunities,1880 - Office Accommodation Expenses,2304 - Energy Costs - Electricity,25/03/2014,2113783-8,99.04,2100197 - British Gas Trading Ltd,British Gas Jan 14 Electricity
Tendring DC,http://statistics.data.gov.uk/id/local-authority-district/22UN,Life Opportunities,1880 - Office Accommodation Expenses,2304 - Energy Costs - Electricity,25/03/2014,2113783-9,1907.12,2100197 - British Gas Trading Ltd,British Gas Jan 14 Electricity
Tendring DC,http://statistics.data.gov.uk/id/local-authority-district/22UN,Life Opportunities,5340 - HRA - Communal Central Heating,2304 - Energy Costs - Electricity,25/03/2014,2113784-1,1781.12,2100197 - British Gas Trading Ltd,Com Elec Feb 14
Tendring DC,http://statistics.data.gov.uk/id/local-authority-district/22UN,Life Opportunities,5360 - HRA - Sheltered Units,2304 - Energy Costs - Electricity,25/03/2014,2113784-2,53.5,2100197 - British Gas Trading Ltd,Com Elec Feb 14
Tendring DC,http://statistics.data.gov.uk/id/local-authority-district/22UN,Life Opportunities,5440 - HRA - Communal Electricity,2304 - Energy Costs - Electricity,25/03/2014,2113784-3,7113.56,2100197 - British Gas Trading Ltd,Com Elec Feb 14
Tendring DC,http://statistics.data.gov.uk/id/local-authority-district/22UN,Life Opportunities,7600 - Tourist Information Centres,2304 - Energy Costs - Electricity,25/03/2014,2113784-4,10.9,2100197 - British Gas Trading Ltd,Com Elec Feb 14
Tendring DC,http://statistics.data.gov.uk/id/local-authority-district/22UN,Life Opportunities,5440 - HRA - Communal Electricity,2304 - Energy Costs - Electricity,25/03/2014,2113784-5,1086.32,2100197 - British Gas Trading Ltd,Com Elec Feb 14
Tendring DC,http://statistics.data.gov.uk/id/local-authority-district/22UN,Life Opportunities,5820 - Harwich Sports Centre,2304 - Energy Costs - Electricity,25/03/2014,2113784-6,548.38,2100197 - British Gas Trading Ltd,Com Elec Feb 14
Tendring DC,http://statistics.data.gov.uk/id/local-authority-district/22UN,Life Opportunities,5860 - Manningtree Sports Centre,2304 - Energy Costs - Electricity,25/03/2014,2113784-7,704.56,2100197 - British Gas Trading Ltd,Com Elec Feb 14
Tendring DC,http://statistics.data.gov.uk/id/local-authority-district/22UN,Life Opportunities,1880 - Office Accommodation Expenses,2304 - Energy Costs - Electricity,25/03/2014,2113785-1,640.64,2100197 - British Gas Trading Ltd,British Gas - July 13
Tendring DC,http://statistics.data.gov.uk/id/local-authority-district/22UN,Life Opportunities,1880 - Office Accommodation Expenses,2304 - Energy Costs - Electricity,25/03/2014,2113785-10,871.59,2100197 - British Gas Trading Ltd,British Gas - July 13
Tendring DC,http://statistics.data.gov.uk/id/local-authority-district/22UN,Life Opportunities,1880 - Office Accommodation Expenses,2304 - Energy Costs - Electricity,25/03/2014,2113785-2,64.27,2100197 - British Gas Trading Ltd,British Gas - July 13
Tendring DC,http://statistics.data.gov.uk/id/local-authority-district/22UN,Life Opportunities,1880 - Office Accommodation Expenses,2304 - Energy Costs - Electricity,25/03/2014,2113785-3,107.29,2100197 - British Gas Trading Ltd,British Gas - July 13
Tendring DC,http://statistics.data.gov.uk/id/local-authority-district/22UN,Life Opportunities,1860 - Depots General,2304 - Energy Costs - Electricity,25/03/2014,2113785-4,385.08,2100197 - British Gas Trading Ltd,British Gas - July 13
Tendring DC,http://statistics.data.gov.uk/id/local-authority-district/22UN,Life Opportunities,1860 - Depots General,2304 - Energy Costs - Electricity,25/03/2014,2113785-5,22.02,2100197 - British Gas Trading Ltd,British Gas - July 13
Tendring DC,http://statistics.data.gov.uk/id/local-authority-district/22UN,Life Opportunities,1880 - Office Accommodation Expenses,2304 - Energy Costs - Electricity,25/03/2014,2113785-6,241.97,2100197 - British Gas Trading Ltd,British Gas - July 13
Tendring DC,http://statistics.data.gov.uk/id/local-authority-district/22UN,Life Opportunities,1880 - Office Accommodation Expenses,2304 - Energy Costs - Electricity,25/03/2014,2113785-7,174.99,2100197 - British Gas Trading Ltd,British Gas - July 13
Tendring DC,http://statistics.data.gov.uk/id/local-authority-district/22UN,Life Opportunities,1880 - Office Accommodation Expenses,2304 - Energy Costs - Electricity,25/03/2014,2113785-8,94.8,2100197 - British Gas Trading Ltd,British Gas - July 13
Tendring DC,http://statistics.data.gov.uk/id/local-authority-district/22UN,Life Opportunities,1880 - Office Accommodation Expenses,2304 - Energy Costs - Electricity,25/03/2014,2113785-9,856.74,2100197 - British Gas Trading Ltd,British Gas - July 13
Tendring DC,http://statistics.data.gov.uk/id/local-authority-district/22UN,Life Opportunities,5440 - HRA - Communal Electricity,2304 - Energy Costs - Electricity,25/03/2014,2113829-1,33.43,REDACTED PERSONAL DATA,REDACTED PERSONAL DATA
Tendring DC,http://statistics.data.gov.uk/id/local-authority-district/22UN,Life Opportunities,8540 - Leisure Centre Clacton,4597 - Hired Services - Payments to Contractors,25/03/2014,7012390-1,273,2100148 - British Gymnastics,lc scheme bgb1 jan - april
Tendring DC,http://statistics.data.gov.uk/id/local-authority-district/22UN,Life Opportunities,6740 - Careline,4710 - Telephones - Charges,04/03/2014,1057678-1,106.92,2100168 - British Telecommunications plc,BT BILL 927
Tendring DC,http://statistics.data.gov.uk/id/local-authority-district/22UN,Life Opportunities,6740 - Careline,4710 - Telephones - Charges,04/03/2014,1057679-1,58.68,2100168 - British Telecommunications plc,BT BILL 718
Tendring DC,http://statistics.data.gov.uk/id/local-authority-district/22UN,Life Opportunities,7000 - CCTV,4718 - Fixed Communication Lines,11/03/2014,1057830-1,49.5,2100168 - British Telecommunications plc,1 FEB-30 APR 14 RENTAL CHARGES
Tendring DC,http://statistics.data.gov.uk/id/local-authority-district/22UN,Life Opportunities,7000 - CCTV,4718 - Fixed Communication Lines,11/03/2014,1057831-1,103.5,2100168 - British Telecommunications plc,1 FEB-30 PAR LINE RENTAL
Tendring DC,http://statistics.data.gov.uk/id/local-authority-district/22UN,Life Opportunities,H790 - Upgrade Lifts,C200 - Main Contractor,11/03/2014,1057832-1,127.48,2100168 - British Telecommunications plc,01255 507807
Tendring DC,http://statistics.data.gov.uk/id/local-authority-district/22UN,Life Opportunities,H790 - Upgrade Lifts,C200 - Main Contractor,11/03/2014,1057833-1,127.48,2100168 - British Telecommunications plc,01255 553790
Tendring DC,http://statistics.data.gov.uk/id/local-authority-district/22UN,Life Opportunities,4680 - Abandoned Vehicles,4597 - Hired Services - Payments to Contractors,25/03/2014,1058030-1,87.28,2100168 - British Telecommunications plc,BT ONE BILL FEB 14
Tendring DC,http://statistics.data.gov.uk/id/local-authority-district/22UN,Life Opportunities,5360 - HRA - Sheltered Units,4710 - Telephones - Charges,25/03/2014,1058030-10,35.7,2100168 - British Telecommunications plc,BT ONE BILL FEB 14
Tendring DC,http://statistics.data.gov.uk/id/local-authority-district/22UN,Life Opportunities,5360 - HRA - Sheltered Units,4710 - Telephones - Charges,25/03/2014,1058030-11,35.7,2100168 - British Telecommunications plc,BT ONE BILL FEB 14
Tendring DC,http://statistics.data.gov.uk/id/local-authority-district/22UN,Life Opportunities,5360 - HRA - Sheltered Units,4710 - Telephones - Charges,25/03/2014,1058030-12,142.94,2100168 - British Telecommunications plc,BT ONE BILL FEB 14
Tendring DC,http://statistics.data.gov.uk/id/local-authority-district/22UN,Life Opportunities,5360 - HRA - Sheltered Units,4710 - Telephones - Charges,25/03/2014,1058030-13,98.8,2100168 - British Telecommunications plc,BT ONE BILL FEB 14
Tendring DC,http://statistics.data.gov.uk/id/local-authority-district/22UN,Life Opportunities,5360 - HRA - Sheltered Units,4710 - Telephones - Charges,25/03/2014,1058030-14,75.21,2100168 - British Telecommunications plc,BT ONE BILL FEB 14
Tendring DC,http://statistics.data.gov.uk/id/local-authority-district/22UN,Life Opportunities,5360 - HRA - Sheltered Units,4710 - Telephones - Charges,25/03/2014,1058030-15,35.7,2100168 - British Telecommunications plc,BT ONE BILL FEB 14
Tendring DC,http://statistics.data.gov.uk/id/local-authority-district/22UN,Life Opportunities,5360 - HRA - Sheltered Units,4710 - Telephones - Charges,25/03/2014,1058030-16,50.73,2100168 - British Telecommunications plc,BT ONE BILL FEB 14
Tendring DC,http://statistics.data.gov.uk/id/local-authority-district/22UN,Life Opportunities,5360 - HRA - Sheltered Units,4710 - Telephones - Charges,25/03/2014,1058030-17,46.8,2100168 - British Telecommunications plc,BT ONE BILL FEB 14
Tendring DC,http://statistics.data.gov.uk/id/local-authority-district/22UN,Life Opportunities,5360 - HRA - Sheltered Units,4710 - Telephones - Charges,25/03/2014,1058030-18,101.1,2100168 - British Telecommunications plc,BT ONE BILL FEB 14
Tendring DC,http://statistics.data.gov.uk/id/local-authority-district/22UN,Life Opportunities,6740 - Careline,4710 - Telephones - Charges,25/03/2014,1058030-19,155.53,2100168 - British Telecommunications plc,BT ONE BILL FEB 14
Tendring DC,http://statistics.data.gov.uk/id/local-authority-district/22UN,Life Opportunities,1880 - Office Accommodation Expenses,4632 - Security,25/03/2014,1058030-2,528.48,2100168 - British Telecommunications plc,BT ONE BILL FEB 14
Tendring DC,http://statistics.data.gov.uk/id/local-authority-district/22UN,Life Opportunities,7620 - Air Show,4710 - Telephones - Charges,25/03/2014,1058030-20,160.05,2100168 - British Telecommunications plc,BT ONE BILL FEB 14
Tendring DC,http://statistics.data.gov.uk/id/local-authority-district/22UN,Life Opportunities,6740 - Careline,4710 - Telephones - Charges,25/03/2014,1058030-21,1867.68,2100168 - British Telecommunications plc,BT ONE BILL FEB 14
Tendring DC,http://statistics.data.gov.uk/id/local-authority-district/22UN,Life Opportunities,"1580 - Benefits, Revenues and Customer Contact SU",4718 - Fixed Communication Lines,25/03/2014,1058030-22,141.56,2100168 - British Telecommunications plc,BT ONE BILL FEB 14
Tendring DC,http://statistics.data.gov.uk/id/local-authority-district/22UN,Life Opportunities,6740 - Careline,4710 - Telephones - Charges,25/03/2014,1058030-23,77.44,2100168 - British Telecommunications plc,BT ONE BILL FEB 14
Tendring DC,http://statistics.data.gov.uk/id/local-authority-district/22UN,Life Opportunities,1040 - Regeneration Service Unit,4730 - Fax Machine,25/03/2014,1058030-24,38.19,2100168 - British Telecommunications plc,BT ONE BILL FEB 14
Tendring DC,http://statistics.data.gov.uk/id/local-authority-district/22UN,Life Opportunities,1661 - Other Apportionable Overheads - Corporate Support,4700 - Postage,25/03/2014,1058030-3,38.03,2100168 - British Telecommunications plc,BT ONE BILL FEB 14
Tendring DC,http://statistics.data.gov.uk/id/local-authority-district/22UN,Life Opportunities,1320 - Print Unit Service Unit,4710 - Telephones - Charges,25/03/2014,1058030-4,35.9,2100168 - British Telecommunications plc,BT ONE BILL FEB 14
Tendring DC,http://statistics.data.gov.uk/id/local-authority-district/22UN,Life Opportunities,1560 - Cashiers Service Unit,4710 - Telephones - Charges,25/03/2014,1058030-5,235.8,2100168 - British Telecommunications plc,BT ONE BILL FEB 14
Tendring DC,http://statistics.data.gov.uk/id/local-authority-district/22UN,Life Opportunities,1670 - Engineering Services Management,4710 - Telephones - Charges,25/03/2014,1058030-6,36.36,2100168 - British Telecommunications plc,BT ONE BILL FEB 14
Tendring DC,http://statistics.data.gov.uk/id/local-authority-district/22UN,Life Opportunities,1840 - Central Telephone Service,4710 - Telephones - Charges,25/03/2014,1058030-7,113.55,2100168 - British Telecommunications plc,BT ONE BILL FEB 14
Tendring DC,http://statistics.data.gov.uk/id/local-authority-district/22UN,Life Opportunities,4780 - Rodent & Pest Control,4710 - Telephones - Charges,25/03/2014,1058030-8,159.45,2100168 - British Telecommunications plc,BT ONE BILL FEB 14
Tendring DC,http://statistics.data.gov.uk/id/local-authority-district/22UN,Life Opportunities,5360 - HRA - Sheltered Units,4710 - Telephones - Charges,25/03/2014,1058030-9,35.7,2100168 - British Telecommunications plc,BT ONE BILL FEB 14
Tendring DC,http://statistics.data.gov.uk/id/local-authority-district/22UN,Life Opportunities,1880 - Office Accommodation Expenses,4710 - Telephones - Charges,25/03/2014,1058031-1,863.28,2100168 - British Telecommunications plc,833435 BT MARCH 14
Tendring DC,http://statistics.data.gov.uk/id/local-authority-district/22UN,Life Opportunities,1840 - Central Telephone Service,4710 - Telephones - Charges,18/03/2014,2113638-1,1153.32,2100168 - British Telecommunications plc,253100 1/3 to 31/5/14
Tendring DC,http://statistics.data.gov.uk/id/local-authority-district/22UN,Life Opportunities,1840 - Central Telephone Service,4710 - Telephones - Charges,04/03/2014,7011920-1,5646.06,2100168 - British Telecommunications plc,BT 686 000 NOV 13 / FEB 14
Tendring DC,http://statistics.data.gov.uk/id/local-authority-district/22UN,Life Opportunities,8530 - Brightlingsea Swimming Pool,4710 - Telephones - Charges,11/03/2014,7011974-1,83.84,2100168 - British Telecommunications plc,01206 303067
Tendring DC,http://statistics.data.gov.uk/id/local-authority-district/22UN,Life Opportunities,5240 - HRA - Managing Tenancies,5249 - Housing ASB Expenses,25/03/2014,7012421-1,94.8,2100168 - British Telecommunications plc,1 mar - 31 may bt asb line
Tendring DC,http://statistics.data.gov.uk/id/local-authority-district/22UN,Life Opportunities,H880 - New Build Initiatives and Acquisitions,C200 - Main Contractor,18/03/2014,1057954-1,63043.49,2113591 - Brooks and Wood Ltd,HASTINGS PLACE NEW BUILD
Tendring DC,http://statistics.data.gov.uk/id/local-authority-district/22UN,Life Opportunities,8150 - Office Cleaning,4080 - Materials & Consumables,04/03/2014,1057651-1,237.63,2101624 - Bunzl,BUNZL ORDER 28/1/14
Tendring DC,http://statistics.data.gov.uk/id/local-authority-district/22UN,Life Opportunities,8150 - Office Cleaning,4080 - Materials & Consumables,04/03/2014,1057652-1,264.71,2101624 - Bunzl,BUNZL ORDER 29/1/14
Tendring DC,http://statistics.data.gov.uk/id/local-authority-district/22UN,Life Opportunities,8150 - Office Cleaning,4080 - Materials & Consumables,18/03/2014,1057866-1,-0.81,2101624 - Bunzl,MOPHEAD PUSH REFUND
Tendring DC,http://statistics.data.gov.uk/id/local-authority-district/22UN,Life Opportunities,8150 - Office Cleaning,4080 - Materials & Consumables,18/03/2014,1057915-1,448.28,2101624 - Bunzl,BUNZL ORDER 25/2/14
Tendring DC,http://statistics.data.gov.uk/id/local-authority-district/22UN,Life Opportunities,8520 - Frinton & Walton Swimming Pool,2700 - Cleaning Materials,04/03/2014,2113398-1,119.32,2101624 - Bunzl,FWSP - Bunzl
Tendring DC,http://statistics.data.gov.uk/id/local-authority-district/22UN,Life Opportunities,8150 - Office Cleaning,4080 - Materials & Consumables,04/03/2014,2113418-1,631.03,2101624 - Bunzl,Cleaning Equipment for Cleaners
Tendring DC,http://statistics.data.gov.uk/id/local-authority-district/22UN,Life Opportunities,8540 - Leisure Centre Clacton,2700 - Cleaning Materials,18/03/2014,2113619-1,14.7,2101624 - Bunzl,Cleaning Materials
Tendring DC,http://statistics.data.gov.uk/id/local-authority-district/22UN,Life Opportunities,8540 - Leisure Centre Clacton,2700 - Cleaning Materials,18/03/2014,2113620-1,73.99,2101624 - Bunzl,Cleaning materials
Tendring DC,http://statistics.data.gov.uk/id/local-authority-district/22UN,Life Opportunities,5360 - HRA - Sheltered Units,2700 - Cleaning Materials,18/03/2014,2113637-1,11.45,2101624 - Bunzl,Deck Scrub Brushes Sheltered
Tendring DC,http://statistics.data.gov.uk/id/local-authority-district/22UN,Life Opportunities,5360 - HRA - Sheltered Units,2700 - Cleaning Materials,04/03/2014,7011900-1,65.7,2101624 - Bunzl,BUNZL MOPS & HANDLES SHELTERED
Tendring DC,http://statistics.data.gov.uk/id/local-authority-district/22UN,Life Opportunities,5800 - Brightlingsea Sports Centre,4000 - Furniture,11/03/2014,7011981-1,105.62,2101624 - Bunzl,CLEANING SUPPLIES
Tendring DC,http://statistics.data.gov.uk/id/local-authority-district/22UN,Life Opportunities,8150 - Office Cleaning,4080 - Materials & Consumables,11/03/2014,7012017-1,51.9,2101624 - Bunzl,BUNZL ORDER WEELEY
Tendring DC,http://statistics.data.gov.uk/id/local-authority-district/22UN,Life Opportunities,5360 - HRA - Sheltered Units,2700 - Cleaning Materials,11/03/2014,7012163-1,56.7,2101624 - Bunzl,EXEL MOPS
Tendring DC,http://statistics.data.gov.uk/id/local-authority-district/22UN,Life Opportunities,8150 - Office Cleaning,4080 - Materials & Consumables,11/03/2014,7012166-1,16.16,2101624 - Bunzl,BUNZL - DISINFECTANT
Tendring DC,http://statistics.data.gov.uk/id/local-authority-district/22UN,Life Opportunities,8520 - Frinton & Walton Swimming Pool,2700 - Cleaning Materials,18/03/2014,7012249-1,147.03,2101624 - Bunzl,FWSP - BUNZL
Tendring DC,http://statistics.data.gov.uk/id/local-authority-district/22UN,Life Opportunities,5860 - Manningtree Sports Centre,2700 - Cleaning Materials,25/03/2014,7012373-1,12.28,2101624 - Bunzl,cleaning products
Tendring DC,http://statistics.data.gov.uk/id/local-authority-district/22UN,Life Opportunities,5860 - Manningtree Sports Centre,2700 - Cleaning Materials,25/03/2014,7012376-1,226.61,2101624 - Bunzl,cleaning products
Tendring DC,http://statistics.data.gov.uk/id/local-authority-district/22UN,Life Opportunities,5820 - Harwich Sports Centre,2700 - Cleaning Materials,25/03/2014,7012377-1,44.57,2101624 - Bunzl,cleaning materials
Tendring DC,http://statistics.data.gov.uk/id/local-authority-district/22UN,Life Opportunities,8540 - Leisure Centre Clacton,2700 - Cleaning Materials,25/03/2014,7012384-1,189.1,2101624 - Bunzl,cleaning materials
Tendring DC,http://statistics.data.gov.uk/id/local-authority-district/22UN,Life Opportunities,8540 - Leisure Centre Clacton,2100 - Building Repairs,11/03/2014,1057748-1,277,2100240 - C & W Fencing Ltd,FENCING REPAIRS
Tendring DC,http://statistics.data.gov.uk/id/local-authority-district/22UN,Life Opportunities,8540 - Leisure Centre Clacton,2100 - Building Repairs,04/03/2014,7011925-1,241.16,2100280 - C H Lindsey & Son Ltd,SPA COOLING FAN
Tendring DC,http://statistics.data.gov.uk/id/local-authority-district/22UN,Life Opportunities,8510 - Dovercourt Swimming Pool & All Weather Facilities,2100 - Building Repairs,25/03/2014,7012380-1,28.43,2100280 - C H Lindsey & Son Ltd,lindseys fuses dovercourt
Tendring DC,http://statistics.data.gov.uk/id/local-authority-district/22UN,Life Opportunities,8540 - Leisure Centre Clacton,2100 - Building Repairs,25/03/2014,7012387-1,733.53,2100280 - C H Lindsey & Son Ltd,safety values w/s boiler room
Tendring DC,http://statistics.data.gov.uk/id/local-authority-district/22UN,Life Opportunities,8540 - Leisure Centre Clacton,9200 - Course Income,11/03/2014,1057808-1,30,2109638 - C V Tillyer,
Tendring DC,http://statistics.data.gov.uk/id/local-authority-district/22UN,Life Opportunities,6160 - Princes Theatre,4105 - Bar/Catering Expenses,04/03/2014,1057659-1,170,2112687 - Cabana Soft Drinks (Essex) Ltd,SOFT DRINKS FOR THEATRE BAR
Tendring DC,http://statistics.data.gov.uk/id/local-authority-district/22UN,Life Opportunities,1650 - Building Services Service Unit,4400 - Maintenance Under Service Agreements,18/03/2014,2113283-1,2.92,2100291 - Canon (UK) Ltd,copies jan 14
Tendring DC,http://statistics.data.gov.uk/id/local-authority-district/22UN,Life Opportunities,1650 - Building Services Service Unit,4400 - Maintenance Under Service Agreements,18/03/2014,7012246-1,50.11,2100291 - Canon (UK) Ltd,SERVICE 1.4.14 - 30.4.14
Tendring DC,http://statistics.data.gov.uk/id/local-authority-district/22UN,Life Opportunities,1650 - Building Services Service Unit,4400 - Maintenance Under Service Agreements,18/03/2014,7012247-1,4.54,2100291 - Canon (UK) Ltd,COPIES FEB 14
Tendring DC,http://statistics.data.gov.uk/id/local-authority-district/22UN,Life Opportunities,5240 - HRA - Managing Tenancies,5242 - Tenant Relations,04/03/2014,1057653-1,399,REDACTED PERSONAL DATA,REDACTED PERSONAL DATA
Tendring DC,http://statistics.data.gov.uk/id/local-authority-district/22UN,Life Opportunities,5140 - Homelessness,4683 - Other Homelessness Expenses,11/03/2014,1057786-1,500,REDACTED PERSONAL DATA,REDACTED PERSONAL DATA
Tendring DC,http://statistics.data.gov.uk/id/local-authority-district/22UN,Life Opportunities,5240 - HRA - Managing Tenancies,5242 - Tenant Relations,18/03/2014,7012231-1,82.5,2100243 - Caterway,BUFFET X 22 @ WEELEY COUNCIL
Tendring DC,http://statistics.data.gov.uk/id/local-authority-district/22UN,Life Opportunities,5240 - HRA - Managing Tenancies,5242 - Tenant Relations,25/03/2014,7012440-1,97.5,2100243 - Caterway,buffet for 26 people (weeley)
Tendring DC,http://statistics.data.gov.uk/id/local-authority-district/22UN,Life Opportunities,5240 - HRA - Managing Tenancies,5242 - Tenant Relations,11/03/2014,1057764-1,10,REDACTED PERSONAL DATA,REDACTED PERSONAL DATA
Tendring DC,http://statistics.data.gov.uk/id/local-authority-district/22UN,Life Opportunities,"1580 - Benefits, Revenues and Customer Contact SU",3312 - Car Allowances - Car Hire,11/03/2014,7011971-1,25,2104746 - CC Hire,COURT SECTION RBS
Tendring DC,http://statistics.data.gov.uk/id/local-authority-district/22UN,Life Opportunities,"1580 - Benefits, Revenues and Customer Contact SU",3062 - Running Costs - Petrol,11/03/2014,7011971-2,4.17,2104746 - CC Hire,COURT SECTION RBS
Tendring DC,http://statistics.data.gov.uk/id/local-authority-district/22UN,Life Opportunities,5880 - Management Of Sport & Leisure Facilities,5166 - Marketing and Promotion,25/03/2014,1058020-1,770,2113757 - CFH Docmail Ltd,"LEISURE VOUCHERS X 70,000"
Tendring DC,http://statistics.data.gov.uk/id/local-authority-district/22UN,Life Opportunities,"1580 - Benefits, Revenues and Customer Contact SU",4300 - Printing & Stationery,25/03/2014,2113715-1,65,REDACTED PERSONAL DATA,REDACTED PERSONAL DATA
Tendring DC,http://statistics.data.gov.uk/id/local-authority-district/22UN,Life Opportunities,5260 - HRA - Rent Collection And Accounting,4462 - Bailiffs and Tracing Agent Fees re debt recovery,25/03/2014,1058024-1,9.37,REDACTED PERSONAL DATA,REDACTED PERSONAL DATA
Tendring DC,http://statistics.data.gov.uk/id/local-authority-district/22UN,Life Opportunities,5260 - HRA - Rent Collection And Accounting,4462 - Bailiffs and Tracing Agent Fees re debt recovery,25/03/2014,1058025-1,6.33,REDACTED PERSONAL DATA,REDACTED PERSONAL DATA
Tendring DC,http://statistics.data.gov.uk/id/local-authority-district/22UN,Life Opportunities,5260 - HRA - Rent Collection And Accounting,4462 - Bailiffs and Tracing Agent Fees re debt recovery,25/03/2014,1058026-1,1.87,REDACTED PERSONAL DATA,REDACTED PERSONAL DATA
Tendring DC,http://statistics.data.gov.uk/id/local-authority-district/22UN,Life Opportunities,1880 - Office Accommodation Expenses,2100 - Building Repairs,11/03/2014,7012022-1,91,2100858 - Chelmer Electrical Ltd,REPAIR HYDROBOIL
Tendring DC,http://statistics.data.gov.uk/id/local-authority-district/22UN,Life Opportunities,5140 - Homelessness,4680 - Bed & Breakfast Accommodation,18/03/2014,7012234-1,125,REDACTED PERSONAL DATA,REDACTED PERSONAL DATA
Tendring DC,http://statistics.data.gov.uk/id/local-authority-district/22UN,Life Opportunities,7000 - CCTV,4400 - Maintenance Under Service Agreements,25/03/2014,1058015-1,3390.12,2113346 - Chroma Vision Ltd,CCTV CAMERAS 12 9 28
Tendring DC,http://statistics.data.gov.uk/id/local-authority-district/22UN,Life Opportunities,5480 - HRA - Repair & Maintenance,2073 - Smoke Alarm Service/Testing,25/03/2014,2113826-1,54.02,REDACTED PERSONAL DATA,REDACTED PERSONAL DATA
Tendring DC,http://statistics.data.gov.uk/id/local-authority-district/22UN,Life Opportunities,5480 - HRA - Repair & Maintenance,2073 - Smoke Alarm Service/Testing,25/03/2014,2113827-1,65.09,REDACTED PERSONAL DATA,REDACTED PERSONAL DATA
Tendring DC,http://statistics.data.gov.uk/id/local-authority-district/22UN,Life Opportunities,5480 - HRA - Repair & Maintenance,2073 - Smoke Alarm Service/Testing,25/03/2014,2113828-1,65.09,REDACTED PERSONAL DATA,REDACTED PERSONAL DATA
Tendring DC,http://statistics.data.gov.uk/id/local-authority-district/22UN,Life Opportunities,8540 - Leisure Centre Clacton,4400 - Maintenance Under Service Agreements,25/03/2014,7012382-1,327.38,2107803 - CIT Vendor Finance (UK) Ltd,15/4/14 to 14/7/14
Tendring DC,http://statistics.data.gov.uk/id/local-authority-district/22UN,Life Opportunities,1880 - Office Accommodation Expenses,4080 - Materials & Consumables,18/03/2014,7012268-1,51.06,2100267 - City Electrical Factors Ltd Anglia Division,STARTER SWITCH & PIN STARTER
Tendring DC,http://statistics.data.gov.uk/id/local-authority-district/22UN,Life Opportunities,6160 - Princes Theatre,5308 - Ice Cream,04/03/2014,1057658-1,96.15,2113508 - Clacton Ice Cream Ltd,ICE CREAM FOR THEATRE
Tendring DC,http://statistics.data.gov.uk/id/local-authority-district/22UN,Life Opportunities,6160 - Princes Theatre,5308 - Ice Cream,11/03/2014,1057843-1,94.25,2113508 - Clacton Ice Cream Ltd,ICE CREAM FOR THEATRE
Tendring DC,http://statistics.data.gov.uk/id/local-authority-district/22UN,Life Opportunities,8540 - Leisure Centre Clacton,4597 - Hired Services - Payments to Contractors,25/03/2014,2113749-1,238.5,2111358 - Colchester United FC Ltd Youth,Feb � Term Soccer Coaching
Tendring DC,http://statistics.data.gov.uk/id/local-authority-district/22UN,Life Opportunities,5820 - Harwich Sports Centre,4597 - Hired Services - Payments to Contractors,25/03/2014,2113866-1,720,2111358 - Colchester United FC Ltd Youth,Soccer Coaching
Tendring DC,http://statistics.data.gov.uk/id/local-authority-district/22UN,Life Opportunities,5260 - HRA - Rent Collection And Accounting,4462 - Bailiffs and Tracing Agent Fees re debt recovery,25/03/2014,1058022-1,7.5,2100381 - Collect Services Ltd,15 % COMMISSION RECOVERED
Tendring DC,http://statistics.data.gov.uk/id/local-authority-district/22UN,Life Opportunities,5260 - HRA - Rent Collection And Accounting,4462 - Bailiffs and Tracing Agent Fees re debt recovery,25/03/2014,1058023-1,5.25,2100381 - Collect Services Ltd,15% COMMISSION RECOVERED
Tendring DC,http://statistics.data.gov.uk/id/local-authority-district/22UN,Life Opportunities,"1580 - Benefits, Revenues and Customer Contact SU",4462 - Bailiffs and Tracing Agent Fees re debt recovery,18/03/2014,2113640-1,10,2100381 - Collect Services Ltd,"VAT on Fees Collected C/T 18,794.53 Recovered"
Tendring DC,http://statistics.data.gov.uk/id/local-authority-district/22UN,Life Opportunities,"1580 - Benefits, Revenues and Customer Contact SU",4462 - Bailiffs and Tracing Agent Fees re debt recovery,18/03/2014,2113640-2,-10,2100381 - Collect Services Ltd,"VAT on Fees Collected C/T 18,794.53 Recovered"
Tendring DC,http://statistics.data.gov.uk/id/local-authority-district/22UN,Life Opportunities,"1580 - Benefits, Revenues and Customer Contact SU",4462 - Bailiffs and Tracing Agent Fees re debt recovery,18/03/2014,2113640-3,4052.73,2100381 - Collect Services Ltd,"VAT on Fees Collected C/T 18,794.53 Recovered"
Tendring DC,http://statistics.data.gov.uk/id/local-authority-district/22UN,Life Opportunities,"1580 - Benefits, Revenues and Customer Contact SU",4462 - Bailiffs and Tracing Agent Fees re debt recovery,18/03/2014,2113640-4,-4052.73,2100381 - Collect Services Ltd,"VAT on Fees Collected C/T 18,794.53 Recovered"
Tendring DC,http://statistics.data.gov.uk/id/local-authority-district/22UN,Life Opportunities,"1580 - Benefits, Revenues and Customer Contact SU",4462 - Bailiffs and Tracing Agent Fees re debt recovery,18/03/2014,2113641-1,200,2100381 - Collect Services Ltd,"VAT on Fees Collected NNDR 1,180.91"
Tendring DC,http://statistics.data.gov.uk/id/local-authority-district/22UN,Life Opportunities,"1580 - Benefits, Revenues and Customer Contact SU",4462 - Bailiffs and Tracing Agent Fees re debt recovery,18/03/2014,2113641-2,-200,2100381 - Collect Services Ltd,"VAT on Fees Collected NNDR 1,180.91"
Tendring DC,http://statistics.data.gov.uk/id/local-authority-district/22UN,Life Opportunities,"1580 - Benefits, Revenues and Customer Contact SU",4462 - Bailiffs and Tracing Agent Fees re debt recovery,18/03/2014,2113641-3,189.09,2100381 - Collect Services Ltd,"VAT on Fees Collected NNDR 1,180.91"
Tendring DC,http://statistics.data.gov.uk/id/local-authority-district/22UN,Life Opportunities,"1580 - Benefits, Revenues and Customer Contact SU",4462 - Bailiffs and Tracing Agent Fees re debt recovery,18/03/2014,2113641-4,-189.09,2100381 - Collect Services Ltd,"VAT on Fees Collected NNDR 1,180.91"
Tendring DC,http://statistics.data.gov.uk/id/local-authority-district/22UN,Life Opportunities,"1580 - Benefits, Revenues and Customer Contact SU",4462 - Bailiffs and Tracing Agent Fees re debt recovery,25/03/2014,2113776-1,26.88,2100381 - Collect Services Ltd,"Vat on fees collected C/T 14,404.57 recovered"
Tendring DC,http://statistics.data.gov.uk/id/local-authority-district/22UN,Life Opportunities,"1580 - Benefits, Revenues and Customer Contact SU",4462 - Bailiffs and Tracing Agent Fees re debt recovery,25/03/2014,2113776-2,-26.88,2100381 - Collect Services Ltd,"Vat on fees collected C/T 14,404.57 recovered"
Tendring DC,http://statistics.data.gov.uk/id/local-authority-district/22UN,Life Opportunities,"1580 - Benefits, Revenues and Customer Contact SU",4462 - Bailiffs and Tracing Agent Fees re debt recovery,25/03/2014,2113776-3,80.62,2100381 - Collect Services Ltd,"Vat on fees collected C/T 14,404.57 recovered"
Tendring DC,http://statistics.data.gov.uk/id/local-authority-district/22UN,Life Opportunities,"1580 - Benefits, Revenues and Customer Contact SU",4462 - Bailiffs and Tracing Agent Fees re debt recovery,25/03/2014,2113776-4,-80.62,2100381 - Collect Services Ltd,"Vat on fees collected C/T 14,404.57 recovered"
Tendring DC,http://statistics.data.gov.uk/id/local-authority-district/22UN,Life Opportunities,"1580 - Benefits, Revenues and Customer Contact SU",4462 - Bailiffs and Tracing Agent Fees re debt recovery,25/03/2014,2113776-5,3080.93,2100381 - Collect Services Ltd,"Vat on fees collected C/T 14,404.57 recovered"
Tendring DC,http://statistics.data.gov.uk/id/local-authority-district/22UN,Life Opportunities,"1580 - Benefits, Revenues and Customer Contact SU",4462 - Bailiffs and Tracing Agent Fees re debt recovery,25/03/2014,2113776-6,-3080.93,2100381 - Collect Services Ltd,"Vat on fees collected C/T 14,404.57 recovered"
Tendring DC,http://statistics.data.gov.uk/id/local-authority-district/22UN,Life Opportunities,"1580 - Benefits, Revenues and Customer Contact SU",5189 - External Debt Recovery Commission,04/03/2014,7011868-1,275.27,2100381 - Collect Services Ltd,15% COMMISSION ON 1835.14 RECOVERED
Tendring DC,http://statistics.data.gov.uk/id/local-authority-district/22UN,Life Opportunities,"1580 - Benefits, Revenues and Customer Contact SU",4462 - Bailiffs and Tracing Agent Fees re debt recovery,04/03/2014,7011869-1,74.5,2100381 - Collect Services Ltd,VAT ON FEES COLLECTED 4779.18
Tendring DC,http://statistics.data.gov.uk/id/local-authority-district/22UN,Life Opportunities,"1580 - Benefits, Revenues and Customer Contact SU",4462 - Bailiffs and Tracing Agent Fees re debt recovery,04/03/2014,7011869-2,-74.5,2100381 - Collect Services Ltd,VAT ON FEES COLLECTED 4779.18
Tendring DC,http://statistics.data.gov.uk/id/local-authority-district/22UN,Life Opportunities,"1580 - Benefits, Revenues and Customer Contact SU",4462 - Bailiffs and Tracing Agent Fees re debt recovery,04/03/2014,7011870-1,3147.84,2100381 - Collect Services Ltd,VAT ON FEES COLLECTED 15827.21
Tendring DC,http://statistics.data.gov.uk/id/local-authority-district/22UN,Life Opportunities,"1580 - Benefits, Revenues and Customer Contact SU",4462 - Bailiffs and Tracing Agent Fees re debt recovery,04/03/2014,7011870-2,-3147.84,2100381 - Collect Services Ltd,VAT ON FEES COLLECTED 15827.21
Tendring DC,http://statistics.data.gov.uk/id/local-authority-district/22UN,Life Opportunities,"1580 - Benefits, Revenues and Customer Contact SU",4462 - Bailiffs and Tracing Agent Fees re debt recovery,04/03/2014,7011870-3,20,2100381 - Collect Services Ltd,VAT ON FEES COLLECTED 15827.21
Tendring DC,http://statistics.data.gov.uk/id/local-authority-district/22UN,Life Opportunities,"1580 - Benefits, Revenues and Customer Contact SU",4462 - Bailiffs and Tracing Agent Fees re debt recovery,04/03/2014,7011870-4,-20,2100381 - Collect Services Ltd,VAT ON FEES COLLECTED 15827.21
Tendring DC,http://statistics.data.gov.uk/id/local-authority-district/22UN,Life Opportunities,"1580 - Benefits, Revenues and Customer Contact SU",5189 - External Debt Recovery Commission,18/03/2014,7012303-1,115.92,2100381 - Collect Services Ltd,15% COMMISSION ON 772.82 RECOVERED
Tendring DC,http://statistics.data.gov.uk/id/local-authority-district/22UN,Life Opportunities,9900 - General Fund Balance Sheet,B863 - Bailiff Payments Holding Account,04/03/2014,1057725-1,2810,REDACTED COMMERCIAL CONFIDENTIALITY,REDACTED COMMERCIAL CONFIDENTIALITY
Tendring DC,http://statistics.data.gov.uk/id/local-authority-district/22UN,Life Opportunities,9900 - General Fund Balance Sheet,B863 - Bailiff Payments Holding Account,11/03/2014,1057860-1,3193.29,REDACTED COMMERCIAL CONFIDENTIALITY,REDACTED COMMERCIAL CONFIDENTIALITY
Tendring DC,http://statistics.data.gov.uk/id/local-authority-district/22UN,Life Opportunities,9900 - General Fund Balance Sheet,B863 - Bailiff Payments Holding Account,18/03/2014,1057952-1,2541.8,REDACTED COMMERCIAL CONFIDENTIALITY,REDACTED COMMERCIAL CONFIDENTIALITY
Tendring DC,http://statistics.data.gov.uk/id/local-authority-district/22UN,Life Opportunities,9900 - General Fund Balance Sheet,B863 - Bailiff Payments Holding Account,25/03/2014,1058048-1,2157.5,REDACTED COMMERCIAL CONFIDENTIALITY,REDACTED COMMERCIAL CONFIDENTIALITY
Tendring DC,http://statistics.data.gov.uk/id/local-authority-district/22UN,Life Opportunities,5365 - HRA - Colne Housing Soc Shel Units,4404 - Service Agreement - Foundry Court,18/03/2014,7012262-1,1271.01,2100342 - Colne Housing Society Ltd,IRONSIDE WALK 4TH QTR
Tendring DC,http://statistics.data.gov.uk/id/local-authority-district/22UN,Life Opportunities,5365 - HRA - Colne Housing Soc Shel Units,4404 - Service Agreement - Foundry Court,18/03/2014,7012262-2,135.07,2100342 - Colne Housing Society Ltd,IRONSIDE WALK 4TH QTR
Tendring DC,http://statistics.data.gov.uk/id/local-authority-district/22UN,Life Opportunities,H920 - Disabled Facilities Grants,C400 - Grant payments,18/03/2014,1057889-1,3899.5,REDACTED PERSONAL DATA,REDACTED PERSONAL DATA
Tendring DC,http://statistics.data.gov.uk/id/local-authority-district/22UN,Life Opportunities,H920 - Disabled Facilities Grants,C400 - Grant payments,25/03/2014,1058003-1,2996.76,REDACTED PERSONAL DATA,REDACTED PERSONAL DATA
Tendring DC,http://statistics.data.gov.uk/id/local-authority-district/22UN,Life Opportunities,1860 - Depots General,2100 - Building Repairs,18/03/2014,2113513-1,63,REDACTED PERSONAL DATA,REDACTED PERSONAL DATA
Tendring DC,http://statistics.data.gov.uk/id/local-authority-district/22UN,Life Opportunities,1860 - Depots General,2100 - Building Repairs,18/03/2014,2113514-1,63,2100314 - Cooper & Brome (Plumbing & Heating) Ltd,Northbourne Boiler
Tendring DC,http://statistics.data.gov.uk/id/local-authority-district/22UN,Life Opportunities,1860 - Depots General,2100 - Building Repairs,18/03/2014,2113515-1,257.91,2100314 - Cooper & Brome (Plumbing & Heating) Ltd,Northbourne Mess Room
Tendring DC,http://statistics.data.gov.uk/id/local-authority-district/22UN,Life Opportunities,8520 - Frinton & Walton Swimming Pool,2100 - Building Repairs,18/03/2014,2113516-1,38,2100314 - Cooper & Brome (Plumbing & Heating) Ltd,FWSP
Tendring DC,http://statistics.data.gov.uk/id/local-authority-district/22UN,Life Opportunities,8520 - Frinton & Walton Swimming Pool,2100 - Building Repairs,18/03/2014,2113517-1,361.27,2100314 - Cooper & Brome (Plumbing & Heating) Ltd,FWSP
Tendring DC,http://statistics.data.gov.uk/id/local-authority-district/22UN,Life Opportunities,8520 - Frinton & Walton Swimming Pool,2100 - Building Repairs,18/03/2014,2113518-1,534.34,2100314 - Cooper & Brome (Plumbing & Heating) Ltd,FWSP
Tendring DC,http://statistics.data.gov.uk/id/local-authority-district/22UN,Life Opportunities,1880 - Office Accommodation Expenses,2100 - Building Repairs,18/03/2014,2113520-1,290.28,2100314 - Cooper & Brome (Plumbing & Heating) Ltd,Boiler Repairs Weeley
Tendring DC,http://statistics.data.gov.uk/id/local-authority-district/22UN,Life Opportunities,8520 - Frinton & Walton Swimming Pool,2308 - Energy Costs - Gas (Including LPG),04/03/2014,2113402-1,3007.59,2104620 - Corona Energy Retail 4 Limited,FWSP - COrona
Tendring DC,http://statistics.data.gov.uk/id/local-authority-district/22UN,Life Opportunities,1860 - Depots General,2308 - Energy Costs - Gas (Including LPG),25/03/2014,2113779-1,270.48,2104620 - Corona Energy Retail 4 Limited,Electricity March 14
Tendring DC,http://statistics.data.gov.uk/id/local-authority-district/22UN,Life Opportunities,1880 - Office Accommodation Expenses,2308 - Energy Costs - Gas (Including LPG),25/03/2014,2113779-2,61.04,2104620 - Corona Energy Retail 4 Limited,Electricity March 14
Tendring DC,http://statistics.data.gov.uk/id/local-authority-district/22UN,Life Opportunities,1880 - Office Accommodation Expenses,2308 - Energy Costs - Gas (Including LPG),25/03/2014,2113779-3,175.86,2104620 - Corona Energy Retail 4 Limited,Electricity March 14
Tendring DC,http://statistics.data.gov.uk/id/local-authority-district/22UN,Life Opportunities,1880 - Office Accommodation Expenses,2308 - Energy Costs - Gas (Including LPG),25/03/2014,2113779-4,39.69,2104620 - Corona Energy Retail 4 Limited,Electricity March 14
Tendring DC,http://statistics.data.gov.uk/id/local-authority-district/22UN,Life Opportunities,6160 - Princes Theatre,2308 - Energy Costs - Gas (Including LPG),25/03/2014,2113779-5,172.85,2104620 - Corona Energy Retail 4 Limited,Electricity March 14
Tendring DC,http://statistics.data.gov.uk/id/local-authority-district/22UN,Life Opportunities,1880 - Office Accommodation Expenses,2308 - Energy Costs - Gas (Including LPG),25/03/2014,2113779-6,1555.67,2104620 - Corona Energy Retail 4 Limited,Electricity March 14
Tendring DC,http://statistics.data.gov.uk/id/local-authority-district/22UN,Life Opportunities,8510 - Dovercourt Swimming Pool & All Weather Facilities,2308 - Energy Costs - Gas (Including LPG),25/03/2014,2113864-1,3682.78,REDACTED PERSONAL DATA,REDACTED PERSONAL DATA
Tendring DC,http://statistics.data.gov.uk/id/local-authority-district/22UN,Life Opportunities,8520 - Frinton & Walton Swimming Pool,2308 - Energy Costs - Gas (Including LPG),25/03/2014,2113869-1,3782.96,2104620 - Corona Energy Retail 4 Limited,FWSP - Corona Energy
Tendring DC,http://statistics.data.gov.uk/id/local-authority-district/22UN,Life Opportunities,1860 - Depots General,2308 - Energy Costs - Gas (Including LPG),11/03/2014,7011969-1,306.32,2104620 - Corona Energy Retail 4 Limited,ELECTRICITY FEB 14
Tendring DC,http://statistics.data.gov.uk/id/local-authority-district/22UN,Life Opportunities,1880 - Office Accommodation Expenses,2308 - Energy Costs - Gas (Including LPG),11/03/2014,7011969-2,69.09,2104620 - Corona Energy Retail 4 Limited,ELECTRICITY FEB 14
Tendring DC,http://statistics.data.gov.uk/id/local-authority-district/22UN,Life Opportunities,1880 - Office Accommodation Expenses,2308 - Energy Costs - Gas (Including LPG),11/03/2014,7011969-3,199.14,2104620 - Corona Energy Retail 4 Limited,ELECTRICITY FEB 14
Tendring DC,http://statistics.data.gov.uk/id/local-authority-district/22UN,Life Opportunities,1880 - Office Accommodation Expenses,2308 - Energy Costs - Gas (Including LPG),11/03/2014,7011969-4,45.1,2104620 - Corona Energy Retail 4 Limited,ELECTRICITY FEB 14
Tendring DC,http://statistics.data.gov.uk/id/local-authority-district/22UN,Life Opportunities,1880 - Office Accommodation Expenses,2308 - Energy Costs - Gas (Including LPG),11/03/2014,7011969-5,197.34,2104620 - Corona Energy Retail 4 Limited,ELECTRICITY FEB 14
Tendring DC,http://statistics.data.gov.uk/id/local-authority-district/22UN,Life Opportunities,6160 - Princes Theatre,2308 - Energy Costs - Gas (Including LPG),11/03/2014,7011969-6,1776.04,2104620 - Corona Energy Retail 4 Limited,ELECTRICITY FEB 14
Tendring DC,http://statistics.data.gov.uk/id/local-authority-district/22UN,Life Opportunities,5340 - HRA - Communal Central Heating,2308 - Energy Costs - Gas (Including LPG),18/03/2014,7012305-1,8232.37,2104620 - Corona Energy Retail 4 Limited,SHU FEB 14
Tendring DC,http://statistics.data.gov.uk/id/local-authority-district/22UN,Life Opportunities,8540 - Leisure Centre Clacton,2308 - Energy Costs - Gas (Including LPG),25/03/2014,7012393-1,2716.22,2104620 - Corona Energy Retail 4 Limited,february
Tendring DC,http://statistics.data.gov.uk/id/local-authority-district/22UN,Life Opportunities,5240 - HRA - Managing Tenancies,5242 - Tenant Relations,25/03/2014,7012433-1,144,2104177 - Corporate Document Services Ltd,sheltered housing guide design only
Tendring DC,http://statistics.data.gov.uk/id/local-authority-district/22UN,Life Opportunities,5240 - HRA - Managing Tenancies,5242 - Tenant Relations,25/03/2014,7012434-1,2072.4,2104177 - Corporate Document Services Ltd,asb newsletter sept 13
Tendring DC,http://statistics.data.gov.uk/id/local-authority-district/22UN,Life Opportunities,5040 - Home Energy Conservation Act,5242 - Tenant Relations,25/03/2014,7012435-1,144,2104177 - Corporate Document Services Ltd,tendring folder - design only
Tendring DC,http://statistics.data.gov.uk/id/local-authority-district/22UN,Life Opportunities,5240 - HRA - Managing Tenancies,5242 - Tenant Relations,25/03/2014,7012436-1,4659.6,2104177 - Corporate Document Services Ltd,tendring reports - nov/dec 13
Tendring DC,http://statistics.data.gov.uk/id/local-authority-district/22UN,Life Opportunities,5240 - HRA - Managing Tenancies,5242 - Tenant Relations,25/03/2014,7012437-1,3630,2104177 - Corporate Document Services Ltd,tendring reports sept 13 postage only
Tendring DC,http://statistics.data.gov.uk/id/local-authority-district/22UN,Life Opportunities,5140 - Homelessness,4683 - Other Homelessness Expenses,11/03/2014,1057793-1,990,REDACTED PERSONAL DATA,REDACTED PERSONAL DATA
Tendring DC,http://statistics.data.gov.uk/id/local-authority-district/22UN,Life Opportunities,8510 - Dovercourt Swimming Pool & All Weather Facilities,2100 - Building Repairs,25/03/2014,2113863-1,391.94,REDACTED PERSONAL DATA,REDACTED PERSONAL DATA
Tendring DC,http://statistics.data.gov.uk/id/local-authority-district/22UN,Life Opportunities,5820 - Harwich Sports Centre,2100 - Building Repairs,04/03/2014,7011931-1,35,2100183 - CR Services,FIT REPLACEMENT MAINS LEAD
Tendring DC,http://statistics.data.gov.uk/id/local-authority-district/22UN,Life Opportunities,8520 - Frinton & Walton Swimming Pool,2100 - Building Repairs,11/03/2014,7012126-1,115,2100183 - CR Services,FWSP - CR SERVICES
Tendring DC,http://statistics.data.gov.uk/id/local-authority-district/22UN,Life Opportunities,8520 - Frinton & Walton Swimming Pool,2100 - Building Repairs,11/03/2014,7012127-1,225,2100183 - CR Services,FWSP - CR SERVICES
Tendring DC,http://statistics.data.gov.uk/id/local-authority-district/22UN,Life Opportunities,5360 - HRA - Sheltered Units,4710 - Telephones - Charges,04/03/2014,1057680-1,212.97,2106704 - Daisy Communications Ltd,DAISY BILL JAN 14
Tendring DC,http://statistics.data.gov.uk/id/local-authority-district/22UN,Life Opportunities,6160 - Princes Theatre,4220 - Laundry,11/03/2014,1057848-1,2.76,2100397 - Danes of Colchester Ltd,LAUNDRY FOR THEATRE
Tendring DC,http://statistics.data.gov.uk/id/local-authority-district/22UN,Life Opportunities,6160 - Princes Theatre,4220 - Laundry,11/03/2014,1057849-1,2.75,2100397 - Danes of Colchester Ltd,LAUNDRY FOR THEATRE
Tendring DC,http://statistics.data.gov.uk/id/local-authority-district/22UN,Life Opportunities,6160 - Princes Theatre,4220 - Laundry,11/03/2014,1057850-1,9.66,2100397 - Danes of Colchester Ltd,LAUNDRY FOR THEATRE
Tendring DC,http://statistics.data.gov.uk/id/local-authority-district/22UN,Life Opportunities,6160 - Princes Theatre,4220 - Laundry,11/03/2014,1057851-1,45.54,2100397 - Danes of Colchester Ltd,LAUNDRY FOR THEATRE
Tendring DC,http://statistics.data.gov.uk/id/local-authority-district/22UN,Life Opportunities,6420 - Cost Of Council Tax Collection,4597 - Hired Services - Payments to Contractors,18/03/2014,2113646-1,595,2110767 - Datatank Ltd,SPD Review Feb 14
Tendring DC,http://statistics.data.gov.uk/id/local-authority-district/22UN,Life Opportunities,8540 - Leisure Centre Clacton,4880 - Subscriptions Paid,25/03/2014,2113837-1,40.75,REDACTED PERSONAL DATA,REDACTED PERSONAL DATA
Tendring DC,http://statistics.data.gov.uk/id/local-authority-district/22UN,Life Opportunities,5480 - HRA - Repair & Maintenance,2071 - Electric Installation Testing,11/03/2014,1057864-1,514.88,2113648 - David Stagg and Associates Ltd,TEST INSPECT UPGRADE 4 NO. PROPERTIES
Tendring DC,http://statistics.data.gov.uk/id/local-authority-district/22UN,Life Opportunities,5480 - HRA - Repair & Maintenance,2072 - Planned Partial Refurbishment To Electrical Instal,11/03/2014,1057864-2,1289.26,2113648 - David Stagg and Associates Ltd,TEST INSPECT UPGRADE 4 NO. PROPERTIES
Tendring DC,http://statistics.data.gov.uk/id/local-authority-district/22UN,Life Opportunities,6740 - Careline,5160 - Advertising,18/03/2014,1057895-1,50,2113763 - Dementia UK,DONATION TO DEMENTIA UK
Tendring DC,http://statistics.data.gov.uk/id/local-authority-district/22UN,Life Opportunities,5480 - HRA - Repair & Maintenance,2068 - Other Minor Equipment Repairs,25/03/2014,7012441-1,105,2100490 - DORMA UK Ltd - Service Division,belmans court
Tendring DC,http://statistics.data.gov.uk/id/local-authority-district/22UN,Life Opportunities,6740 - Careline,9050 - Careline Income - General,11/03/2014,1057761-1,9.87,REDACTED PERSONAL DATA,REDACTED PERSONAL DATA
Tendring DC,http://statistics.data.gov.uk/id/local-authority-district/22UN,Life Opportunities,5860 - Manningtree Sports Centre,4597 - Hired Services - Payments to Contractors,11/03/2014,7011978-1,100,2112824 - Dynamic Stability,PILATES INSTRUCTOR X 4 HRS
Tendring DC,http://statistics.data.gov.uk/id/local-authority-district/22UN,Life Opportunities,5820 - Harwich Sports Centre,4597 - Hired Services - Payments to Contractors,11/03/2014,7012130-1,100,2112824 - Dynamic Stability,PILATES CLASSES
Tendring DC,http://statistics.data.gov.uk/id/local-authority-district/22UN,Life Opportunities,5480 - HRA - Repair & Maintenance,2304 - Energy Costs - Electricity,11/03/2014,1057827-1,13.67,REDACTED PERSONAL DATA,REDACTED PERSONAL DATA
Tendring DC,http://statistics.data.gov.uk/id/local-authority-district/22UN,Life Opportunities,5480 - HRA - Repair & Maintenance,2304 - Energy Costs - Electricity,25/03/2014,1058016-1,97.96,REDACTED PERSONAL DATA,REDACTED PERSONAL DATA
Tendring DC,http://statistics.data.gov.uk/id/local-authority-district/22UN,Life Opportunities,5480 - HRA - Repair & Maintenance,2304 - Energy Costs - Electricity,25/03/2014,1058017-1,25.25,REDACTED PERSONAL DATA,REDACTED PERSONAL DATA
Tendring DC,http://statistics.data.gov.uk/id/local-authority-district/22UN,Life Opportunities,5480 - HRA - Repair & Maintenance,2304 - Energy Costs - Electricity,25/03/2014,1058018-1,23.38,REDACTED PERSONAL DATA,REDACTED PERSONAL DATA
Tendring DC,http://statistics.data.gov.uk/id/local-authority-district/22UN,Life Opportunities,5480 - HRA - Repair & Maintenance,2304 - Energy Costs - Electricity,11/03/2014,7012031-1,8.95,REDACTED PERSONAL DATA,REDACTED PERSONAL DATA
Tendring DC,http://statistics.data.gov.uk/id/local-authority-district/22UN,Life Opportunities,7620 - Air Show,5500 - Miscellaneous Expenses,18/03/2014,7012255-1,87.99,2100404 - Easy Tigernet,DOMAIN NAME AIR SHOW 14
Tendring DC,http://statistics.data.gov.uk/id/local-authority-district/22UN,Life Opportunities,8520 - Frinton & Walton Swimming Pool,4400 - Maintenance Under Service Agreements,25/03/2014,7012412-1,530.3,2100454 - Ecolab Services Limited,ecolab/pest control
Tendring DC,http://statistics.data.gov.uk/id/local-authority-district/22UN,Life Opportunities,8540 - Leisure Centre Clacton,2304 - Energy Costs - Electricity,18/03/2014,2113615-1,6998.57,2105146 - EDF Energy 1 Ltd,February
Tendring DC,http://statistics.data.gov.uk/id/local-authority-district/22UN,Life Opportunities,8510 - Dovercourt Swimming Pool & All Weather Facilities,2304 - Energy Costs - Electricity,18/03/2014,2113635-1,2907,2105146 - EDF Energy 1 Ltd,
Tendring DC,http://statistics.data.gov.uk/id/local-authority-district/22UN,Life Opportunities,1880 - Office Accommodation Expenses,2304 - Energy Costs - Electricity,18/03/2014,7012245-1,4577.99,2105146 - EDF Energy 1 Ltd,EDF TOWN HALL & THEATRE FEB 14
Tendring DC,http://statistics.data.gov.uk/id/local-authority-district/22UN,Life Opportunities,6160 - Princes Theatre,2304 - Energy Costs - Electricity,18/03/2014,7012245-2,508.67,2105146 - EDF Energy 1 Ltd,EDF TOWN HALL & THEATRE FEB 14
Tendring DC,http://statistics.data.gov.uk/id/local-authority-district/22UN,Life Opportunities,"1580 - Benefits, Revenues and Customer Contact SU",4753 - Computer - Application Software,25/03/2014,2113818-1,4000,REDACTED PERSONAL DATA,REDACTED PERSONAL DATA
Tendring DC,http://statistics.data.gov.uk/id/local-authority-district/22UN,Life Opportunities,5480 - HRA - Repair & Maintenance,2017 - Mechanical Equipment /Extract Fans,25/03/2014,1057992-1,176.97,REDACTED PERSONAL DATA,REDACTED PERSONAL DATA
Tendring DC,http://statistics.data.gov.uk/id/local-authority-district/22UN,Life Opportunities,5480 - HRA - Repair & Maintenance,2017 - Mechanical Equipment /Extract Fans,25/03/2014,1057993-1,176.97,REDACTED PERSONAL DATA,REDACTED PERSONAL DATA
Tendring DC,http://statistics.data.gov.uk/id/local-authority-district/22UN,Life Opportunities,8530 - Brightlingsea Swimming Pool,2304 - Energy Costs - Electricity,18/03/2014,2113627-1,786.58,2107644 - Eon,2/12/13 - 26/2/14
Tendring DC,http://statistics.data.gov.uk/id/local-authority-district/22UN,Life Opportunities,5480 - HRA - Repair & Maintenance,2304 - Energy Costs - Electricity,25/03/2014,2113767-1,25.25,REDACTED PERSONAL DATA,REDACTED PERSONAL DATA
Tendring DC,http://statistics.data.gov.uk/id/local-authority-district/22UN,Life Opportunities,5440 - HRA - Communal Electricity,2304 - Energy Costs - Electricity,25/03/2014,2113824-1,119.58,2107644 - Eon,Abbott Road to 04/03/14
Tendring DC,http://statistics.data.gov.uk/id/local-authority-district/22UN,Life Opportunities,5140 - Homelessness,4680 - Bed & Breakfast Accommodation,11/03/2014,2113426-1,125,REDACTED PERSONAL DATA,REDACTED PERSONAL DATA
Tendring DC,http://statistics.data.gov.uk/id/local-authority-district/22UN,Life Opportunities,7520 - Tourism Publicity Marketing Promotion,4626 - Purchase of Research Data,04/03/2014,1057656-1,600,2100498 - Essex County Council,2012 ECONOMIC IMPACT REPORT
Tendring DC,http://statistics.data.gov.uk/id/local-authority-district/22UN,Life Opportunities,6160 - Princes Theatre,2900 - Premises Licensing - Public Entertainment,18/03/2014,1057891-1,1700,2100429 - Essex County Council,
Tendring DC,http://statistics.data.gov.uk/id/local-authority-district/22UN,Life Opportunities,6480 - Emergency Planning,4597 - Hired Services - Payments to Contractors,25/03/2014,2113830-1,16400,REDACTED PERSONAL DATA,REDACTED PERSONAL DATA
Tendring DC,http://statistics.data.gov.uk/id/local-authority-district/22UN,Life Opportunities,5480 - HRA - Repair & Maintenance,2017 - Mechanical Equipment /Extract Fans,04/03/2014,2113406-1,85,REDACTED PERSONAL DATA,REDACTED PERSONAL DATA
Tendring DC,http://statistics.data.gov.uk/id/local-authority-district/22UN,Life Opportunities,6740 - Careline,4880 - Subscriptions Paid,04/03/2014,1057665-1,1864.12,2106090 - Experian Ltd,ADDRESS PRO 14/15
Tendring DC,http://statistics.data.gov.uk/id/local-authority-district/22UN,Life Opportunities,"1580 - Benefits, Revenues and Customer Contact SU",4466 - Land Registry Fees,04/03/2014,1057666-1,2900,2106090 - Experian Ltd,CITIZEN VIEW LICENCE
Tendring DC,http://statistics.data.gov.uk/id/local-authority-district/22UN,Life Opportunities,"1580 - Benefits, Revenues and Customer Contact SU",4469 - Other Non - Legal Professional Services,18/03/2014,7012257-1,2900,2106090 - Experian Ltd,EXPERIAN CITIZEN VIEW LICENCE 14.15
Tendring DC,http://statistics.data.gov.uk/id/local-authority-district/22UN,Life Opportunities,5480 - HRA - Repair & Maintenance,2057 - Fire Alarms Servicing,11/03/2014,1057817-1,160,2108583 - Firesite,GROOM HOUSE
Tendring DC,http://statistics.data.gov.uk/id/local-authority-district/22UN,Life Opportunities,5480 - HRA - Repair & Maintenance,2058 - Fire Alarms Repairs,11/03/2014,1057817-2,40,2108583 - Firesite,GROOM HOUSE
Tendring DC,http://statistics.data.gov.uk/id/local-authority-district/22UN,Life Opportunities,5480 - HRA - Repair & Maintenance,2058 - Fire Alarms Repairs,11/03/2014,1057852-1,230,REDACTED PERSONAL DATA,REDACTED PERSONAL DATA
Tendring DC,http://statistics.data.gov.uk/id/local-authority-district/22UN,Life Opportunities,5480 - HRA - Repair & Maintenance,2058 - Fire Alarms Repairs,18/03/2014,7012226-1,140,REDACTED PERSONAL DATA,REDACTED PERSONAL DATA
Tendring DC,http://statistics.data.gov.uk/id/local-authority-district/22UN,Life Opportunities,5480 - HRA - Repair & Maintenance,2058 - Fire Alarms Repairs,25/03/2014,7012449-1,50,2108583 - Firesite,belmans court
Tendring DC,http://statistics.data.gov.uk/id/local-authority-district/22UN,Life Opportunities,7600 - Tourist Information Centres,9356 - Commission Sales,18/03/2014,2113571-1,2288,2103743 - First Essex Buses Ltd,First Essex Buses Feb 14
Tendring DC,http://statistics.data.gov.uk/id/local-authority-district/22UN,Life Opportunities,7600 - Tourist Information Centres,9356 - Commission Sales,18/03/2014,2113571-2,-228.8,2103743 - First Essex Buses Ltd,First Essex Buses Feb 14
Tendring DC,http://statistics.data.gov.uk/id/local-authority-district/22UN,Life Opportunities,5140 - Homelessness,4683 - Other Homelessness Expenses,04/03/2014,1057702-1,354.88,REDACTED PERSONAL DATA,REDACTED PERSONAL DATA
Tendring DC,http://statistics.data.gov.uk/id/local-authority-district/22UN,Life Opportunities,5140 - Homelessness,4683 - Other Homelessness Expenses,04/03/2014,1057703-1,750,REDACTED PERSONAL DATA,REDACTED PERSONAL DATA
Tendring DC,http://statistics.data.gov.uk/id/local-authority-district/22UN,Life Opportunities,5140 - Homelessness,4683 - Other Homelessness Expenses,11/03/2014,1057794-1,500,REDACTED PERSONAL DATA,REDACTED PERSONAL DATA
Tendring DC,http://statistics.data.gov.uk/id/local-authority-district/22UN,Life Opportunities,1242 - Corporate Director (Life Opportunities),1710 - Training - Central Department Budget,18/03/2014,7012217-1,85,2107351 - Frinton Training Services Ltd,FIRST AID TRAINING PETER CLARKE
Tendring DC,http://statistics.data.gov.uk/id/local-authority-district/22UN,Life Opportunities,5140 - Homelessness,4683 - Other Homelessness Expenses,11/03/2014,1057792-1,379,REDACTED PERSONAL DATA,REDACTED PERSONAL DATA
Tendring DC,http://statistics.data.gov.uk/id/local-authority-district/22UN,Life Opportunities,5480 - HRA - Repair & Maintenance,2089 - Sewer Repairs,11/03/2014,1057813-1,230,REDACTED PERSONAL DATA,REDACTED PERSONAL DATA
Tendring DC,http://statistics.data.gov.uk/id/local-authority-district/22UN,Life Opportunities,5480 - HRA - Repair & Maintenance,2089 - Sewer Repairs,11/03/2014,1057814-1,460,REDACTED PERSONAL DATA,REDACTED PERSONAL DATA
Tendring DC,http://statistics.data.gov.uk/id/local-authority-district/22UN,Life Opportunities,5480 - HRA - Repair & Maintenance,2089 - Sewer Repairs,11/03/2014,1057815-1,460,REDACTED PERSONAL DATA,REDACTED PERSONAL DATA
Tendring DC,http://statistics.data.gov.uk/id/local-authority-district/22UN,Life Opportunities,5480 - HRA - Repair & Maintenance,2089 - Sewer Repairs,11/03/2014,1057816-1,230,REDACTED PERSONAL DATA,REDACTED PERSONAL DATA
Tendring DC,http://statistics.data.gov.uk/id/local-authority-district/22UN,Life Opportunities,5480 - HRA - Repair & Maintenance,2089 - Sewer Repairs,11/03/2014,1057818-1,230,REDACTED PERSONAL DATA,REDACTED PERSONAL DATA
Tendring DC,http://statistics.data.gov.uk/id/local-authority-district/22UN,Life Opportunities,5480 - HRA - Repair & Maintenance,2089 - Sewer Repairs,11/03/2014,1057819-1,230,REDACTED PERSONAL DATA,REDACTED PERSONAL DATA
Tendring DC,http://statistics.data.gov.uk/id/local-authority-district/22UN,Life Opportunities,5480 - HRA - Repair & Maintenance,2089 - Sewer Repairs,11/03/2014,1057820-1,460,REDACTED PERSONAL DATA,REDACTED PERSONAL DATA
Tendring DC,http://statistics.data.gov.uk/id/local-authority-district/22UN,Life Opportunities,5480 - HRA - Repair & Maintenance,2089 - Sewer Repairs,11/03/2014,1057821-1,460,REDACTED PERSONAL DATA,REDACTED PERSONAL DATA
Tendring DC,http://statistics.data.gov.uk/id/local-authority-district/22UN,Life Opportunities,5480 - HRA - Repair & Maintenance,2089 - Sewer Repairs,11/03/2014,1057822-1,460,REDACTED PERSONAL DATA,REDACTED PERSONAL DATA
Tendring DC,http://statistics.data.gov.uk/id/local-authority-district/22UN,Life Opportunities,5480 - HRA - Repair & Maintenance,2089 - Sewer Repairs,11/03/2014,1057823-1,460,REDACTED PERSONAL DATA,REDACTED PERSONAL DATA
Tendring DC,http://statistics.data.gov.uk/id/local-authority-district/22UN,Life Opportunities,5480 - HRA - Repair & Maintenance,2089 - Sewer Repairs,11/03/2014,1057837-1,460,REDACTED PERSONAL DATA,REDACTED PERSONAL DATA
Tendring DC,http://statistics.data.gov.uk/id/local-authority-district/22UN,Life Opportunities,5480 - HRA - Repair & Maintenance,2089 - Sewer Repairs,11/03/2014,1057838-1,460,REDACTED PERSONAL DATA,REDACTED PERSONAL DATA
Tendring DC,http://statistics.data.gov.uk/id/local-authority-district/22UN,Life Opportunities,5480 - HRA - Repair & Maintenance,2089 - Sewer Repairs,04/03/2014,2113405-1,230,REDACTED PERSONAL DATA,REDACTED PERSONAL DATA
Tendring DC,http://statistics.data.gov.uk/id/local-authority-district/22UN,Life Opportunities,5480 - HRA - Repair & Maintenance,2089 - Sewer Repairs,25/03/2014,2113755-1,460,REDACTED PERSONAL DATA,REDACTED PERSONAL DATA
Tendring DC,http://statistics.data.gov.uk/id/local-authority-district/22UN,Life Opportunities,5480 - HRA - Repair & Maintenance,2089 - Sewer Repairs,25/03/2014,2113756-1,460,REDACTED PERSONAL DATA,REDACTED PERSONAL DATA
Tendring DC,http://statistics.data.gov.uk/id/local-authority-district/22UN,Life Opportunities,5480 - HRA - Repair & Maintenance,2089 - Sewer Repairs,25/03/2014,2113757-1,460,REDACTED PERSONAL DATA,REDACTED PERSONAL DATA
Tendring DC,http://statistics.data.gov.uk/id/local-authority-district/22UN,Life Opportunities,5480 - HRA - Repair & Maintenance,2089 - Sewer Repairs,25/03/2014,2113758-1,230,REDACTED PERSONAL DATA,REDACTED PERSONAL DATA
Tendring DC,http://statistics.data.gov.uk/id/local-authority-district/22UN,Life Opportunities,5480 - HRA - Repair & Maintenance,2089 - Sewer Repairs,25/03/2014,2113759-1,460,REDACTED PERSONAL DATA,REDACTED PERSONAL DATA
Tendring DC,http://statistics.data.gov.uk/id/local-authority-district/22UN,Life Opportunities,5480 - HRA - Repair & Maintenance,2089 - Sewer Repairs,25/03/2014,7012352-1,230,REDACTED PERSONAL DATA,REDACTED PERSONAL DATA
Tendring DC,http://statistics.data.gov.uk/id/local-authority-district/22UN,Life Opportunities,8025 - Car Parks - Off St,4635 - Cash Collection Contract,25/03/2014,1057969-1,-141.43,2101233 - G4S Cash Services (UK) Limited,G4S REFUND NORTHBOURNE
Tendring DC,http://statistics.data.gov.uk/id/local-authority-district/22UN,Life Opportunities,"1580 - Benefits, Revenues and Customer Contact SU",4635 - Cash Collection Contract,25/03/2014,1058042-1,498.14,2101233 - G4S Cash Services (UK) Limited,G4S MARCH 14
Tendring DC,http://statistics.data.gov.uk/id/local-authority-district/22UN,Life Opportunities,7600 - Tourist Information Centres,4635 - Cash Collection Contract,25/03/2014,1058042-10,65.66,2101233 - G4S Cash Services (UK) Limited,G4S MARCH 14
Tendring DC,http://statistics.data.gov.uk/id/local-authority-district/22UN,Life Opportunities,5260 - HRA - Rent Collection And Accounting,4635 - Cash Collection Contract,25/03/2014,1058042-2,139.22,2101233 - G4S Cash Services (UK) Limited,G4S MARCH 14
Tendring DC,http://statistics.data.gov.uk/id/local-authority-district/22UN,Life Opportunities,5800 - Brightlingsea Sports Centre,4635 - Cash Collection Contract,25/03/2014,1058042-3,69.57,2101233 - G4S Cash Services (UK) Limited,G4S MARCH 14
Tendring DC,http://statistics.data.gov.uk/id/local-authority-district/22UN,Life Opportunities,5820 - Harwich Sports Centre,4635 - Cash Collection Contract,25/03/2014,1058042-4,69.57,2101233 - G4S Cash Services (UK) Limited,G4S MARCH 14
Tendring DC,http://statistics.data.gov.uk/id/local-authority-district/22UN,Life Opportunities,8025 - Car Parks - Off St,4635 - Cash Collection Contract,25/03/2014,1058042-5,113.45,2101233 - G4S Cash Services (UK) Limited,G4S MARCH 14
Tendring DC,http://statistics.data.gov.uk/id/local-authority-district/22UN,Life Opportunities,8510 - Dovercourt Swimming Pool & All Weather Facilities,4635 - Cash Collection Contract,25/03/2014,1058042-6,139.13,2101233 - G4S Cash Services (UK) Limited,G4S MARCH 14
Tendring DC,http://statistics.data.gov.uk/id/local-authority-district/22UN,Life Opportunities,8520 - Frinton & Walton Swimming Pool,4635 - Cash Collection Contract,25/03/2014,1058042-7,208.7,2101233 - G4S Cash Services (UK) Limited,G4S MARCH 14
Tendring DC,http://statistics.data.gov.uk/id/local-authority-district/22UN,Life Opportunities,8540 - Leisure Centre Clacton,4635 - Cash Collection Contract,25/03/2014,1058042-8,208.7,2101233 - G4S Cash Services (UK) Limited,G4S MARCH 14
Tendring DC,http://statistics.data.gov.uk/id/local-authority-district/22UN,Life Opportunities,5860 - Manningtree Sports Centre,4635 - Cash Collection Contract,25/03/2014,1058042-9,69.57,2101233 - G4S Cash Services (UK) Limited,G4S MARCH 14
Tendring DC,http://statistics.data.gov.uk/id/local-authority-district/22UN,Life Opportunities,"1580 - Benefits, Revenues and Customer Contact SU",4635 - Cash Collection Contract,25/03/2014,1058043-1,498.14,2101233 - G4S Cash Services (UK) Limited,G4S APRIL 14
Tendring DC,http://statistics.data.gov.uk/id/local-authority-district/22UN,Life Opportunities,7600 - Tourist Information Centres,4635 - Cash Collection Contract,25/03/2014,1058043-10,65.66,2101233 - G4S Cash Services (UK) Limited,G4S APRIL 14
Tendring DC,http://statistics.data.gov.uk/id/local-authority-district/22UN,Life Opportunities,5260 - HRA - Rent Collection And Accounting,4635 - Cash Collection Contract,25/03/2014,1058043-2,139.22,2101233 - G4S Cash Services (UK) Limited,G4S APRIL 14
Tendring DC,http://statistics.data.gov.uk/id/local-authority-district/22UN,Life Opportunities,5800 - Brightlingsea Sports Centre,4635 - Cash Collection Contract,25/03/2014,1058043-3,69.57,2101233 - G4S Cash Services (UK) Limited,G4S APRIL 14
Tendring DC,http://statistics.data.gov.uk/id/local-authority-district/22UN,Life Opportunities,5820 - Harwich Sports Centre,4635 - Cash Collection Contract,25/03/2014,1058043-4,69.57,2101233 - G4S Cash Services (UK) Limited,G4S APRIL 14
Tendring DC,http://statistics.data.gov.uk/id/local-authority-district/22UN,Life Opportunities,8025 - Car Parks - Off St,4635 - Cash Collection Contract,25/03/2014,1058043-5,47.8,2101233 - G4S Cash Services (UK) Limited,G4S APRIL 14
Tendring DC,http://statistics.data.gov.uk/id/local-authority-district/22UN,Life Opportunities,8510 - Dovercourt Swimming Pool & All Weather Facilities,4635 - Cash Collection Contract,25/03/2014,1058043-6,139.13,2101233 - G4S Cash Services (UK) Limited,G4S APRIL 14
Tendring DC,http://statistics.data.gov.uk/id/local-authority-district/22UN,Life Opportunities,8520 - Frinton & Walton Swimming Pool,4635 - Cash Collection Contract,25/03/2014,1058043-7,208.7,2101233 - G4S Cash Services (UK) Limited,G4S APRIL 14
Tendring DC,http://statistics.data.gov.uk/id/local-authority-district/22UN,Life Opportunities,8540 - Leisure Centre Clacton,4635 - Cash Collection Contract,25/03/2014,1058043-8,208.7,2101233 - G4S Cash Services (UK) Limited,G4S APRIL 14
Tendring DC,http://statistics.data.gov.uk/id/local-authority-district/22UN,Life Opportunities,5860 - Manningtree Sports Centre,4635 - Cash Collection Contract,25/03/2014,1058043-9,69.57,2101233 - G4S Cash Services (UK) Limited,G4S APRIL 14
Tendring DC,http://statistics.data.gov.uk/id/local-authority-district/22UN,Life Opportunities,8025 - Car Parks - Off St,4635 - Cash Collection Contract,25/03/2014,7012396-1,69.78,2101233 - G4S Cash Services (UK) Limited,f4s northbourne
Tendring DC,http://statistics.data.gov.uk/id/local-authority-district/22UN,Life Opportunities,H920 - Disabled Facilities Grants,C400 - Grant payments,18/03/2014,1057881-1,3000,REDACTED PERSONAL DATA,REDACTED PERSONAL DATA
Tendring DC,http://statistics.data.gov.uk/id/local-authority-district/22UN,Life Opportunities,H920 - Disabled Facilities Grants,C400 - Grant payments,11/03/2014,7012112-1,4220.9,REDACTED PERSONAL DATA,REDACTED PERSONAL DATA
Tendring DC,http://statistics.data.gov.uk/id/local-authority-district/22UN,Life Opportunities,H920 - Disabled Facilities Grants,C400 - Grant payments,04/03/2014,1057640-1,1197.6,REDACTED PERSONAL DATA,REDACTED PERSONAL DATA
Tendring DC,http://statistics.data.gov.uk/id/local-authority-district/22UN,Life Opportunities,H920 - Disabled Facilities Grants,C400 - Grant payments,25/03/2014,1058005-1,45,REDACTED PERSONAL DATA,REDACTED PERSONAL DATA
Tendring DC,http://statistics.data.gov.uk/id/local-authority-district/22UN,Life Opportunities,H920 - Disabled Facilities Grants,C400 - Grant payments,18/03/2014,2113578-1,9292.7,REDACTED PERSONAL DATA,REDACTED PERSONAL DATA
Tendring DC,http://statistics.data.gov.uk/id/local-authority-district/22UN,Life Opportunities,H920 - Disabled Facilities Grants,C400 - Grant payments,11/03/2014,7012111-1,13112.97,REDACTED PERSONAL DATA,REDACTED PERSONAL DATA
Tendring DC,http://statistics.data.gov.uk/id/local-authority-district/22UN,Life Opportunities,H920 - Disabled Facilities Grants,C400 - Grant payments,11/03/2014,7012115-1,6379,REDACTED PERSONAL DATA,REDACTED PERSONAL DATA
Tendring DC,http://statistics.data.gov.uk/id/local-authority-district/22UN,Life Opportunities,H920 - Disabled Facilities Grants,C400 - Grant payments,11/03/2014,7012120-1,8259.6,REDACTED PERSONAL DATA,REDACTED PERSONAL DATA
Tendring DC,http://statistics.data.gov.uk/id/local-authority-district/22UN,Life Opportunities,6740 - Careline,4040 - Equipment & Tools,18/03/2014,7012261-1,391.8,2101874 - GBS,BATTERIES
Tendring DC,http://statistics.data.gov.uk/id/local-authority-district/22UN,Life Opportunities,1880 - Office Accommodation Expenses,4632 - Security,04/03/2014,1057642-1,25,2100546 - GCS Alarms,ALARM RESET CLAY HALL
Tendring DC,http://statistics.data.gov.uk/id/local-authority-district/22UN,Life Opportunities,1880 - Office Accommodation Expenses,4632 - Security,04/03/2014,1057643-1,92.64,2100546 - GCS Alarms,CALLOUT TO TOWN HALL
Tendring DC,http://statistics.data.gov.uk/id/local-authority-district/22UN,Life Opportunities,1860 - Depots General,4632 - Security,11/03/2014,1057779-1,-95,2100546 - GCS Alarms,CREDIT PART OF INV 38272
Tendring DC,http://statistics.data.gov.uk/id/local-authority-district/22UN,Life Opportunities,1880 - Office Accommodation Expenses,4632 - Security,11/03/2014,1057780-1,-235,2100546 - GCS Alarms,CREDIT PART OF INV 38273
Tendring DC,http://statistics.data.gov.uk/id/local-authority-district/22UN,Life Opportunities,1880 - Office Accommodation Expenses,4632 - Security,11/03/2014,1057782-1,-530,2100546 - GCS Alarms,CREDIT PART OF INV 38273 BARNES
Tendring DC,http://statistics.data.gov.uk/id/local-authority-district/22UN,Life Opportunities,1880 - Office Accommodation Expenses,4632 - Security,18/03/2014,1057920-1,68.5,2100546 - GCS Alarms,REPLACE FAULTY EXIT BUTTON WEELEY
Tendring DC,http://statistics.data.gov.uk/id/local-authority-district/22UN,Life Opportunities,8540 - Leisure Centre Clacton,2100 - Building Repairs,18/03/2014,2113617-1,55,2100546 - GCS Alarms,Fault SPA Zone 17
Tendring DC,http://statistics.data.gov.uk/id/local-authority-district/22UN,Life Opportunities,5860 - Manningtree Sports Centre,2100 - Building Repairs,25/03/2014,2113747-1,1151,2100546 - GCS Alarms,Supply & Fit 2 new cameras
Tendring DC,http://statistics.data.gov.uk/id/local-authority-district/22UN,Life Opportunities,1880 - Office Accommodation Expenses,4632 - Security,04/03/2014,7011901-1,84,2100546 - GCS Alarms,TOWN HALL CALL OUT 09.02.14
Tendring DC,http://statistics.data.gov.uk/id/local-authority-district/22UN,Life Opportunities,1880 - Office Accommodation Expenses,4632 - Security,11/03/2014,7012161-1,300,2100546 - GCS Alarms,FIRE ALARM MAINTANENCE
Tendring DC,http://statistics.data.gov.uk/id/local-authority-district/22UN,Life Opportunities,1880 - Office Accommodation Expenses,4632 - Security,11/03/2014,7012161-2,280,2100546 - GCS Alarms,FIRE ALARM MAINTANENCE
Tendring DC,http://statistics.data.gov.uk/id/local-authority-district/22UN,Life Opportunities,1860 - Depots General,4632 - Security,11/03/2014,7012161-3,215,2100546 - GCS Alarms,FIRE ALARM MAINTANENCE
Tendring DC,http://statistics.data.gov.uk/id/local-authority-district/22UN,Life Opportunities,1880 - Office Accommodation Expenses,4632 - Security,11/03/2014,7012161-4,180,2100546 - GCS Alarms,FIRE ALARM MAINTANENCE
Tendring DC,http://statistics.data.gov.uk/id/local-authority-district/22UN,Life Opportunities,1880 - Office Accommodation Expenses,4632 - Security,11/03/2014,7012161-5,495,2100546 - GCS Alarms,FIRE ALARM MAINTANENCE
Tendring DC,http://statistics.data.gov.uk/id/local-authority-district/22UN,Life Opportunities,1880 - Office Accommodation Expenses,4632 - Security,11/03/2014,7012161-6,295,2100546 - GCS Alarms,FIRE ALARM MAINTANENCE
Tendring DC,http://statistics.data.gov.uk/id/local-authority-district/22UN,Life Opportunities,1880 - Office Accommodation Expenses,4632 - Security,11/03/2014,7012161-7,1440,2100546 - GCS Alarms,FIRE ALARM MAINTANENCE
Tendring DC,http://statistics.data.gov.uk/id/local-authority-district/22UN,Life Opportunities,1880 - Office Accommodation Expenses,4632 - Security,11/03/2014,7012161-8,140,2100546 - GCS Alarms,FIRE ALARM MAINTANENCE
Tendring DC,http://statistics.data.gov.uk/id/local-authority-district/22UN,Life Opportunities,1880 - Office Accommodation Expenses,4632 - Security,11/03/2014,7012162-1,530,2100546 - GCS Alarms,INTRUDER ALARM MAINTENANCE
Tendring DC,http://statistics.data.gov.uk/id/local-authority-district/22UN,Life Opportunities,1880 - Office Accommodation Expenses,4632 - Security,11/03/2014,7012162-10,530,2100546 - GCS Alarms,INTRUDER ALARM MAINTENANCE
Tendring DC,http://statistics.data.gov.uk/id/local-authority-district/22UN,Life Opportunities,1880 - Office Accommodation Expenses,4632 - Security,11/03/2014,7012162-2,530,2100546 - GCS Alarms,INTRUDER ALARM MAINTENANCE
Tendring DC,http://statistics.data.gov.uk/id/local-authority-district/22UN,Life Opportunities,1880 - Office Accommodation Expenses,4632 - Security,11/03/2014,7012162-3,235,2100546 - GCS Alarms,INTRUDER ALARM MAINTENANCE
Tendring DC,http://statistics.data.gov.uk/id/local-authority-district/22UN,Life Opportunities,1880 - Office Accommodation Expenses,4632 - Security,11/03/2014,7012162-4,235,2100546 - GCS Alarms,INTRUDER ALARM MAINTENANCE
Tendring DC,http://statistics.data.gov.uk/id/local-authority-district/22UN,Life Opportunities,1860 - Depots General,4632 - Security,11/03/2014,7012162-5,530,2100546 - GCS Alarms,INTRUDER ALARM MAINTENANCE
Tendring DC,http://statistics.data.gov.uk/id/local-authority-district/22UN,Life Opportunities,1880 - Office Accommodation Expenses,4632 - Security,11/03/2014,7012162-6,235,2100546 - GCS Alarms,INTRUDER ALARM MAINTENANCE
Tendring DC,http://statistics.data.gov.uk/id/local-authority-district/22UN,Life Opportunities,1880 - Office Accommodation Expenses,4632 - Security,11/03/2014,7012162-7,530,2100546 - GCS Alarms,INTRUDER ALARM MAINTENANCE
Tendring DC,http://statistics.data.gov.uk/id/local-authority-district/22UN,Life Opportunities,1880 - Office Accommodation Expenses,4632 - Security,11/03/2014,7012162-8,235,2100546 - GCS Alarms,INTRUDER ALARM MAINTENANCE
Tendring DC,http://statistics.data.gov.uk/id/local-authority-district/22UN,Life Opportunities,1880 - Office Accommodation Expenses,4632 - Security,11/03/2014,7012162-9,530,2100546 - GCS Alarms,INTRUDER ALARM MAINTENANCE
Tendring DC,http://statistics.data.gov.uk/id/local-authority-district/22UN,Life Opportunities,1880 - Office Accommodation Expenses,4632 - Security,11/03/2014,7012164-1,389,2100546 - GCS Alarms,INTRUDER ALARM MAINTENANCE BARNES HOUSE
Tendring DC,http://statistics.data.gov.uk/id/local-authority-district/22UN,Life Opportunities,1880 - Office Accommodation Expenses,4632 - Security,18/03/2014,7012272-1,55,2100546 - GCS Alarms,HARWICH CASH OFFICE REMOVE PA
Tendring DC,http://statistics.data.gov.uk/id/local-authority-district/22UN,Life Opportunities,8540 - Leisure Centre Clacton,2100 - Building Repairs,25/03/2014,7012388-1,145,2100546 - GCS Alarms,emergency light health suite
Tendring DC,http://statistics.data.gov.uk/id/local-authority-district/22UN,Life Opportunities,8540 - Leisure Centre Clacton,2100 - Building Repairs,25/03/2014,7012389-1,360,2100546 - GCS Alarms,fault on loop 2
Tendring DC,http://statistics.data.gov.uk/id/local-authority-district/22UN,Life Opportunities,5480 - HRA - Repair & Maintenance,2018 - Other Responsive Repairs,04/03/2014,2113410-1,166.4,REDACTED PERSONAL DATA,REDACTED PERSONAL DATA
Tendring DC,http://statistics.data.gov.uk/id/local-authority-district/22UN,Life Opportunities,1100 - Corporate Director (Corporate Services) and Admin Service Unit,3300 - Public Transport - Officers,11/03/2014,1057788-1,4.6,2113680 - Georgia Dodd,BUS TRAVEL
Tendring DC,http://statistics.data.gov.uk/id/local-authority-district/22UN,Life Opportunities,7610 - TDC Events - Council Owned Land,4094 - Other Equipment Hire/Leasing,11/03/2014,1057844-1,1400,2113616 - Get Cycling CiC,ITEMS FOR BIKE TOUR
Tendring DC,http://statistics.data.gov.uk/id/local-authority-district/22UN,Life Opportunities,5240 - HRA - Managing Tenancies,5242 - Tenant Relations,11/03/2014,1057765-1,20,REDACTED PERSONAL DATA,REDACTED PERSONAL DATA
Tendring DC,http://statistics.data.gov.uk/id/local-authority-district/22UN,Life Opportunities,5240 - HRA - Managing Tenancies,5248 - Estate Management Expenses,25/03/2014,2113764-1,1600.8,2113730 - Green Magic Co Uk Ltd,Poster Frames for Housing
Tendring DC,http://statistics.data.gov.uk/id/local-authority-district/22UN,Life Opportunities,6160 - Princes Theatre,4105 - Bar/Catering Expenses,04/03/2014,7011872-1,686.08,2112641 - Greene King Brewing and Retailing Ltd,BEVERAGES FOR THEATRE BAR
Tendring DC,http://statistics.data.gov.uk/id/local-authority-district/22UN,Life Opportunities,1880 - Office Accommodation Expenses,2100 - Building Repairs,25/03/2014,7012442-1,160,2106272 - Greenleaf Pest Control Services,flea treatment pier avenue
Tendring DC,http://statistics.data.gov.uk/id/local-authority-district/22UN,Life Opportunities,5140 - Homelessness,4680 - Bed & Breakfast Accommodation,04/03/2014,7011906-1,450,REDACTED PERSONAL DATA,REDACTED PERSONAL DATA
Tendring DC,http://statistics.data.gov.uk/id/local-authority-district/22UN,Life Opportunities,5860 - Manningtree Sports Centre,4040 - Equipment & Tools,18/03/2014,2113629-1,133,2100641 - Gymnastic Enterprises Ltd,Gymnastics & Trampoline Awards
Tendring DC,http://statistics.data.gov.uk/id/local-authority-district/22UN,Life Opportunities,5800 - Brightlingsea Sports Centre,5300 - Resaleable Items,25/03/2014,7012381-1,32.17,2100641 - Gymnastic Enterprises Ltd,gymnastic awards
Tendring DC,http://statistics.data.gov.uk/id/local-authority-district/22UN,Life Opportunities,8540 - Leisure Centre Clacton,5300 - Resaleable Items,25/03/2014,7012381-2,139.49,2100641 - Gymnastic Enterprises Ltd,gymnastic awards
Tendring DC,http://statistics.data.gov.uk/id/local-authority-district/22UN,Life Opportunities,8540 - Leisure Centre Clacton,5300 - Resaleable Items,25/03/2014,7012381-3,15.3,2100641 - Gymnastic Enterprises Ltd,gymnastic awards
Tendring DC,http://statistics.data.gov.uk/id/local-authority-district/22UN,Life Opportunities,"1580 - Benefits, Revenues and Customer Contact SU",4462 - Bailiffs and Tracing Agent Fees re debt recovery,04/03/2014,2113391-1,151,2113197 - Hambury Tilmond Ltd,VAT on fees collected 924.10
Tendring DC,http://statistics.data.gov.uk/id/local-authority-district/22UN,Life Opportunities,"1580 - Benefits, Revenues and Customer Contact SU",4462 - Bailiffs and Tracing Agent Fees re debt recovery,04/03/2014,2113391-2,-151,2113197 - Hambury Tilmond Ltd,VAT on fees collected 924.10
Tendring DC,http://statistics.data.gov.uk/id/local-authority-district/22UN,Life Opportunities,"1580 - Benefits, Revenues and Customer Contact SU",4462 - Bailiffs and Tracing Agent Fees re debt recovery,04/03/2014,2113391-3,24.5,2113197 - Hambury Tilmond Ltd,VAT on fees collected 924.10
Tendring DC,http://statistics.data.gov.uk/id/local-authority-district/22UN,Life Opportunities,"1580 - Benefits, Revenues and Customer Contact SU",4462 - Bailiffs and Tracing Agent Fees re debt recovery,04/03/2014,2113391-4,-24.5,2113197 - Hambury Tilmond Ltd,VAT on fees collected 924.10
Tendring DC,http://statistics.data.gov.uk/id/local-authority-district/22UN,Life Opportunities,"1580 - Benefits, Revenues and Customer Contact SU",4462 - Bailiffs and Tracing Agent Fees re debt recovery,04/03/2014,2113391-5,18,2113197 - Hambury Tilmond Ltd,VAT on fees collected 924.10
Tendring DC,http://statistics.data.gov.uk/id/local-authority-district/22UN,Life Opportunities,"1580 - Benefits, Revenues and Customer Contact SU",4462 - Bailiffs and Tracing Agent Fees re debt recovery,04/03/2014,2113391-6,-18,2113197 - Hambury Tilmond Ltd,VAT on fees collected 924.10
Tendring DC,http://statistics.data.gov.uk/id/local-authority-district/22UN,Life Opportunities,"1580 - Benefits, Revenues and Customer Contact SU",4462 - Bailiffs and Tracing Agent Fees re debt recovery,04/03/2014,2113392-1,36.5,2113197 - Hambury Tilmond Ltd,VAT on fees collected  on 524
Tendring DC,http://statistics.data.gov.uk/id/local-authority-district/22UN,Life Opportunities,"1580 - Benefits, Revenues and Customer Contact SU",4462 - Bailiffs and Tracing Agent Fees re debt recovery,04/03/2014,2113392-2,-36.5,2113197 - Hambury Tilmond Ltd,VAT on fees collected  on 524
Tendring DC,http://statistics.data.gov.uk/id/local-authority-district/22UN,Life Opportunities,"1580 - Benefits, Revenues and Customer Contact SU",4462 - Bailiffs and Tracing Agent Fees re debt recovery,18/03/2014,7012259-1,249.5,2113197 - Hambury Tilmond Ltd,VAT ON FEES COLLECTED C/T 429.50 RECOVERED
Tendring DC,http://statistics.data.gov.uk/id/local-authority-district/22UN,Life Opportunities,"1580 - Benefits, Revenues and Customer Contact SU",4462 - Bailiffs and Tracing Agent Fees re debt recovery,18/03/2014,7012259-2,-249.5,2113197 - Hambury Tilmond Ltd,VAT ON FEES COLLECTED C/T 429.50 RECOVERED
Tendring DC,http://statistics.data.gov.uk/id/local-authority-district/22UN,Life Opportunities,"1580 - Benefits, Revenues and Customer Contact SU",4462 - Bailiffs and Tracing Agent Fees re debt recovery,25/03/2014,7012446-1,295,2113197 - Hambury Tilmond Ltd,vat on fees collected c/t 1777.75 recovered
Tendring DC,http://statistics.data.gov.uk/id/local-authority-district/22UN,Life Opportunities,"1580 - Benefits, Revenues and Customer Contact SU",4462 - Bailiffs and Tracing Agent Fees re debt recovery,25/03/2014,7012446-2,-295,2113197 - Hambury Tilmond Ltd,vat on fees collected c/t 1777.75 recovered
Tendring DC,http://statistics.data.gov.uk/id/local-authority-district/22UN,Life Opportunities,H860 - Disabled Adaptations,C200 - Main Contractor,11/03/2014,1057747-1,5548,REDACTED PERSONAL DATA,REDACTED PERSONAL DATA
Tendring DC,http://statistics.data.gov.uk/id/local-authority-district/22UN,Life Opportunities,H860 - Disabled Adaptations,C200 - Main Contractor,25/03/2014,1057994-1,5347.92,REDACTED PERSONAL DATA,REDACTED PERSONAL DATA
Tendring DC,http://statistics.data.gov.uk/id/local-authority-district/22UN,Life Opportunities,5240 - HRA - Managing Tenancies,5242 - Tenant Relations,11/03/2014,7012010-1,44,2100604 - Harwich Taxis,TRANSPORT 28.01.14
Tendring DC,http://statistics.data.gov.uk/id/local-authority-district/22UN,Life Opportunities,5240 - HRA - Managing Tenancies,5242 - Tenant Relations,11/03/2014,7012011-1,88,2100604 - Harwich Taxis,TRANSPORT 4.2 & 11.2
Tendring DC,http://statistics.data.gov.uk/id/local-authority-district/22UN,Life Opportunities,5240 - HRA - Managing Tenancies,5242 - Tenant Relations,18/03/2014,7012229-1,44,2100604 - Harwich Taxis,TRANSPORT 19.02.14
Tendring DC,http://statistics.data.gov.uk/id/local-authority-district/22UN,Life Opportunities,5240 - HRA - Managing Tenancies,5242 - Tenant Relations,18/03/2014,7012230-1,44,2100604 - Harwich Taxis,TRANSPORT 25.02.14
Tendring DC,http://statistics.data.gov.uk/id/local-authority-district/22UN,Life Opportunities,5140 - Homelessness,4683 - Other Homelessness Expenses,11/03/2014,1057789-1,550,REDACTED PERSONAL DATA,REDACTED PERSONAL DATA
Tendring DC,http://statistics.data.gov.uk/id/local-authority-district/22UN,Life Opportunities,"1580 - Benefits, Revenues and Customer Contact SU",4466 - Land Registry Fees,25/03/2014,2113820-1,318,REDACTED PERSONAL DATA,REDACTED PERSONAL DATA
Tendring DC,http://statistics.data.gov.uk/id/local-authority-district/22UN,Life Opportunities,H920 - Disabled Facilities Grants,C400 - Grant payments,04/03/2014,1057638-1,4462,REDACTED PERSONAL DATA,REDACTED PERSONAL DATA
Tendring DC,http://statistics.data.gov.uk/id/local-authority-district/22UN,Life Opportunities,H920 - Disabled Facilities Grants,C400 - Grant payments,25/03/2014,1058007-1,5939.84,REDACTED PERSONAL DATA,REDACTED PERSONAL DATA
Tendring DC,http://statistics.data.gov.uk/id/local-authority-district/22UN,Life Opportunities,8510 - Dovercourt Swimming Pool & All Weather Facilities,2100 - Building Repairs,11/03/2014,7012028-1,160,2101848 - Homecraft Contracts Ltd,DOVERCOURT POOL - REPAIRS
Tendring DC,http://statistics.data.gov.uk/id/local-authority-district/22UN,Life Opportunities,8510 - Dovercourt Swimming Pool & All Weather Facilities,2100 - Building Repairs,11/03/2014,7012176-1,1990,2101848 - Homecraft Contracts Ltd,DOVERCOURT POOL - BUILDING WORK
Tendring DC,http://statistics.data.gov.uk/id/local-authority-district/22UN,Life Opportunities,8510 - Dovercourt Swimming Pool & All Weather Facilities,2100 - Building Repairs,11/03/2014,7012177-1,480,2101848 - Homecraft Contracts Ltd,DOVERCOURT POOL - SHOWERS
Tendring DC,http://statistics.data.gov.uk/id/local-authority-district/22UN,Life Opportunities,8510 - Dovercourt Swimming Pool & All Weather Facilities,2100 - Building Repairs,18/03/2014,2113633-1,164,2100677 - Homecraft DIY Ltd,Dovercourt Pool - Repairs
Tendring DC,http://statistics.data.gov.uk/id/local-authority-district/22UN,Life Opportunities,"1580 - Benefits, Revenues and Customer Contact SU",4300 - Printing & Stationery,18/03/2014,7012243-1,1548,2110569 - Hound Envelopes Ltd,STANDARD + B ENVELOPES
Tendring DC,http://statistics.data.gov.uk/id/local-authority-district/22UN,Life Opportunities,5240 - HRA - Managing Tenancies,5242 - Tenant Relations,25/03/2014,7012439-1,600,2100648 - HouseMark Ltd,customer excellence club
Tendring DC,http://statistics.data.gov.uk/id/local-authority-district/22UN,Life Opportunities,5240 - HRA - Managing Tenancies,4469 - Other Non - Legal Professional Services,25/03/2014,2113750-1,382.04,2111338 - Housing Partners Limited,Homeswapper Dec 13 - Feb 14
Tendring DC,http://statistics.data.gov.uk/id/local-authority-district/22UN,Life Opportunities,5360 - HRA - Sheltered Units,1700 - Training - Courses,18/03/2014,2113650-1,318,REDACTED PERSONAL DATA,REDACTED PERSONAL DATA
Tendring DC,http://statistics.data.gov.uk/id/local-authority-district/22UN,Life Opportunities,5140 - Homelessness,4683 - Other Homelessness Expenses,11/03/2014,1057805-1,435,REDACTED PERSONAL DATA,REDACTED PERSONAL DATA
Tendring DC,http://statistics.data.gov.uk/id/local-authority-district/22UN,Life Opportunities,5480 - HRA - Repair & Maintenance,2014 - Decoration Allowances,18/03/2014,7012235-1,41.65,REDACTED PERSONAL DATA,REDACTED PERSONAL DATA
Tendring DC,http://statistics.data.gov.uk/id/local-authority-district/22UN,Life Opportunities,6160 - Princes Theatre,4040 - Equipment & Tools,11/03/2014,7012135-1,64.1,2113683 - Illuminate Design,MAC 250 STARTER
Tendring DC,http://statistics.data.gov.uk/id/local-authority-district/22UN,Life Opportunities,6920 - Youth Initiatives,5164 - Project Expenses,25/03/2014,2113821-1,1000,REDACTED PERSONAL DATA,REDACTED PERSONAL DATA
Tendring DC,http://statistics.data.gov.uk/id/local-authority-district/22UN,Life Opportunities,6920 - Youth Initiatives,5164 - Project Expenses,25/03/2014,2113822-1,1000,2106677 - Inclusion Ventures,Group Work Project
Tendring DC,http://statistics.data.gov.uk/id/local-authority-district/22UN,Life Opportunities,6920 - Youth Initiatives,5164 - Project Expenses,25/03/2014,2113823-1,4000,2106677 - Inclusion Ventures,Mentoring Report
Tendring DC,http://statistics.data.gov.uk/id/local-authority-district/22UN,Life Opportunities,5860 - Manningtree Sports Centre,4090 - Lease of Vending Machines,11/03/2014,7011977-1,356.2,2100702 - ING Lease (UK) Ltd,QUARTERLY LEASE 2 X VENDING MACHINES
Tendring DC,http://statistics.data.gov.uk/id/local-authority-district/22UN,Life Opportunities,1880 - Office Accommodation Expenses,4666 - Hygiene Services,18/03/2014,7012204-1,3.75,2104976 - Initial Washroom Solutions,SERVICE AMENDMENT INCREASE
Tendring DC,http://statistics.data.gov.uk/id/local-authority-district/22UN,Life Opportunities,1880 - Office Accommodation Expenses,4666 - Hygiene Services,18/03/2014,7012205-1,0.5,2104976 - Initial Washroom Solutions,SERVICE AMENDMENT INCREASE
Tendring DC,http://statistics.data.gov.uk/id/local-authority-district/22UN,Life Opportunities,1880 - Office Accommodation Expenses,4666 - Hygiene Services,18/03/2014,7012242-1,41.74,2104976 - Initial Washroom Solutions,INITIAL 28.02.14 - 27.03.14
Tendring DC,http://statistics.data.gov.uk/id/local-authority-district/22UN,Life Opportunities,1860 - Depots General,4666 - Hygiene Services,18/03/2014,7012242-2,33.87,2104976 - Initial Washroom Solutions,INITIAL 28.02.14 - 27.03.14
Tendring DC,http://statistics.data.gov.uk/id/local-authority-district/22UN,Life Opportunities,1880 - Office Accommodation Expenses,4666 - Hygiene Services,18/03/2014,7012242-3,15.74,2104976 - Initial Washroom Solutions,INITIAL 28.02.14 - 27.03.14
Tendring DC,http://statistics.data.gov.uk/id/local-authority-district/22UN,Life Opportunities,1880 - Office Accommodation Expenses,4666 - Hygiene Services,18/03/2014,7012242-4,87.85,2104976 - Initial Washroom Solutions,INITIAL 28.02.14 - 27.03.14
Tendring DC,http://statistics.data.gov.uk/id/local-authority-district/22UN,Life Opportunities,1880 - Office Accommodation Expenses,4666 - Hygiene Services,18/03/2014,7012242-5,7.87,2104976 - Initial Washroom Solutions,INITIAL 28.02.14 - 27.03.14
Tendring DC,http://statistics.data.gov.uk/id/local-authority-district/22UN,Life Opportunities,4820 - Public Conveniences,4080 - Materials & Consumables,18/03/2014,7012242-6,108.84,2104976 - Initial Washroom Solutions,INITIAL 28.02.14 - 27.03.14
Tendring DC,http://statistics.data.gov.uk/id/local-authority-district/22UN,Life Opportunities,5880 - Management Of Sport & Leisure Facilities,5166 - Marketing and Promotion,18/03/2014,2113625-1,90,2113575 - Intelligent Texting,March licence Fee
Tendring DC,http://statistics.data.gov.uk/id/local-authority-district/22UN,Life Opportunities,1880 - Office Accommodation Expenses,4448 - Confidential Waste,18/03/2014,1057916-1,56.4,2110936 - IPPlus (UK) Ltd,CONFIDENTIAL WASTE TOWN HALL
Tendring DC,http://statistics.data.gov.uk/id/local-authority-district/22UN,Life Opportunities,1880 - Office Accommodation Expenses,4448 - Confidential Waste,18/03/2014,1057916-2,11.75,2110936 - IPPlus (UK) Ltd,CONFIDENTIAL WASTE TOWN HALL
Tendring DC,http://statistics.data.gov.uk/id/local-authority-district/22UN,Life Opportunities,1880 - Office Accommodation Expenses,4448 - Confidential Waste,18/03/2014,7012216-1,25.85,2110936 - IPPlus (UK) Ltd,ANCORA CONFIDENTIAL WASTE
Tendring DC,http://statistics.data.gov.uk/id/local-authority-district/22UN,Life Opportunities,1880 - Office Accommodation Expenses,4448 - Confidential Waste,18/03/2014,7012270-1,25.85,2110936 - IPPlus (UK) Ltd,CONFIDENTIAL WASTE WEELEY
Tendring DC,http://statistics.data.gov.uk/id/local-authority-district/22UN,Life Opportunities,1230 - Strategic Housing & Needs Management,4448 - Confidential Waste,18/03/2014,7012270-2,47,2110936 - IPPlus (UK) Ltd,CONFIDENTIAL WASTE WEELEY
Tendring DC,http://statistics.data.gov.uk/id/local-authority-district/22UN,Life Opportunities,8510 - Dovercourt Swimming Pool & All Weather Facilities,1700 - Training - Courses,11/03/2014,7012025-1,115,2100724 - IQL UK Ltd,DOVERCOURT POOL - NPLQ
Tendring DC,http://statistics.data.gov.uk/id/local-authority-district/22UN,Life Opportunities,8520 - Frinton & Walton Swimming Pool,4000 - Furniture,04/03/2014,2113399-1,37.55,2100755 - J P Lennard Ltd,FWSP - JPL
Tendring DC,http://statistics.data.gov.uk/id/local-authority-district/22UN,Life Opportunities,8520 - Frinton & Walton Swimming Pool,5300 - Resaleable Items,04/03/2014,2113401-1,190.92,2100755 - J P Lennard Ltd,FWSP - JPL
Tendring DC,http://statistics.data.gov.uk/id/local-authority-district/22UN,Life Opportunities,8510 - Dovercourt Swimming Pool & All Weather Facilities,4200 - Clothing & Uniforms,18/03/2014,2113632-1,105.6,2100755 - J P Lennard Ltd,Dovercourt Pool - Shorts
Tendring DC,http://statistics.data.gov.uk/id/local-authority-district/22UN,Life Opportunities,5880 - Management Of Sport & Leisure Facilities,2100 - Building Repairs,18/03/2014,2113676-1,2772,2100755 - J P Lennard Ltd,12 x Trx Pro 3 Suspension Kits
Tendring DC,http://statistics.data.gov.uk/id/local-authority-district/22UN,Life Opportunities,8520 - Frinton & Walton Swimming Pool,5300 - Resaleable Items,11/03/2014,7012004-1,338.27,2100755 - J P Lennard Ltd,JPL - RESALES
Tendring DC,http://statistics.data.gov.uk/id/local-authority-district/22UN,Life Opportunities,8520 - Frinton & Walton Swimming Pool,5300 - Resaleable Items,11/03/2014,7012004-2,20.87,2100755 - J P Lennard Ltd,JPL - RESALES
Tendring DC,http://statistics.data.gov.uk/id/local-authority-district/22UN,Life Opportunities,8540 - Leisure Centre Clacton,4000 - Furniture,11/03/2014,7012005-1,34.4,2100755 - J P Lennard Ltd,THERMOMETER & BALL NET
Tendring DC,http://statistics.data.gov.uk/id/local-authority-district/22UN,Life Opportunities,8520 - Frinton & Walton Swimming Pool,4200 - Clothing & Uniforms,11/03/2014,7012006-1,15.8,2100755 - J P Lennard Ltd,FWSP - JPL
Tendring DC,http://statistics.data.gov.uk/id/local-authority-district/22UN,Life Opportunities,8540 - Leisure Centre Clacton,4000 - Furniture,11/03/2014,7012007-1,106.28,2100755 - J P Lennard Ltd,REC STOCK
Tendring DC,http://statistics.data.gov.uk/id/local-authority-district/22UN,Life Opportunities,8510 - Dovercourt Swimming Pool & All Weather Facilities,2100 - Building Repairs,11/03/2014,7012174-1,252.6,2100755 - J P Lennard Ltd,DOVERCOURT POOL - GOAL NETS
Tendring DC,http://statistics.data.gov.uk/id/local-authority-district/22UN,Life Opportunities,8510 - Dovercourt Swimming Pool & All Weather Facilities,4000 - Furniture,11/03/2014,7012175-1,92.6,2100755 - J P Lennard Ltd,DOVERCOURT POOL - OVERSHOES
Tendring DC,http://statistics.data.gov.uk/id/local-authority-district/22UN,Life Opportunities,8520 - Frinton & Walton Swimming Pool,4200 - Clothing & Uniforms,25/03/2014,7012414-1,66.6,2100755 - J P Lennard Ltd,jpl/uniform
Tendring DC,http://statistics.data.gov.uk/id/local-authority-district/22UN,Life Opportunities,1210 - Facilities Management Service Unit,5500 - Miscellaneous Expenses,11/03/2014,2113430-1,160,REDACTED PERSONAL DATA,REDACTED PERSONAL DATA
Tendring DC,http://statistics.data.gov.uk/id/local-authority-district/22UN,Life Opportunities,8520 - Frinton & Walton Swimming Pool,5311 - General Provisions - Vending,11/03/2014,7011997-1,154,2109088 - JC Vending Services,JC VENDING - HOT DRINKS
Tendring DC,http://statistics.data.gov.uk/id/local-authority-district/22UN,Life Opportunities,8510 - Dovercourt Swimming Pool & All Weather Facilities,5311 - General Provisions - Vending,11/03/2014,7012027-1,36.2,2109088 - JC Vending Services,DOVERCOURT POOL - HOT DRINKS
Tendring DC,http://statistics.data.gov.uk/id/local-authority-district/22UN,Life Opportunities,8520 - Frinton & Walton Swimming Pool,5311 - General Provisions - Vending,25/03/2014,7012413-1,112.8,2109088 - JC Vending Services,jc vending/hot drinks
Tendring DC,http://statistics.data.gov.uk/id/local-authority-district/22UN,Life Opportunities,5240 - HRA - Managing Tenancies,5242 - Tenant Relations,11/03/2014,1057772-1,10,REDACTED PERSONAL DATA,REDACTED PERSONAL DATA
Tendring DC,http://statistics.data.gov.uk/id/local-authority-district/22UN,Life Opportunities,H920 - Disabled Facilities Grants,C400 - Grant payments,11/03/2014,1057802-1,5136.9,REDACTED PERSONAL DATA,REDACTED PERSONAL DATA
Tendring DC,http://statistics.data.gov.uk/id/local-authority-district/22UN,Life Opportunities,H920 - Disabled Facilities Grants,C400 - Grant payments,11/03/2014,7012117-1,3148,REDACTED PERSONAL DATA,REDACTED PERSONAL DATA
Tendring DC,http://statistics.data.gov.uk/id/local-authority-district/22UN,Life Opportunities,5480 - HRA - Repair & Maintenance,2064 - Domestic Appliance Repairs,11/03/2014,7011953-1,25,REDACTED PERSONAL DATA,REDACTED PERSONAL DATA
Tendring DC,http://statistics.data.gov.uk/id/local-authority-district/22UN,Life Opportunities,5480 - HRA - Repair & Maintenance,2064 - Domestic Appliance Repairs,11/03/2014,7011954-1,95,2112159 - Justins Domestic Appliance Repairs,BELMANS COURT
Tendring DC,http://statistics.data.gov.uk/id/local-authority-district/22UN,Life Opportunities,5480 - HRA - Repair & Maintenance,2064 - Domestic Appliance Repairs,11/03/2014,7011955-1,135,2112159 - Justins Domestic Appliance Repairs,HONEYCROFT
Tendring DC,http://statistics.data.gov.uk/id/local-authority-district/22UN,Life Opportunities,5480 - HRA - Repair & Maintenance,2064 - Domestic Appliance Repairs,11/03/2014,7011956-1,55,REDACTED PERSONAL DATA,REDACTED PERSONAL DATA
Tendring DC,http://statistics.data.gov.uk/id/local-authority-district/22UN,Life Opportunities,5480 - HRA - Repair & Maintenance,2064 - Domestic Appliance Repairs,11/03/2014,7011957-1,25,REDACTED PERSONAL DATA,REDACTED PERSONAL DATA
Tendring DC,http://statistics.data.gov.uk/id/local-authority-district/22UN,Life Opportunities,H860 - Disabled Adaptations,C200 - Main Contractor,04/03/2014,1057626-1,1346,REDACTED PERSONAL DATA,REDACTED PERSONAL DATA
Tendring DC,http://statistics.data.gov.uk/id/local-authority-district/22UN,Life Opportunities,H860 - Disabled Adaptations,C200 - Main Contractor,04/03/2014,1057626-2,1643,REDACTED PERSONAL DATA,REDACTED PERSONAL DATA
Tendring DC,http://statistics.data.gov.uk/id/local-authority-district/22UN,Life Opportunities,1880 - Office Accommodation Expenses,2100 - Building Repairs,11/03/2014,1057740-1,50,2111266 - JW Plumbing and Heating,WORKS AT WEELEY OFFICES
Tendring DC,http://statistics.data.gov.uk/id/local-authority-district/22UN,Life Opportunities,H860 - Disabled Adaptations,C200 - Main Contractor,18/03/2014,1057871-1,2186,REDACTED PERSONAL DATA,REDACTED PERSONAL DATA
Tendring DC,http://statistics.data.gov.uk/id/local-authority-district/22UN,Life Opportunities,H860 - Disabled Adaptations,C200 - Main Contractor,18/03/2014,1057871-2,2559,REDACTED PERSONAL DATA,REDACTED PERSONAL DATA
Tendring DC,http://statistics.data.gov.uk/id/local-authority-district/22UN,Life Opportunities,H860 - Disabled Adaptations,C200 - Main Contractor,25/03/2014,1057975-1,1180,REDACTED PERSONAL DATA,REDACTED PERSONAL DATA
Tendring DC,http://statistics.data.gov.uk/id/local-authority-district/22UN,Life Opportunities,H860 - Disabled Adaptations,C200 - Main Contractor,25/03/2014,1057975-2,1785,REDACTED PERSONAL DATA,REDACTED PERSONAL DATA
Tendring DC,http://statistics.data.gov.uk/id/local-authority-district/22UN,Life Opportunities,8520 - Frinton & Walton Swimming Pool,4000 - Furniture,25/03/2014,7012415-1,426,2103458 - Key,key/furniture
Tendring DC,http://statistics.data.gov.uk/id/local-authority-district/22UN,Life Opportunities,5480 - HRA - Repair & Maintenance,2071 - Electric Installation Testing,25/03/2014,1058038-1,2235.35,2113799 - Kirkman & Jourdain Ltd,TEST INSPECT UPGRADE 19 NO. PROPERTIES
Tendring DC,http://statistics.data.gov.uk/id/local-authority-district/22UN,Life Opportunities,5480 - HRA - Repair & Maintenance,2072 - Planned Partial Refurbishment To Electrical Instal,25/03/2014,1058038-2,6228.42,2113799 - Kirkman & Jourdain Ltd,TEST INSPECT UPGRADE 19 NO. PROPERTIES
Tendring DC,http://statistics.data.gov.uk/id/local-authority-district/22UN,Life Opportunities,5360 - HRA - Sheltered Units,4601 - Hired services - Cleaning,04/03/2014,1057668-1,153,2100851 - KO-SHEEN Contract Cleaning Ltd,CLEANING 20/1-24/1/14
Tendring DC,http://statistics.data.gov.uk/id/local-authority-district/22UN,Life Opportunities,5360 - HRA - Sheltered Units,4601 - Hired services - Cleaning,25/03/2014,2113857-1,153,REDACTED PERSONAL DATA,REDACTED PERSONAL DATA
Tendring DC,http://statistics.data.gov.uk/id/local-authority-district/22UN,Life Opportunities,5860 - Manningtree Sports Centre,4601 - Hired services - Cleaning,25/03/2014,2113870-1,63.75,2100851 - KO-SHEEN Contract Cleaning Ltd,Cleaning 24-28 Feb 14
Tendring DC,http://statistics.data.gov.uk/id/local-authority-district/22UN,Life Opportunities,5860 - Manningtree Sports Centre,4601 - Hired services - Cleaning,25/03/2014,2113871-1,63.75,2100851 - KO-SHEEN Contract Cleaning Ltd,Cleaning 3-7 March 14
Tendring DC,http://statistics.data.gov.uk/id/local-authority-district/22UN,Life Opportunities,5360 - HRA - Sheltered Units,4601 - Hired services - Cleaning,04/03/2014,7011902-1,153,2100851 - KO-SHEEN Contract Cleaning Ltd,CLEANING 10/02 - 14/02/14
Tendring DC,http://statistics.data.gov.uk/id/local-authority-district/22UN,Life Opportunities,5860 - Manningtree Sports Centre,4601 - Hired services - Cleaning,11/03/2014,7011972-1,59.5,2100851 - KO-SHEEN Contract Cleaning Ltd,CLEANING 10TH-14TH FEB 2014
Tendring DC,http://statistics.data.gov.uk/id/local-authority-district/22UN,Life Opportunities,8540 - Leisure Centre Clacton,4597 - Hired Services - Payments to Contractors,11/03/2014,7011973-1,200,2100851 - KO-SHEEN Contract Cleaning Ltd,W/E 15.2.14 - 16 HRS
Tendring DC,http://statistics.data.gov.uk/id/local-authority-district/22UN,Life Opportunities,8540 - Leisure Centre Clacton,4597 - Hired Services - Payments to Contractors,11/03/2014,7012000-1,50,2100851 - KO-SHEEN Contract Cleaning Ltd,W/E 22.2.14 4 HRS
Tendring DC,http://statistics.data.gov.uk/id/local-authority-district/22UN,Life Opportunities,5360 - HRA - Sheltered Units,4601 - Hired services - Cleaning,11/03/2014,7012030-1,255,2100851 - KO-SHEEN Contract Cleaning Ltd,CLEANING COVER 17-21/02/14
Tendring DC,http://statistics.data.gov.uk/id/local-authority-district/22UN,Life Opportunities,5360 - HRA - Sheltered Units,4601 - Hired services - Cleaning,18/03/2014,7012232-1,588.88,2100851 - KO-SHEEN Contract Cleaning Ltd,CLEANING AT BELMANS COURT
Tendring DC,http://statistics.data.gov.uk/id/local-authority-district/22UN,Life Opportunities,5360 - HRA - Sheltered Units,4601 - Hired services - Cleaning,18/03/2014,7012233-1,204,2100851 - KO-SHEEN Contract Cleaning Ltd,CLEANING 24TH TO 28TH FEB 14
Tendring DC,http://statistics.data.gov.uk/id/local-authority-district/22UN,Life Opportunities,8540 - Leisure Centre Clacton,4597 - Hired Services - Payments to Contractors,25/03/2014,7012391-1,325,2100851 - KO-SHEEN Contract Cleaning Ltd,w/e 28 feb 26 hr
Tendring DC,http://statistics.data.gov.uk/id/local-authority-district/22UN,Life Opportunities,8540 - Leisure Centre Clacton,4597 - Hired Services - Payments to Contractors,25/03/2014,7012392-1,262.5,2100851 - KO-SHEEN Contract Cleaning Ltd,w/e 8-3-14 21 hrs
Tendring DC,http://statistics.data.gov.uk/id/local-authority-district/22UN,Life Opportunities,5480 - HRA - Repair & Maintenance,2088 - Disabled Adaptations,04/03/2014,7011904-1,40,REDACTED PERSONAL DATA,REDACTED PERSONAL DATA
Tendring DC,http://statistics.data.gov.uk/id/local-authority-district/22UN,Life Opportunities,5800 - Brightlingsea Sports Centre,2100 - Building Repairs,18/03/2014,2113665-1,445.49,2111918 - LeisureTek Fitness Ltd,Parts for Spinning Bikes
Tendring DC,http://statistics.data.gov.uk/id/local-authority-district/22UN,Life Opportunities,6740 - Careline,3250 - Operational Leases - Transport,11/03/2014,7011970-1,5959.44,2109786 - Lex Autolease Ltd,CARELINE VANS 2014/15
Tendring DC,http://statistics.data.gov.uk/id/local-authority-district/22UN,Life Opportunities,"1580 - Benefits, Revenues and Customer Contact SU",1350 - Agency Staff,04/03/2014,2113419-1,780,2108077 - Liberata Financial Services Ltd,Jan 14 Submission
Tendring DC,http://statistics.data.gov.uk/id/local-authority-district/22UN,Life Opportunities,5240 - HRA - Managing Tenancies,5242 - Tenant Relations,11/03/2014,1057769-1,10,REDACTED PERSONAL DATA,REDACTED PERSONAL DATA
Tendring DC,http://statistics.data.gov.uk/id/local-authority-district/22UN,Life Opportunities,5880 - Management Of Sport & Leisure Facilities,5166 - Marketing and Promotion,18/03/2014,2113623-1,124,2107277 - Look 5 Ltd,1 HPC Look 2 April
Tendring DC,http://statistics.data.gov.uk/id/local-authority-district/22UN,Life Opportunities,8540 - Leisure Centre Clacton,5160 - Advertising,25/03/2014,7012385-1,492,2107277 - Look 5 Ltd,ads look 5 and 6 april
Tendring DC,http://statistics.data.gov.uk/id/local-authority-district/22UN,Life Opportunities,6740 - Careline,3300 - Public Transport - Officers,18/03/2014,7012284-1,46.8,2112785 - Luke Rosier,BUS TICKET CLAIM FEB 2014
Tendring DC,http://statistics.data.gov.uk/id/local-authority-district/22UN,Life Opportunities,1230 - Strategic Housing & Needs Management,3302 - Car Allowances - Officers,25/03/2014,2113838-1,26.4,REDACTED PERSONAL DATA,REDACTED PERSONAL DATA
Tendring DC,http://statistics.data.gov.uk/id/local-authority-district/22UN,Life Opportunities,6160 - Princes Theatre,4597 - Hired Services - Payments to Contractors,11/03/2014,1057845-1,150,2100837 - M A Williams,STOCKTAKING THEATRE BAR FEB 14
Tendring DC,http://statistics.data.gov.uk/id/local-authority-district/22UN,Life Opportunities,5220 - HRA - Policy & Management,5253 - HRA Health & Safety Expenses,25/03/2014,1058019-1,23.43,2113780 - Mainman Supplies Ltd,SHU JACKET-DH
Tendring DC,http://statistics.data.gov.uk/id/local-authority-district/22UN,Life Opportunities,5220 - HRA - Policy & Management,5253 - HRA Health & Safety Expenses,11/03/2014,7012137-1,25.45,2113780 - Mainman Supplies Ltd,SAFETY BOOTS & WELLINGTONS
Tendring DC,http://statistics.data.gov.uk/id/local-authority-district/22UN,Life Opportunities,5220 - HRA - Policy & Management,5253 - HRA Health & Safety Expenses,11/03/2014,7012138-1,3.4,2113780 - Mainman Supplies Ltd,WHITE POLYPROP COVERALLS
Tendring DC,http://statistics.data.gov.uk/id/local-authority-district/22UN,Life Opportunities,5220 - HRA - Policy & Management,5253 - HRA Health & Safety Expenses,18/03/2014,7012218-1,4.6,2113780 - Mainman Supplies Ltd,WHITE HELMET
Tendring DC,http://statistics.data.gov.uk/id/local-authority-district/22UN,Life Opportunities,5220 - HRA - Policy & Management,5253 - HRA Health & Safety Expenses,18/03/2014,7012256-1,15.24,2113780 - Mainman Supplies Ltd,LINED RIGGER BOOT 5
Tendring DC,http://statistics.data.gov.uk/id/local-authority-district/22UN,Life Opportunities,5240 - HRA - Managing Tenancies,5242 - Tenant Relations,11/03/2014,1057846-1,40,2113137 - Manningtree Taxis,TRANSPORT VARIOUS DATES FEB 14
Tendring DC,http://statistics.data.gov.uk/id/local-authority-district/22UN,Life Opportunities,5240 - HRA - Managing Tenancies,5242 - Tenant Relations,11/03/2014,1057846-2,40,2113137 - Manningtree Taxis,TRANSPORT VARIOUS DATES FEB 14
Tendring DC,http://statistics.data.gov.uk/id/local-authority-district/22UN,Life Opportunities,5240 - HRA - Managing Tenancies,5242 - Tenant Relations,11/03/2014,1057846-3,40,2113137 - Manningtree Taxis,TRANSPORT VARIOUS DATES FEB 14
Tendring DC,http://statistics.data.gov.uk/id/local-authority-district/22UN,Life Opportunities,5240 - HRA - Managing Tenancies,5242 - Tenant Relations,11/03/2014,1057846-4,40,2113137 - Manningtree Taxis,TRANSPORT VARIOUS DATES FEB 14
Tendring DC,http://statistics.data.gov.uk/id/local-authority-district/22UN,Life Opportunities,H815 - Re-roofing,C200 - Main Contractor,18/03/2014,1057935-1,1136,REDACTED PERSONAL DATA,REDACTED PERSONAL DATA
Tendring DC,http://statistics.data.gov.uk/id/local-authority-district/22UN,Life Opportunities,H815 - Re-roofing,C200 - Main Contractor,18/03/2014,1057936-1,1233,REDACTED PERSONAL DATA,REDACTED PERSONAL DATA
Tendring DC,http://statistics.data.gov.uk/id/local-authority-district/22UN,Life Opportunities,5860 - Manningtree Sports Centre,5160 - Advertising,18/03/2014,7012250-1,384,2111922 - Mansion House Publishing (UK) Ltd,ADVERTISING MANNINGTREE MAGAZINE
Tendring DC,http://statistics.data.gov.uk/id/local-authority-district/22UN,Life Opportunities,8540 - Leisure Centre Clacton,9277 - Lifestyles Plus - Annual,04/03/2014,1057726-1,90,REDACTED PERSONAL DATA,REDACTED PERSONAL DATA
Tendring DC,http://statistics.data.gov.uk/id/local-authority-district/22UN,Life Opportunities,H860 - Disabled Adaptations,C200 - Main Contractor,11/03/2014,1057739-1,1315,REDACTED PERSONAL DATA,REDACTED PERSONAL DATA
Tendring DC,http://statistics.data.gov.uk/id/local-authority-district/22UN,Life Opportunities,H860 - Disabled Adaptations,C200 - Main Contractor,11/03/2014,1057739-2,650,REDACTED PERSONAL DATA,REDACTED PERSONAL DATA
Tendring DC,http://statistics.data.gov.uk/id/local-authority-district/22UN,Life Opportunities,H920 - Disabled Facilities Grants,C400 - Grant payments,25/03/2014,1058010-1,8664,REDACTED PERSONAL DATA,REDACTED PERSONAL DATA
Tendring DC,http://statistics.data.gov.uk/id/local-authority-district/22UN,Life Opportunities,5140 - Homelessness,4683 - Other Homelessness Expenses,11/03/2014,1057790-1,435,REDACTED PERSONAL DATA,REDACTED PERSONAL DATA
Tendring DC,http://statistics.data.gov.uk/id/local-authority-district/22UN,Life Opportunities,1090 - Chief Executive and Support Service Unit,4355 - Books & Periodicals,11/03/2014,7012024-1,74.7,2112734 - Matt's Carousel,MATTS CAROUSEL JAN 14
Tendring DC,http://statistics.data.gov.uk/id/local-authority-district/22UN,Life Opportunities,1100 - Corporate Director (Corporate Services) and Admin Service Unit,4355 - Books & Periodicals,11/03/2014,7012024-2,53.2,2112734 - Matt's Carousel,MATTS CAROUSEL JAN 14
Tendring DC,http://statistics.data.gov.uk/id/local-authority-district/22UN,Life Opportunities,1040 - Regeneration Service Unit,4355 - Books & Periodicals,11/03/2014,7012024-3,20.5,2112734 - Matt's Carousel,MATTS CAROUSEL JAN 14
Tendring DC,http://statistics.data.gov.uk/id/local-authority-district/22UN,Life Opportunities,"1580 - Benefits, Revenues and Customer Contact SU",4355 - Books & Periodicals,11/03/2014,7012024-4,20.5,2112734 - Matt's Carousel,MATTS CAROUSEL JAN 14
Tendring DC,http://statistics.data.gov.uk/id/local-authority-district/22UN,Life Opportunities,7040 - Civic Ceremonial Expenses,4080 - Materials & Consumables,11/03/2014,7012024-5,3.2,2112734 - Matt's Carousel,MATTS CAROUSEL JAN 14
Tendring DC,http://statistics.data.gov.uk/id/local-authority-district/22UN,Life Opportunities,1090 - Chief Executive and Support Service Unit,4355 - Books & Periodicals,18/03/2014,7012300-1,60.4,2112734 - Matt's Carousel,PAPERS FEB 14
Tendring DC,http://statistics.data.gov.uk/id/local-authority-district/22UN,Life Opportunities,1100 - Corporate Director (Corporate Services) and Admin Service Unit,4355 - Books & Periodicals,18/03/2014,7012300-2,43.8,2112734 - Matt's Carousel,PAPERS FEB 14
Tendring DC,http://statistics.data.gov.uk/id/local-authority-district/22UN,Life Opportunities,1040 - Regeneration Service Unit,4355 - Books & Periodicals,18/03/2014,7012300-3,18.4,2112734 - Matt's Carousel,PAPERS FEB 14
Tendring DC,http://statistics.data.gov.uk/id/local-authority-district/22UN,Life Opportunities,"1580 - Benefits, Revenues and Customer Contact SU",4355 - Books & Periodicals,18/03/2014,7012300-4,18.4,2112734 - Matt's Carousel,PAPERS FEB 14
Tendring DC,http://statistics.data.gov.uk/id/local-authority-district/22UN,Life Opportunities,7040 - Civic Ceremonial Expenses,4080 - Materials & Consumables,18/03/2014,7012300-5,3.2,2112734 - Matt's Carousel,PAPERS FEB 14
Tendring DC,http://statistics.data.gov.uk/id/local-authority-district/22UN,Life Opportunities,8540 - Leisure Centre Clacton,2100 - Building Repairs,18/03/2014,2113621-1,38.64,2101791 - Medlock Electrical,Light bulbs
Tendring DC,http://statistics.data.gov.uk/id/local-authority-district/22UN,Life Opportunities,8540 - Leisure Centre Clacton,2100 - Building Repairs,25/03/2014,2113733-1,36.96,2101791 - Medlock Electrical,Lights CLC
Tendring DC,http://statistics.data.gov.uk/id/local-authority-district/22UN,Life Opportunities,5880 - Management Of Sport & Leisure Facilities,5166 - Marketing and Promotion,04/03/2014,7011933-1,474,2102946 - Mellow 1557 Ltd,RADIO ADVERT JANUARY OFFER
Tendring DC,http://statistics.data.gov.uk/id/local-authority-district/22UN,Life Opportunities,H800 - Structural Repairs,C200 - Main Contractor,11/03/2014,1057738-1,1521.73,REDACTED PERSONAL DATA,REDACTED PERSONAL DATA
Tendring DC,http://statistics.data.gov.uk/id/local-authority-district/22UN,Life Opportunities,5140 - Homelessness,4683 - Other Homelessness Expenses,11/03/2014,1057791-1,680,REDACTED PERSONAL DATA,REDACTED PERSONAL DATA
Tendring DC,http://statistics.data.gov.uk/id/local-authority-district/22UN,Life Opportunities,5240 - HRA - Managing Tenancies,4469 - Other Non - Legal Professional Services,04/03/2014,1057636-1,36.4,REDACTED PERSONAL DATA,REDACTED PERSONAL DATA
Tendring DC,http://statistics.data.gov.uk/id/local-authority-district/22UN,Life Opportunities,9920 - HRA Balance Sheet,B860 - Housing Rents - Cash,18/03/2014,7012296-1,259.11,REDACTED PERSONAL DATA,REDACTED PERSONAL DATA
Tendring DC,http://statistics.data.gov.uk/id/local-authority-district/22UN,Life Opportunities,9920 - HRA Balance Sheet,B860 - Housing Rents - Cash,18/03/2014,7012293-1,627.26,REDACTED PERSONAL DATA,REDACTED PERSONAL DATA
Tendring DC,http://statistics.data.gov.uk/id/local-authority-district/22UN,Life Opportunities,C021 - Cremator replacement,C200 - Main Contractor,11/03/2014,1057826-1,565,2111984 - MLM Consulting Engineers Ltd,WEELEY CREM M&E FEES
Tendring DC,http://statistics.data.gov.uk/id/local-authority-district/22UN,Life Opportunities,C021 - Cremator replacement,C200 - Main Contractor,11/03/2014,2113428-1,1062,REDACTED PERSONAL DATA,REDACTED PERSONAL DATA
Tendring DC,http://statistics.data.gov.uk/id/local-authority-district/22UN,Life Opportunities,8540 - Leisure Centre Clacton,4400 - Maintenance Under Service Agreements,04/03/2014,7011928-1,64.4,2104791 - Mobile Mini Uk Ltd,12/2/14 - 11/3/14
Tendring DC,http://statistics.data.gov.uk/id/local-authority-district/22UN,Life Opportunities,8510 - Dovercourt Swimming Pool & All Weather Facilities,4200 - Clothing & Uniforms,25/03/2014,2113868-1,108,2109450 - Monster Merchandise Ltd,Dovercourt Pool - Uniform
Tendring DC,http://statistics.data.gov.uk/id/local-authority-district/22UN,Life Opportunities,8520 - Frinton & Walton Swimming Pool,4200 - Clothing & Uniforms,25/03/2014,2113873-1,144,2109450 - Monster Merchandise Ltd,Monster/Uniform
Tendring DC,http://statistics.data.gov.uk/id/local-authority-district/22UN,Life Opportunities,5480 - HRA - Repair & Maintenance,2073 - Smoke Alarm Service/Testing,25/03/2014,1058044-1,1615.86,2111370 - Morrison Facilities Services,GAS SERVICE & REPAIR-SOUTH AREA 13/14
Tendring DC,http://statistics.data.gov.uk/id/local-authority-district/22UN,Life Opportunities,5480 - HRA - Repair & Maintenance,2075 - Gas Service Contract Servicing/Testing (Domestic I,25/03/2014,1058044-2,4128.36,2111370 - Morrison Facilities Services,GAS SERVICE & REPAIR-SOUTH AREA 13/14
Tendring DC,http://statistics.data.gov.uk/id/local-authority-district/22UN,Life Opportunities,5480 - HRA - Repair & Maintenance,2076 - Gas Service Contract Other Refurbishment/Repairs (,25/03/2014,1058044-3,4206.7,2111370 - Morrison Facilities Services,GAS SERVICE & REPAIR-SOUTH AREA 13/14
Tendring DC,http://statistics.data.gov.uk/id/local-authority-district/22UN,Life Opportunities,9920 - HRA Balance Sheet,B860 - Housing Rents - Cash,18/03/2014,7012292-1,110.72,REDACTED PERSONAL DATA,REDACTED PERSONAL DATA
Tendring DC,http://statistics.data.gov.uk/id/local-authority-district/22UN,Life Opportunities,9920 - HRA Balance Sheet,B860 - Housing Rents - Cash,04/03/2014,1057707-1,13.11,REDACTED PERSONAL DATA,REDACTED PERSONAL DATA
Tendring DC,http://statistics.data.gov.uk/id/local-authority-district/22UN,Life Opportunities,5240 - HRA - Managing Tenancies,5242 - Tenant Relations,11/03/2014,1057775-1,10,REDACTED PERSONAL DATA,REDACTED PERSONAL DATA
Tendring DC,http://statistics.data.gov.uk/id/local-authority-district/22UN,Life Opportunities,5240 - HRA - Managing Tenancies,5242 - Tenant Relations,11/03/2014,1057770-1,10,REDACTED PERSONAL DATA,REDACTED PERSONAL DATA
Tendring DC,http://statistics.data.gov.uk/id/local-authority-district/22UN,Life Opportunities,H945 - Empty Homes funding,C402 - Grant payments for Empty Homes scheme,04/03/2014,1057712-1,2400.9,REDACTED PERSONAL DATA,REDACTED PERSONAL DATA
Tendring DC,http://statistics.data.gov.uk/id/local-authority-district/22UN,Life Opportunities,9920 - HRA Balance Sheet,B860 - Housing Rents - Cash,04/03/2014,1057714-1,795.91,REDACTED PERSONAL DATA,REDACTED PERSONAL DATA
Tendring DC,http://statistics.data.gov.uk/id/local-authority-district/22UN,Life Opportunities,9920 - HRA Balance Sheet,B860 - Housing Rents - Cash,25/03/2014,2113850-1,927.29,REDACTED PERSONAL DATA,REDACTED PERSONAL DATA
Tendring DC,http://statistics.data.gov.uk/id/local-authority-district/22UN,Life Opportunities,9920 - HRA Balance Sheet,B860 - Housing Rents - Cash,18/03/2014,7012298-1,1002.17,REDACTED PERSONAL DATA,REDACTED PERSONAL DATA
Tendring DC,http://statistics.data.gov.uk/id/local-authority-district/22UN,Life Opportunities,9920 - HRA Balance Sheet,B860 - Housing Rents - Cash,04/03/2014,1057709-1,444.67,REDACTED PERSONAL DATA,REDACTED PERSONAL DATA
Tendring DC,http://statistics.data.gov.uk/id/local-authority-district/22UN,Life Opportunities,6160 - Princes Theatre,9352 - Opportunity Bookings,04/03/2014,1057637-1,41.67,REDACTED PERSONAL DATA,REDACTED PERSONAL DATA
Tendring DC,http://statistics.data.gov.uk/id/local-authority-district/22UN,Life Opportunities,9920 - HRA Balance Sheet,B860 - Housing Rents - Cash,04/03/2014,1057715-1,225.28,REDACTED PERSONAL DATA,REDACTED PERSONAL DATA
Tendring DC,http://statistics.data.gov.uk/id/local-authority-district/22UN,Life Opportunities,H920 - Disabled Facilities Grants,C400 - Grant payments,25/03/2014,1058011-1,350,REDACTED PERSONAL DATA,REDACTED PERSONAL DATA
Tendring DC,http://statistics.data.gov.uk/id/local-authority-district/22UN,Life Opportunities,8540 - Leisure Centre Clacton,4597 - Hired Services - Payments to Contractors,11/03/2014,7012008-1,749.25,2110018 - Mr I S Whitehead,CANOE - JAN - MARCH
Tendring DC,http://statistics.data.gov.uk/id/local-authority-district/22UN,Life Opportunities,9920 - HRA Balance Sheet,B860 - Housing Rents - Cash,25/03/2014,2113847-1,128.53,REDACTED PERSONAL DATA,REDACTED PERSONAL DATA
Tendring DC,http://statistics.data.gov.uk/id/local-authority-district/22UN,Life Opportunities,5140 - Homelessness,4683 - Other Homelessness Expenses,11/03/2014,1057795-1,435,REDACTED PERSONAL DATA,REDACTED PERSONAL DATA
Tendring DC,http://statistics.data.gov.uk/id/local-authority-district/22UN,Life Opportunities,9920 - HRA Balance Sheet,B860 - Housing Rents - Cash,25/03/2014,2113849-1,581.6,REDACTED PERSONAL DATA,REDACTED PERSONAL DATA
Tendring DC,http://statistics.data.gov.uk/id/local-authority-district/22UN,Life Opportunities,9920 - HRA Balance Sheet,B860 - Housing Rents - Cash,25/03/2014,2113839-1,28.46,REDACTED PERSONAL DATA,REDACTED PERSONAL DATA
Tendring DC,http://statistics.data.gov.uk/id/local-authority-district/22UN,Life Opportunities,9920 - HRA Balance Sheet,B860 - Housing Rents - Cash,04/03/2014,1057710-1,20.24,REDACTED PERSONAL DATA,REDACTED PERSONAL DATA
Tendring DC,http://statistics.data.gov.uk/id/local-authority-district/22UN,Life Opportunities,9920 - HRA Balance Sheet,B860 - Housing Rents - Cash,18/03/2014,7012287-1,352.62,REDACTED PERSONAL DATA,REDACTED PERSONAL DATA
Tendring DC,http://statistics.data.gov.uk/id/local-authority-district/22UN,Life Opportunities,9920 - HRA Balance Sheet,B860 - Housing Rents - Cash,25/03/2014,2113845-1,451.52,REDACTED PERSONAL DATA,REDACTED PERSONAL DATA
Tendring DC,http://statistics.data.gov.uk/id/local-authority-district/22UN,Life Opportunities,5240 - HRA - Managing Tenancies,6625 - Tenants Compensation Scheme,18/03/2014,7012282-1,80,REDACTED PERSONAL DATA,REDACTED PERSONAL DATA
Tendring DC,http://statistics.data.gov.uk/id/local-authority-district/22UN,Life Opportunities,9920 - HRA Balance Sheet,B860 - Housing Rents - Cash,25/03/2014,2113841-1,34.6,REDACTED PERSONAL DATA,REDACTED PERSONAL DATA
Tendring DC,http://statistics.data.gov.uk/id/local-authority-district/22UN,Life Opportunities,9920 - HRA Balance Sheet,B860 - Housing Rents - Cash,11/03/2014,1057807-1,947.52,REDACTED PERSONAL DATA,REDACTED PERSONAL DATA
Tendring DC,http://statistics.data.gov.uk/id/local-authority-district/22UN,Life Opportunities,9920 - HRA Balance Sheet,B860 - Housing Rents - Cash,04/03/2014,1057711-1,85.84,REDACTED PERSONAL DATA,REDACTED PERSONAL DATA
Tendring DC,http://statistics.data.gov.uk/id/local-authority-district/22UN,Life Opportunities,9920 - HRA Balance Sheet,B860 - Housing Rents - Cash,18/03/2014,7012290-1,85.84,REDACTED PERSONAL DATA,REDACTED PERSONAL DATA
Tendring DC,http://statistics.data.gov.uk/id/local-authority-district/22UN,Life Opportunities,5240 - HRA - Managing Tenancies,5242 - Tenant Relations,11/03/2014,7011951-1,22,2104653 - Mr R South B/Sea Cabs (Private Hire),TRANSPORT 25.2.14
Tendring DC,http://statistics.data.gov.uk/id/local-authority-district/22UN,Life Opportunities,9920 - HRA Balance Sheet,B860 - Housing Rents - Cash,11/03/2014,1057806-1,477.3,REDACTED PERSONAL DATA,REDACTED PERSONAL DATA
Tendring DC,http://statistics.data.gov.uk/id/local-authority-district/22UN,Life Opportunities,5240 - HRA - Managing Tenancies,5242 - Tenant Relations,11/03/2014,1057767-1,10,REDACTED PERSONAL DATA,REDACTED PERSONAL DATA
Tendring DC,http://statistics.data.gov.uk/id/local-authority-district/22UN,Life Opportunities,9920 - HRA Balance Sheet,B860 - Housing Rents - Cash,18/03/2014,7012289-1,287.22,REDACTED PERSONAL DATA,REDACTED PERSONAL DATA
Tendring DC,http://statistics.data.gov.uk/id/local-authority-district/22UN,Life Opportunities,5240 - HRA - Managing Tenancies,5242 - Tenant Relations,11/03/2014,1057774-1,10,REDACTED PERSONAL DATA,REDACTED PERSONAL DATA
Tendring DC,http://statistics.data.gov.uk/id/local-authority-district/22UN,Life Opportunities,9920 - HRA Balance Sheet,B860 - Housing Rents - Cash,18/03/2014,7012286-1,754.96,REDACTED PERSONAL DATA,REDACTED PERSONAL DATA
Tendring DC,http://statistics.data.gov.uk/id/local-authority-district/22UN,Life Opportunities,9920 - HRA Balance Sheet,B860 - Housing Rents - Cash,25/03/2014,2113840-1,344.84,REDACTED PERSONAL DATA,REDACTED PERSONAL DATA
Tendring DC,http://statistics.data.gov.uk/id/local-authority-district/22UN,Life Opportunities,9920 - HRA Balance Sheet,B860 - Housing Rents - Cash,18/03/2014,7012288-1,914.1,REDACTED PERSONAL DATA,REDACTED PERSONAL DATA
Tendring DC,http://statistics.data.gov.uk/id/local-authority-district/22UN,Life Opportunities,9920 - HRA Balance Sheet,B860 - Housing Rents - Cash,25/03/2014,2113848-1,942.71,REDACTED PERSONAL DATA,REDACTED PERSONAL DATA
Tendring DC,http://statistics.data.gov.uk/id/local-authority-district/22UN,Life Opportunities,6740 - Careline,9050 - Careline Income - General,11/03/2014,1057809-1,13.93,REDACTED PERSONAL DATA,REDACTED PERSONAL DATA
Tendring DC,http://statistics.data.gov.uk/id/local-authority-district/22UN,Life Opportunities,9920 - HRA Balance Sheet,B860 - Housing Rents - Cash,18/03/2014,7012297-1,151.46,REDACTED PERSONAL DATA,REDACTED PERSONAL DATA
